{"text_format":"1","workbook":"xlsx","n_sheets":18,"sheets":["Macro1","Start","Settings","Instructions","Master_Page","Dummy_Sheet","January2022","February2022","March2022","April2022","May2022","June2022","July2022","August2022","September2022","October2022","November2022","December2022"],"not_rendered":{"charts":0,"images":3,"macros":1,"external_links":0,"defined_names":48,"comments":1,"pivot_tables":0},"unopened":[],"bounds":{"document_bytes":16777216,"sheet_cells":100000,"rows_first":2000,"rows_last":500,"rows_between":2000,"halvings":0,"cell_chars":16384,"cell_head_chars":4096},"cells_cut":0,"cells_raw":0,"read":"whole","date_system":"1900"}

{"sheet":"Macro1","index":0,"n_rows":0,"n_cols":0,"rows_kept":0,"cut":false,"hidden":true,"merged":[]}

{"sheet":"Start","index":1,"n_rows":0,"n_cols":0,"rows_kept":0,"cut":false,"hidden":true,"merged":[]}

{"sheet":"Settings","index":2,"n_rows":288,"n_cols":29,"rows_kept":288,"cut":false,"hidden":false,"merged":[]}
["Days"," Work Week Schedule","Time Base","Time Base Hours","Work Week Group","Bargaining Unit","Protect Worksheets","Sheet Name","Date From","Date To","Holidays","Class Code","Classification","Do not modify","Mon-A","Mon-B","Tue-A","Tue-B","Wed-A","Wed-B","Thu-A","Thu-B","Fri-B","Fri-A","Sat-A","Sat-B","Sun-B","Sun-A","Do not Modify this also"]
["N/A","Regular Schedule","Full Time","8",2,"C01",false,"January2022","2022-01-01","2022-01-31","1,17",1120,"Seasonal Clerk (TAU)",0,"2022-01-10","2022-01-03","2022-01-11","2022-01-04","2022-01-12","2022-01-05","2022-01-13","2022-01-06","2022-01-07","2022-01-14","2022-01-08","2022-01-01","2022-01-09","2022-01-02","No"]
["Mon","Irregular Schedule","9/10","7.2","E","C04",null,"February2022","2022-02-01","2022-03-01","21",1123,"Assistant Clerk",0,"2022-01-24","2022-01-17","2022-01-25","2022-01-18","2022-01-26","2022-01-19","2022-01-29","2022-01-20","2022-01-21","2022-01-28","2022-01-22","2022-01-15","2022-01-23","2022-01-16","No"]
["Tue",null,"7/8","7.0","SE","E  ",null,"March2022","2022-03-02","2022-03-31","31",1138,"Office Technician (General) ",0,"2022-02-07","2022-01-31","2022-02-08","2022-02-01","2022-02-09","2022-02-02","2022-02-10","2022-02-03","2022-02-04","2022-02-11","2022-02-05","2022-01-29","2022-02-06","2022-01-30","No"]
["Wed",null,"4/5","6.4",null,"E48",null,"April2022","2022-04-01","2022-04-30",null,1139,"Office Technician (Typing) ",0,"2022-02-21","2022-02-14","2022-02-22","2022-02-15","2022-02-23","2022-02-16","2022-02-24","2022-02-17","2022-02-18","2022-02-25","2022-02-19","2022-02-12","2022-02-20","2022-02-13","No"]
["Thu",null,"3/4","6.0",null,"E97",null,"May2022","2022-05-01","2022-05-31","30",1141,"Office Services Supervisor I (General)",0,"2022-03-07","2022-02-28","2022-03-08","2022-03-01","2022-03-09","2022-03-02","2022-03-10","2022-03-03","2022-03-04","2022-03-11","2022-03-05","2022-02-26","2022-03-06","2022-02-27","No"]
["Fri",null,"7/10","5.6",null,"E98",null,"June2022","2022-06-01","2022-06-30",null,1148,"Office Services Supervisor I (Typing) ",1,"2022-03-21","2022-03-14","2022-03-22","2022-03-15","2022-03-23","2022-03-16","2022-03-24","2022-03-17","2022-03-18","2022-03-25","2022-03-19","2022-03-12","2022-03-20","2022-03-13","No"]
["Sat",null,"5/8","5.0",null,"E99",null,"July2022","2022-07-01","2022-08-01","4",1150,"Office Services Supervisor II (General)",1,"2022-04-04","2022-03-28","2022-04-05","2022-03-29","2022-04-06","2022-03-30","2022-04-07","2022-03-31","2022-04-01","2022-04-08","2022-04-02","2022-03-26","2022-04-03","2022-03-27","No"]
["Sun",null,"3/5","4.8",null,"M01",null,"August2022","2022-08-02","2021-08-31",null,1151,"Office Services Supervisor III (General)",1,"2022-04-18","2022-04-11","2022-04-19","2022-04-12","2022-04-20","2022-04-13","2022-04-21","2022-04-14","2022-04-15","2022-04-22","2022-04-16","2022-04-09","2022-04-17","2022-04-10","No"]
[null,null,"1/2","4.0",null,"M02",null,"September2022","2022-09-01","2022-09-30","5",1176,"Secretary",1,"2022-05-02","2022-04-25","2022-05-03","2022-04-26","2022-05-04","2022-04-27","2022-05-05","2022-04-28","2022-04-29","2022-05-06","2022-04-30","2022-04-23","2022-05-01","2022-04-24","No"]
[null,null,"2/5","3.2",null,"M10",null,"October2022","2022-10-01","2022-10-31",null,1181,"Word Processing Technician",1,"2022-05-16","2022-05-09","2022-05-17","2022-05-10","2022-05-18","2022-05-11","2022-05-19","2022-05-12","2022-05-13","2022-05-20","2022-05-14","2022-05-07","2022-05-15","2022-05-08","No"]
[null,null,"3/8","3.0",null,"R01",null,"November2022","2022-11-01","2022-11-30","11,25",1247,"Executive Secretary I ",1,"2022-05-30","2022-05-23","2022-05-31","2022-05-24","2022-06-01","2022-05-25","2022-06-02","2022-05-26","2022-05-27","2022-06-03","2022-05-28","2022-05-21","2022-05-29","2022-05-22","No"]
[null,null,"3/10","2.4",null,"R02",null,"December2022","2022-12-01","2022-12-31",null,1282,"Legal Secretary",0,"2022-06-13","2022-06-08","2022-06-14","2022-06-07","2022-06-15","2022-06-08","2022-06-16","2022-06-09","2022-06-10","2022-06-17","2022-06-11","2022-06-04","2022-06-12","2022-06-05","No"]
[null,null,"1/4","2.0",null,"R04",null,"Dummy_Sheet","2019-10-31","2019-11-30","26",1303,"Personnel Specialist",0,"2022-06-27","2022-06-20","2022-06-28","2022-06-21","2022-06-29","2022-06-22","2022-06-30","2022-06-23","2022-06-24","2022-07-01","2022-06-25","2022-06-18","2022-06-26","2022-06-19","No"]
[null,null,"1/5","1.6",null,"R07",null,null,null,null,null,1304,"Personnel Supervisor I ",null,"2022-07-11","2022-07-04","2022-07-12","2022-07-05","2022-07-13","2022-07-06","2022-07-14","2022-07-07","2022-07-08","2022-07-15","2022-07-09","2022-07-02","2022-07-10","2022-07-03","No"]
[null,null,"1/10","0.8",null,"R09",null,null,null,null,null,1312,"Staff Information Systems Analyst (Specialist)",null,"2022-07-25","2022-07-18","2022-07-26","2022-07-19","2022-07-27","2022-07-20","2022-07-28","2022-07-21","2022-07-22","2022-07-29","2022-07-23","2022-07-16","2022-07-24","2022-07-17","No"]
[null,null,"Intermittent","0",null,"R10",null,null,null,null,null,1314,"Personnel Supervisor II",null,"2022-08-08","2022-08-01","2022-08-09","2022-08-02","2022-08-10","2022-08-03","2022-08-11","2022-08-04","2022-08-05","2022-08-12","2022-08-06","2022-07-30","2022-08-07","2022-07-31"]
[null,null,"Hourly","0",null,"R11",null,null,null,null,null,1316,"Staff Information Systems Analyst (Supervisor)",null,"2022-08-22","2022-08-15","2022-08-23","2022-08-16","2022-08-24","2022-08-19","2022-08-25","2022-08-18","2022-08-19","2022-08-26","2022-08-20","2022-08-13","2022-08-21","2022-08-14"]
[null,null,null,null,null,"R12",null,null,null,null,null,1317,"Senior Personnel Specialist",null,"2022-09-05","2022-08-29","2022-09-06","2022-08-30","2022-09-07","2022-08-31","2022-09-08","2022-09-01","2022-09-02","2022-09-09","2022-09-03","2022-08-27","2022-09-04","2022-08-28"]
[null,null,null,null,null,"R14",null,null,null,null,null,1328,"Assistant Deputy Director/Communications, Education And Outreach",null,"2022-09-19","2022-09-12","2022-09-20","2022-09-13","2022-09-21","2022-09-14","2022-09-22","2022-09-15","2022-09-16","2022-09-23","2022-09-17","2022-09-10","2022-09-18","2022-09-11"]
[null,null,null,null,null,"R15",null,null,null,null,null,1337,"Senior Information Systems Analyst (Specialist)",null,"2022-10-03","2022-09-26","2022-10-04","2022-09-27","2022-10-05","2022-09-28","2022-10-06","2022-09-29","2022-09-30","2022-10-07","2022-10-01","2022-09-24","2022-10-02","2022-09-25"]
[null,null,null,null,null,"S01",null,null,null,null,null,1340,"Senior Information Systems Analyst (Supervisor)",null,"2022-10-17","2022-10-10","2022-10-18","2022-10-11","2022-10-19","2022-10-12","2022-10-20","2022-10-13","2022-10-14","2022-10-21","2022-10-15","2022-10-08","2022-10-16","2022-10-09"]
[null,null,null,null,null,"S04",null,null,null,null,null,1360,"Information Systems Technician ",null,"2022-10-31","2022-10-24","2022-11-01","2022-10-25","2022-11-02","2022-10-26","2022-11-03","2022-10-27","2022-10-28","2022-11-04","2022-10-29","2022-10-22","2022-10-30","2022-10-23"]
[null,null,null,null,null,"S07",null,null,null,null,null,1379,"Office Assistant (Typing) ",null,"2022-11-14","2022-11-07","2022-11-15","2022-11-08","2022-11-18","2022-11-09","2022-11-17","2022-11-10","2022-11-11","2022-11-18","2022-11-12","2022-11-05","2022-11-13","2022-11-06"]
[null,null,null,null,null,"S09",null,null,null,null,null,1382,"Programmer I  ",null,"2022-11-28","2022-11-21","2022-11-29","2022-11-22","2022-11-30","2022-11-23","2022-12-01","2022-11-24","2022-11-25","2022-12-02","2022-11-26","2022-11-19","2022-11-27","2022-11-20"]
[null,null,null,null,null,"S10",null,null,null,null,null,1383,"Programmer II  ",null,"2022-12-12","2022-12-05","2022-12-13","2022-12-06","2022-12-14","2022-12-07","2022-12-15","2022-12-08","2022-12-09","2022-12-16","2022-12-10","2022-12-03","2022-12-11","2022-12-04"]
[null,null,null,null,null,"S11",null,null,null,null,null,1419,"Key Data Operator",null,"2022-12-28","2022-12-19","2022-12-27","2022-12-20","2022-12-28","2022-12-21","2022-12-29","2022-12-22","2022-12-23","2022-12-30","2022-12-24","2022-12-17","2022-12-25","2022-12-18"]
[null,null,null,null,null,"S12",null,null,null,null,null,1420,"Key Data Supervisor I "]
[null,null,null,null,null,null,null,null,null,null,null,1441,"Office Assistant (General)"]
[null,null,null,null,null,null,null,null,null,null,null,1470,"Associate Information Systems Analyst (Specialist)"]
[null,null,null,null,null,null,null,null,null,null,null,1479,"Assistant Information Systems Analyst"]
[null,null,null,null,null,null,null,null,null,null,null,1503,"Materials and Stores Supervisor"]
[null,null,null,null,null,null,null,null,null,null,null,1506,"Materials and Stores Specialist"]
[null,null,null,null,null,null,null,null,null,null,null,1509,"Stock Clerk"]
[null,null,null,null,null,null,null,null,null,null,null,1547,"Property Inspector (Specialist)"]
[null,null,null,null,null,null,null,null,null,null,null,1557,"Information Systems Technician  Specialist II"]
[null,null,null,null,null,null,null,null,null,null,null,1579,"Associate Programmer Analyst (Specialist) "]
[null,null,null,null,null,null,null,null,null,null,null,1581,"Staff Programmer Analyst (Specialist) "]
[null,null,null,null,null,null,null,null,null,null,null,1582,"Staff Programmer Analyst (Supervisor)"]
[null,null,null,null,null,null,null,null,null,null,null,1583,"Senior Programmer Analyst (Specialist)"]
[null,null,null,null,null,null,null,null,null,null," ",1584,"Senior Programmer Analyst (Supervisor)"]
[null,null,null,null,null,null,null,null,null,null,null,1585,"Associate Systems Software Specialist (Technical) ",null,null,null,null,null,null,null,null,null,null,null,"  "]
[null,null,null,null,null,null,null,null,null,null,"  ",1724,"Supervising Account Clerk II "]
[null,null,null,null,null,null,null,null,null,null,null,1727,"Supervising Account Clerk I "]
[null,null,null,null,null,null,null,null,null,null,null,1728,"Executive Assistant"]
[null,null,null,null,null,null,null,null,null,null,null,1730,"Senior Account Clerk "]
[null,null,null,null,null,null,null,null,null,null,null,1733,"Account Clerk II"]
[null,null,null,null,null,null,null,null,null,null,null,1741,"Accounting Technician  "]
[null,null,null,null,null,null,null,null,null,null,null,1745,"Deputy Director, Legislation "]
[null,null,null,null,null,null,null,null,null,null,null,1779,"Mailing Machines Operator I           "]
[null,null,null,null,null,null,null,null,null,null,null,1780,"Mailing Machines Operator II           "]
[null,null,null,null,null,null,null,null,null,null,null,1799,"General Counsel/Dept of Fish and Game"]
[null,null,null,null,null,null,null,null,null,null,null,1820,"Legal Assistant "]
[null,null,null,null,null,null,null,null,null,null,null,1917,"Fish and Wildlife Interpreter I  "]
[null,null,null,null,null,null,null,null,null,null,null,1918,"Fish and Wildlife Interpreter II                      "]
[null,null,null,null,null,null,null,null,null,null,null,1919,"Fish and Wildlife Interpreter III"]
[null,null,null,null,null,null,null,null,null,null,null,1928,"Senior Fish Habitat Supervisor"]
[null,null,null,null,null,null,null,null,null,null,null,1931,"Scientific Aid"]
[null,null,null,null,null,null,null,null,null,null,null,2051,"Senior Wildlife Veterinarian Supervisor"]
[null,null,null,null,null,null,null,null,null,null,null,2052,"Senior Wildlife Veterinarian Specialist "]
[null,null,null,null,null,null,null,null,null,null,null,2838,"Audio-Visual Specialist (Technical)"]
[null,null,null,null,null,null,null,null,null,null,null,2885,"Graphic Designer II"]
[null,null,null,null,null,null,null,null,null,null,null,3120,"Senior Civil Engineer"]
[null,null,null,null,null,null,null,null,null,null,null,3123,"Associate Civil Engineer"]
[null,null,null,null,null,null,null,null,null,null,null,3124,"Civil Engineering Associate"]
[null,null,null,null,null,null,null,null,null,null,null,3126,"Assistant Civil Engineer"]
[null,null,null,null,null,null,null,null,null,null,null,3135,"Transportation Engineer (Civil)"]
[null,null,null,null,null,null,null,null,null,null,null,3224,"Senior Legal Typist"]
[null,null,null,null,null,null,null,null,null,null,null,3260,"Senior Hydraulic Engineer"]
[null,null,null,null,null,null,null,null,null,null,null,3263,"Associate Hydraulic Engineer"]
[null,null,null,null,null,null,null,null,null,null,null,3648,"Deputy Director Of Communications"]
[null,null,null,null,null,null,null,null,null,null,null,3751,"Senior Engineering Geologist"]
[null,null,null,null,null,null,null,null,null,null,null,3756,"Engineering Geologist"]
[null,null,null,null,null,null,null,null,null,null,null,3852,"Senior Industrial Hygienist"]
[null,null,null,null,null,null,null,null,null,null,null,3855,"Assistant Industrial Hygienist"]
[null,null,null,null,null,null,null,null,null,null,null,3856,"Associate Industrial Hygienist"]
[null,null,null,null,null,null,null,null,null,null,null,3985,"Aquaculture Coordinator, Department of Fish and Game"]
[null,null,null,null,null,null,null,null,null,null,null,4142,"Supervising Governmental Auditor I "]
[null,null,null,null,null,null,null,null,null,null,null,4155,"Staff Management Auditor (Specialist), State Controller's Office"]
[null,null,null,null,null,null,null,null,null,null,null,4159,"Associate Management Auditor "]
[null,null,null,null,null,null,null,null,null,null,null,4161,"Senior Management Auditor "]
[null,null,null,null,null,null,null,null,null,null,null,4177,"Accountant I (Specialist) "]
[null,null,null,null,null,null,null,null,null,null,null,4179,"Accountant Trainee"]
[null,null,null,null,null,null,null,null,null,null,null,4180,"Accountant I (Supervisor) "]
[null,null,null,null,null,null,null,null,null,null,null,4369,"Public Land Management Specialist III"]
[null,null,null,null,null,null,null,null,null,null,null,4370,"Public Land Management Specialist IV"]
[null,null,null,null,null,null,null,null,null,null,null,4372,"Public Land Manager II"]
[null,null,null,null,null,null,null,null,null,null,null,4542,"Accounting Administrator II "]
[null,null,null,null,null,null,null,null,null,null,null,4545,"Accounting Administrator III"]
[null,null,null,null,null,null,null,null,null,null,null,4546,"Accounting Officer (Specialist)"]
[null,null,null,null,null,null,null,null,null,null,null,4549,"Accounting Administrator I (Supervisor) "]
[null,null,null,null,null,null,null,null,null,null,null,4557,"Administrative Officer III, Resources Agency"]
[null,null,null,null,null,null,null,null,null,null,null,4558,"Administrative Officer II, Resources Agency"]
[null,null,null,null,null,null,null,null,null,null,null,4567,"Senior Accounting Officer (Specialist) "]
[null,null,null,null,null,null,null,null,null,null,null,4569,"Senior Accounting Officer (Supervisor) "]
[null,null,null,null,null,null,null,null,null,null,null,4588,"Associate Accounting Analyst"]
[null,null,null,null,null,null,null,null,null,null,null,4590,"Administrative Officer I, Resources Agency        "]
[null,null,null,null,null,null,null,null,null,null,null,4707,"Business Service Assistant (Specialist)"]
[null,null,null,null,null,null,null,null,null,null,null,4800,"Staff Services Manager I"]
[null,null,null,null,null,null,null,null,null,null,null,4801,"Staff Services Manager II (Supervisory)"]
[null,null,null,null,null,null,null,null,null,null,null,4802,"Staff Services Manager III"]
[null,null,null,null,null,null,null,null,null,null,null,4809,"Conservancy Project Development Analyst II"]
[null,null,null,null,null,null,null,null,null,null,null,4870,"Student Assistant (TAU)"]
[null,null,null,null,null,null,null,null,null,null,null,4872,"Graduate Student Assistant (TAU)"]
[null,null,null,null,null,null,null,null,null,null,null,4969,"Staff Services Manager II (Managerial)"]
[null,null,null,null,null,null,null,null,null,null,null,4994,"Supervising Land Agent (Supervisory)"]
[null,null,null,null,null,null,null,null,null,null,null,4995,"Senior Land Agent (Supervisor)"]
[null,null,null,null,null,null,null,null,null,null,null,4996,"Associate Land Agent"]
[null,null,null,null,null,null,null,null,null,null,null,4998,"Senior Land Agent (Specialist)   "]
[null,null,null,null,null,null,null,null,null,null,null,5135,"Telecommunications Systems Manager I (Specialist)"]
[null,null,null,null,null,null,null,null,null,null,null,5142,"Associate Personnel Analyst       "]
[null,null,null,null,null,null,null,null,null,null,null,5152,"Legislative Coordinator, Secretary of State's Office"]
[null,null,null,null,null,null,null,null,null,null,null,5157,"Staff Services Analyst (General) "]
[null,null,null,null,null,null,null,null,null,null,null,5170,"Telecommunications Systems Analyst I "]
[null,null,null,null,null,null,null,null,null,null,null,5171,"Telecommunications Systems Analyst II  "]
[null,null,null,null,null,null,null,null,null,null,null,5197,"Training Officer I"]
[null,null,null,null,null,null,null,null,null,null,null,5278,"Management Services Technician"]
[null,null,null,null,null,null,null,null,null,null,null,5284,"Associate Budget Analyst"]
[null,null,null,null,null,null,null,null,null,null,null,5301,"Supervising Administrative Analyst-Accounting Systems"]
[null,null,null,null,null,null,null,null,null,null,null,5302,"Senior Administrative Analyst-Accounting Systems"]
[null,null,null,null,null,null,null,null,null,null,null,5303,"Staff Administrative Analyst-Accounting Systems"]
[null,null,null,null,null,null,null,null,null,null,null,5304,"Associate Administrative Analyst-Accounting Systems"]
[null,null,null,null,null,null,null,null,null,null,null,5306,"Assistant Administrative Analyst-Accounting Systems"]
[null,null,null,null,null,null,null,null,null,null,null,5358,"Administrative Assistant II"]
[null,null,null,null,null,null,null,null,null,null,null,5361,"Administrative Assistant I"]
[null,null,null,null,null,null,null,null,null,null,null,5393,"Associate Governmental Program Analyst"]
[null,null,null,null,null,null,null,null,null,null,null,5553,"Statistical Methods Analyst III"]
[null,null,null,null,null,null,null,null,null,null,null,5556,"Statistical Methods Analyst I"]
[null,null,null,null,null,null,null,null,null,null,null,5571,"Television Specialist"]
[null,null,null,null,null,null,null,null,null,null,null,"5578","Research Scientist I (Microbiological Sciences)"]
[null,null,null,null,null,null,null,null,null,null,null,5587,"Research Scientist II (Microbiological Sciences)"]
[null,null,null,null,null,null,null,null,null,null,null,5593,"Associate Editor Of Publications"]
[null,null,null,null,null,null,null,null,null,null,null,5595,"Information Officer II"]
[null,null,null,null,null,null,null,null,null,null,null,5601,"Information Officer I (Specialist) "]
[null,null,null,null,null,null,null,null,null,null,null,5603,"Assistant Information Officer"]
[null,null,null,null,null,null,null,null,null,null,null,5617,"Research Writer"]
[null,null,null,null,null,null,null,null,null,null,null,5645,"Research Scientist Supervisor I (Microbiological Sciences)"]
[null,null,null,null,null,null,null,null,null,null,null,5729,"Research Analyst I (General)"]
[null,null,null,null,null,null,null,null,null,null,null,5731,"Research Analyst II (General)"]
[null,null,null,null,null,null,null,null,null,null,null,5734,"Research Manager I (General)"]
[null,null,null,null,null,null,null,null,null,null,null,5737,"Research Manager II (General)"]
[null,null,null,null,null,null,null,null,null,null,null,5742,"Research Program Specialist I"]
[null,null,null,null,null,null,null,null,null,null,null,5778,"Attorney"]
[null,null,null,null,null,null,null,null,null,null,null,5780,"Attorney IV"]
[null,null,null,null,null,null,null,null,null,null,null,5795,"Attorney III"]
[null,null,null,null,null,null,null,null,null,null,null,5797,"Graduate Legal Assistant"]
[null,null,null,null,null,null,null,null,null,null,null,5798,"Legal Counsel "]
[null,null,null,null,null,null,null,null,null,null,null,5815,"Supervising Attorney"]
[null,null,null,null,null,null,null,null,null,null,null,5835,"Research Program Specialist II (Economics)"]
[null,null,null,null,null,null,null,null,null,null,null,5841,"Staff Services Management Auditor"]
[null,null,null,null,null,null,null,null,null,null,null,5871,"Assistant Chief Counsel"]
[null,null,null,null,null,null,null,null,null,null,null,6202,"Member, Oil Spill Technical Advisory Committee/Department of Fish and Game"]
[null,null,null,null,null,null,null,null,null,null,null,6220,"Warehouse Worker"]
[null,null,null,null,null,null,null,null,null,null,null,6260,"Chief Deputy Director, Office Of Oil Spill Prevention and Response/Department of Fish and Game"]
[null,null,null,null,null,null,null,null,null,null,null,6261,"Deputy Administrator, Office Of Oil Spill Prevention And Response"]
[null,null,null,null,null,null,null,null,null,null,null,6320,"Senior Hatchery Supervisor"]
[null,null,null,null,null,null,null,null,null,null,null,6390,"Tractor Operator-Laborer"]
[null,null,null,null,null,null,null,null,null,null,null,6980,"Master, Fish and Game Vessel"]
[null,null,null,null,null,null,null,null,null,null,null,6986,"Mate, Fish and Game Vessel "]
[null,null,null,null,null,null,null,null,null,null,null,6989,"Motor Vessel Engineer"]
[null,null,null,null,null,null,null,null,null,null,null,7416,"Research Analyst I (Geographic Information Systems) "]
[null,null,null,null,null,null,null,null,null,null,null,7417,"Research Analyst II (Geographic Information Systems)"]
[null,null,null,null,null,null,null,null,null,null,null,7418,"Research Program Specialist I (Geographic Information Systems) "]
[null,null,null,null,null,null,null,null,null,null,null,7419,"Research Program Specialist II (Geographic Information Systems)"]
[null,null,null,null,null,null,null,null,null,null,null,7421,"Research Manager I (Geographic Information Systems)"]
[null,null,null,null,null,null,null,null,null,null,null,7422,"Research Manager II (Geographic Information Systems)"]
[null,null,null,null,null,null,null,null,null,null,null,7423,"Research Manager III (Geographic Information Systems)"]
[null,null,null,null,null,null,null,null,null,null,null,7500,"C.E.A."]
[null,null,null,null,null,null,null,null,null,null,null,7850,"Oil Spill Prevention Assistant"]
[null,null,null,null,null,null,null,null,null,null,null,7851,"Oil Spill Prevention Specialist"]
[null,null,null,null,null,null,null,null,null,null,null,7852,"Oil Spill Prevention Supervisor I"]
[null,null,null,null,null,null,null,null,null,null,null,7853,"Oil Spill Prevention Supervisor II            "]
[null,null,null,null,null,null,null,null,null,null,null,7869,"Laboratory Technician II (Animal Pathology)"]
[null,null,null,null,null,null,null,null,null,null,null,7877,"Laboratory Technician (Chemical Analysis)"]
[null,null,null,null,null,null,null,null,null,null,null,7878,"Senior Laboratory Assistant"]
[null,null,null,null,null,null,null,null,null,null,null,7884,"Laboratory Assistant"]
[null,null,null,null,null,null,null,null,null,null,null,7889,"Supervising Laboratory Assistant II"]
[null,null,null,null,null,null,null,null,null,null,null,7890,"Supervising Laboratory Assistant I"]
[null,null,null,null,null,null,null,null,null,null,null,7941,"Associate Toxicologist"]
[null,null,null,null,null,null,null,null,null,null,null,7942,"Staff Toxicologist (Supervisor)"]
[null,null,null,null,null,null,null,null,null,null,null,7943,"Senior Toxicologist"]
[null,null,null,null,null,null,null,null,null,null,null,7978,"Staff Toxicologist (Specialist)"]
[null,null,null,null,null,null,null,null,null,null,null,8005,"Fish and Game Lieutenant (Specialist) "]
[null,null,null,null,null,null,null,null,null,null,null,8060,"Chemist"]
[null,null,null,null,null,null,null,null,null,null,null,8068,"Staff Chemist"]
[null,null,null,null,null,null,null,null,null,null,null,8070,"Supervising Chemist"]
[null,null,null,null,null,null,null,null,null,null,null,8405,"Fish and Game Assistant Chief"]
[null,null,null,null,null,null,null,null,null,null,null,8407,"Senior Warden-Pilot, Department of Fish and Game"]
[null,null,null,null,null,null,null,null,null,null,null,8410,"Warden-Pilot, Department of Fish and Game"]
[null,null,null,null,null,null,null,null,null,null,null,8412,"Fish and Game Captain"]
[null,null,null,null,null,null,null,null,null,null,null,8418,"Fish and Game Lieutenant (Supervisor)"]
[null,null,null,null,null,null,null,null,null,null,null,8421,"Fish and Game Warden, Department of Fish and Game"]
[null,null,null,null,null,null,null,null,null,null,null,8486,"Fish and Game Warden Cadet "]
[null,null,null,null,null,null,null,null,null,null,null,9529,"Labor Relations Analyst"]
[null,null,null,null,null,null,null,null,null,null,null,9535,"Labor Relations Specialist"]
[null,null,null,null,null,null,null,null,null,null,null,9924,"Supervising Program Technician I"]
[null,null,null,null,null,null,null,null,null,null,null,9925,"Supervising Program Technician II"]
[null,null,null,null,null,null,null,null,null,null,null,9926,"Supervising Program Technician III"]
[null,null,null,null,null,null,null,null,null,null,null,9927,"Program Technician"]
[null,null,null,null,null,null,null,null,null,null,null,9928,"Program Technician II"]
[null,null,null,null,null,null,null,null,null,null,null,9929,"Program Technician III "]
[null,null,null,null,null,null,null,null,null,null,null,9991,"Youth Aid (TAU)"]
[null,null,null,null,null,null,null,null,null,null,null,9992,"Maintenance & Service Occupational Trainee"]
[null,null,null,null,null,null,null,null,null,null,null,9994,"Service Assistant (Maintenance)"]
[null,null,null,null,null,null,null,null,null,null,null,"0176","Veterinarian Specialist (General)"]
[null,null,null,null,null,null,null,null,null,null,null,"0177","Veterinarian (General)"]
[null,null,null,null,null,null,null,null,null,null,null,"0392","Chief Deputy Director, Department of Fish and Game"]
[null,null,null,null,null,null,null,null,null,null,null,"0556","Marketing Specialist, CA Museum Of Science & Industry/District Agricultural Associations"]
[null,null,null,null,null,null,null,null,null,null,null,"0756","Environmental Program Manager I (Supervisory)       "]
[null,null,null,null,null,null,null,null,null,null,null,"0760","Environmental Program Manager I (Managerial)       "]
[null,null,null,null,null,null,null,null,null,null,null,"0762","Environmental Scientist"]
[null,null,null,null,null,null,null,null,null,null,null,"0764","Senior Environmental Scientist (Supervisory)"]
[null,null,null,null,null,null,null,null,null,null,null,"0765","Senior Environmental Scientist (Specialist)"]
[null,null,null,null,null,null,null,null,null,null,null,"0766","Director, Department of Fish and Game"]
[null,null,null,null,null,null,null,null,null,null,null,"0767","Fish and Game Commissioner/Department of Fish and Game"]
[null,null,null,null,null,null,null,null,null,null,null,"0768","Senior Counsel"]
[null,null,null,null,null,null,null,null,null,null,null,"0769","Environmental Program Manager II"]
[null,null,null,null,null,null,null,null,null,null,null,"0771","Executive Director, Fish and Game Commission/Department of Fish and Game"]
[null,null,null,null,null,null,null,null,null,null,null,"0776","Fish Habitat Supervisor"]
[null,null,null,null,null,null,null,null,null,null,null,"0777","Fish Habitat Specialist "]
[null,null,null,null,null,null,null,null,null,null,null,"0780","Fish Habitat Assistant"]
[null,null,null,null,null,null,null,null,null,null,null,"0781","Fish Hatchery Manager II "]
[null,null,null,null,null,null,null,null,null,null,null,"0782","Fish Hatchery Manager I"]
[null,null,null,null,null,null,null,null,null,null,null,"0784","Program Manager II, California Bay-Delta Authority"]
[null,null,null,null,null,null,null,null,null,null,null,"0785","Program Manager III, California Bay-Delta Authority"]
[null,null,null,null,null,null,null,null,null,null,null,"0790","Fish and Wildlife Seasonal Aid (TAU)  "]
[null,null,null,null,null,null,null,null,null,null,null,"0809","Supervising Biologist"]
[null,null,null,null,null,null,null,null,null,null,null,"0835","Fish and Wildlife Scientific Aid  (TAU)"]
[null,null,null,null,null,null,null,null,null,null,null,"0841","Senior Wildlife Forensic Specialist"]
[null,null,null,null,null,null,null,null,null,null,null,"0842","Wildlife Forensic Specialist"]
[null,null,null,null,null,null,null,null,null,null,null,"0902","Wildlife Habitat Supervisor II "]
[null,null,null,null,null,null,null,null,null,null,null,"0903","Wildlife Habitat Supervisor I     "]
[null,null,null,null,null,null,null,null,null,null,null,"0904","Wildlife Habitat Assistant"]
[null,null,null,null,null,null,null,null,null,null,null,"0916","Fish and Wildlife Technician "]
[null,null,null,null,null,null,null,null,null,null,null,"0947","Executive Director, Wildlife Conservation Board/Department of Fish and Game"]
[null,null,null,null,null,null,null,null,null,null,null,"0948","Assistant Executive Director, Fish and Wildlife Conservation"]
[null,null,null,null,null,null,null,null,null,null,null,"0965","Member, Commercial Salmon Fishing Review Board/Department of Fish and Game"]
[null,null,null,null,null,null,null,null,null,null,null,"1367","Systems Software Specialist III (Technical)"]
[null,null,null,null,null,null,null,null,null,null,null,"1373","Systems Software Specialist II (Technical)"]
[null,null,null,null,null,null,null,null,null,null,null,"1393","Data Processing Manager III"]
[null,null,null,null,null,null,null,null,null,null,null,"1558","Systems Software Specialist II (Supervisory)"]
[null,null,null,null,null,null,null,null,null,null,null,"1559","Systems Software Specialist III (Supervisory)"]
[null,null,null,null,null,null,null,null,null,null,null,"1587","Systems Software Specialist I (Technical)"]
[null,null,null,null,null,null,null,null,null,null,null,"4552","Accounting Administrator I (Specialist) "]
[null,null,null,null,null,null,null,null,null,null,null,"4563","Accounting Officer (supervisor)"]
[null,null,null,null,null,null,null,null,null,null,null,"4582","Accounting Analyst"]
[null,null,null,null,null,null,null,null,null,null,null,"5861","Research Program Specialist III (Resource Economical Operations Research)"]
[null,null,null,null,null,null,null,null,null,null,null,"8599","Assistant Secretary, Climate Change-Natural Resources Agency"]
[null,null,null,null,null,null,null,null,null,null,null,"0840","Associate Fish Pathologist"]
[null,null,null,null,null,null,null,null,null,null,null,4144,"Govermental Auditor III"]
[null,null,null,null,null,null,null,null,null,null,null,1078,"Plant Ecologist"]
[null,null,null,null,null,null,null,null,null,null,null,6321,"Senior Biologist Specialist (Botany) "]
[null,null,null,null,null,null,null,null,null,null,null,6322,"Senior Biologist Specialist (Marine/Fisheries) "]
[null,null,null,null,null,null,null,null,null,null,null,6323,"Senior Biologist Specialist (Wildlife) "]
[null,null,null,null,null,null,null,null,null,null,null,6325,"Senior Biologist Supervisor (Botany)"]
[null,null,null,null,null,null,null,null,null,null,null,6324,"Senior Biologist Supervisor (General) "]
[null,null,null,null,null,null,null,null,null,null,null,6326,"Senior Biologist Supervisor (Marine/Fisheries)"]
[null,null,null,null,null,null,null,null,null,null,null,6327,"Senior Biologist Supervisor (Wildlife) "]
[null,null,null,null,null,null,null,null,null,null,null,"0832","Senior Fish Pathologist"]
[null,null,null,null,null,null,null,null,null,null,null,"0809","Supervising Biologist"]
[null,null,null,null,null,null,null,null,null,null,null,5194,"Training Officer II"]
[null,null,null,null,null,null,null,null,null,null,null,5196,"Training Officer III"]
[null,null,null,null,null,null,null,null,null,null,null,1381,"Data Processing Manager I"]
[null,null,null,null,null,null,null,null,null,null,null,1384,"Data Processing Manager II"]
[null,null,null,null,null,null,null,null,null,null,null,1387,"Data Processing Manager IV"]
[null,null,null,null,null,null,null,null,null,null,null,"0987","Maintenance Aide (Seasonal)"]
[null,null,null,null,null,null,null,null,null,null,null,"5599","Research Scientist III"]
[null,null,null,null,null,null,null,null,null,null,null,"1245","Executive Secretary II"]
[null,null,null,null,null,null,null,null,null,null,null,"1401","INFORMATION TECHNOLOGY ASSOCIATE"]
[null,null,null,null,null,null,null,null,null,null,null,"1402","INFORMATION TECHNOLOGY SPECIALIST I"]
[null,null,null,null,null,null,null,null,null,null,null,"1403","INFORMATION TECHNOLOGY SUPERVISOR I"]
[null,null,null,null,null,null,null,null,null,null,null,"1404","INFORMATION TECHNOLOGY SUPERVISOR II"]
[null,null,null,null,null,null,null,null,null,null,null,"1405","INFORMATION TECHNOLOGY MANAGER I"]
[null,null,null,null,null,null,null,null,null,null,null,"1414","INFORMATION TECHNOLOGY SPECIALIST II"]
[null,null,null,null,null,null,null,null,null,null,null,"1660","DISPATCHER-CLERK"]
[null,null,null,null,null,null,null,null,null,null,null,"2886","GRAPHIC DESIGNER III"]
[null,null,null,null,null,null,null,null,null,null,null,"3137","ENGINEER, WATER RESOURCES"]
[null,null,null,null,null,null,null,null,null,null,null,"3257","SUPERVISING HYDRAULIC ENGINEER"]
[null,null,null,null,null,null,null,null,null,null,null,"3600","Senior Electrical Engineer"]
[null,null,null,null,null,null,null,null,null,null,null,"4687","Limited Examination and Appointment Program Candidate (Identified Class)"]
[null,null,null,null,null,null,null,null,null,null,null,"4720","Business Service Office I (Specialist)"]
[null,null,null,null,null,null,null,null,null,null,null,"5590","Research Scientist II (Social/Behaviroal Sciences)"]
[null,null,null,null,null,null,null,null,null,null,null,"5605","Research Scientist III (Social/Behavioral Sciences)"]
[null,null,null,null,null,null,null,null,null,null,null,"5654","Research Scientist Supervisor II"]
[null,null,null,null,null,null,null,null,null,null,null,"5758","Research Data Specialist II"]
[null,null,null,null,null,null,null,null,null,null,null,"5770","Research Data Specialist III"]
[null,null,null,null,null,null,null,null,null,null,null,"6940","Maintenance Mechanic"]
[null,null,null,null,null,null,null,null,null,null,null,"7867","Research Specialist III - Various Studies"]

{"sheet":"Instructions","index":3,"n_rows":0,"n_cols":0,"rows_kept":0,"cut":false,"hidden":false,"merged":[]}

{"sheet":"Master_Page","index":4,"n_rows":82,"n_cols":43,"rows_kept":82,"cut":false,"hidden":false,"merged":[[0,35,0,36],[65,38,65,41],[60,0,60,31],[62,38,62,41],[63,38,63,41],[64,38,64,41],[56,0,56,7],[56,8,56,21],[35,0,38,31],[37,39,38,41],[42,30,42,37],[43,0,43,6],[43,30,43,36],[42,0,42,7],[61,38,61,41],[54,8,54,14],[66,38,66,41],[76,38,76,41],[7,40,7,42],[6,40,6,42],[43,39,43,42],[17,38,17,41],[18,38,18,41],[19,38,19,41],[20,41,20,42],[72,38,72,41],[73,38,73,41],[74,38,74,41],[75,38,75,41],[68,38,68,41],[69,38,69,41],[36,39,36,40],[54,15,54,21],[41,15,44,28],[46,10,46,13],[46,0,46,9],[46,15,46,24],[46,25,46,28],[45,15,45,24],[45,25,45,28],[54,0,54,7],[45,10,45,13],[37,42,38,42],[38,32,38,38],[22,9,22,24],[22,25,22,30],[22,32,22,42],[34,32,34,35],[33,32,33,35],[32,32,32,35],[31,32,31,35],[35,32,35,35],[36,32,36,35],[31,39,31,40],[32,39,32,40],[33,39,33,40],[34,39,34,40],[35,39,35,40],[12,38,12,41],[13,38,13,41],[14,38,14,41],[15,38,15,41],[16,38,16,41],[4,32,4,33],[6,34,6,35],[7,8,7,14],[7,15,7,28],[7,32,7,33],[7,34,7,35],[0,27,0,29],[0,31,0,32],[1,27,1,29],[1,31,1,32],[3,9,3,16],[5,0,5,7],[5,8,5,14],[5,32,5,33],[5,34,5,35],[5,25,5,28],[5,21,5,24],[5,17,5,20],[5,15,5,16],[70,38,70,41],[71,38,71,41],[7,0,7,4],[7,5,7,7],[8,34,8,35],[8,40,8,42],[67,38,67,41],[9,0,9,7],[9,8,9,12],[9,34,9,35],[9,40,9,42],[9,13,9,15],[9,16,9,18],[9,24,9,28],[9,19,9,23],[22,0,22,7]]}
["State of California",null,null,null,null,null,null,null,null,null,null,null,null,null,null,null,"Attendance and Labor",null,null,null,null,null,null,null,"Pay Period - From:",null,null,null,null,null,"To:",null,null,null,"Year",2022,null,"Tu",null,1,"# Days"]
["Department of Fish and Wildlife",null,null,null,null,null,null,null,null,null,null,null,null,null,null,null,"Distribution Report",null,null,null,null,null,null,null,null,null,null,"M  M  /  D   D /   Y   Y",null,null,null,"M  M  /  D   D /   Y   Y"]
["DFW 681 (Rev. 02/02/2018)"]
["I. EMPLOYEE INFORMATION",null,null,null,null,null,null,null,null,"Click here to go to the instructions page",null,null,null,null,null,null,null,null,null,null,null,null,null,null,null,null,null,null,null,null,"II. OTHER PAY HOURS"]
["Last Name",null,null,null,null,null,null,null,"First Name",null,null,null,null,null,null,"M.I.",null,"Div/Branch Or Region",null,null,null,"Social Security Number",null,null,null,"Bargaining Unit Number",null,null,null,null,"Dive",null,"Comm. Driving",null,null,null,"Excess","CTO",null,null,"Audited By:"]
[null,null,null,null,null,null,null,null,null,null,null,null,null,null,null,"",null,null,null,null,null,null,null,null,null,"R01",null,null,null,null,null,null,null,null,"Prev-Balance",null,0]
["Work Phone Number",null,null,null,null,"Phone Ext.",null,null,"  Position Number",null,null,null,null,null,null,"Classification Title",null,null,null,null,null,null,null,null,null,null,null,null,null,null,"SOU",null,"Shift",null,"Earned",null,{"$f":"+AO29","v":0},{"$f":"+AO27*1.5","v":0},null,null,"Excess Hours From Previous Timesheet"]
[null,null,null,null,null,"",null,null,null,null,null,null,null,null,null,null,null,null,null,null,null,null,null,null,null,null,null,null,null,null,null,null,null,null,"Total",null,{"$f":"+AK6+AK7","v":0},{"$f":"+AL6+AL7","v":0},null,null,0]
["Work Week Schedule",null,null,null,null,null,null,null,"Time Base",null,null,null,null,"Work Week Group",null,null,"Assigned Days Off",null,null,null,null,null,null,null,"AWW Regular Day Off (RDO)",null,null,null,null,null,"FTO",null,null,null,"Used -",null,{"$f":"(AL37)","v":0},{"$f":"+AQ32","v":0},null,null,"Actual Time Worked-Days Limit"]
["Regular Schedule",null,null,null,null,null,null,null,"Full Time",null,null,null,null,"2",null,null,"Sun",null,null,"Sat, Sun",null,null,null,null,"N/A",null,null,null,null,null,null,null,null,null,"Balance",null,{"$f":"+AK8-AK9","v":0},{"$f":"+AL8-AL9","v":0},null,null,{"$f":"COUNTIF(A22:AF22,\">0\")","v":0}]
[]
["III. LABOR DISTRIBUTION"]
[31,1,2,3,4,5,6,7,8,9,10,11,12,13,14,15,16,17,18,19,20,21,22,23,24,25,26,27,28,29,30,31,"Total","Type","D","Reporting Structure","Project ID","On Call","Category",null,null,null,"Activity"]
[null,null,null,null,null,null,null,null,null,null,null,null,null,null,null,null,null,null,null,null,null,null,null,null,null,null,null,null,null,null,null,null,{"$f":"SUM(A14:AF14)","v":0},"REG","N",null,null,""]
[null,null,null,null,null,null,null,null,null,null,null,null,null,null,null,null,null,null,null,null,null,null,null,null,null,null,null,null,null,null,null,null,0,"","N",null,null,""]
[null,null,null,null,null,null,null,null,null,null,null,null,null,null,null,null,null,null,null,null,null,null,null,null,null,null,null,null,null,null,null,null,0,"","N","",null,"",""]
[null,null,null,null,null,null,null,null,null,null,null,null,null,null,null,null,null,null,null,null,null,null,null,null,null,null,null,null,null,null,null,null,0,"","N","",null,"",""]
[null,null,null,null,null,null,null,null,null,null,null,null,null,null,null,null,null,null,null,null,null,null,null,null,null,null,null,null,null,null,null,null,0,"","N","",null,"",""]
[null,null,null,null,null,null,null,null,null,null,null,null,null,null,null,null,null,null,null,null,null,null,null,null,null,null,null,null,null,null,null,null,0,"","N","",null,"",""]
[null,null,null,null,null,null,null,null,null,null,null,null,null,null,null,null,null,null,null,null,null,null,null,null,null,null,null,null,null,null,null,null,0,"","N","",null,"",""]
[{"$f":"A78","v":0},0,0,0,0,0,0,0,0,0,0,0,0,0,0,0,0,0,0,0,0,0,0,0,0,0,0,0,0,0,0,0,{"$f":"AG78","v":0},"Total from DFW 681A(s) (Attach)"]
[{"$f":"SUM(A14:A21)","v":0},0,0,0,0,0,0,0,0,0,0,0,0,0,0,0,0,0,0,0,0,0,0,0,0,0,0,0,0,{"$f":"SUM(AD14:AD21)","v":0},{"$f":"SUM(AE14:AE21)","v":0},{"$f":"SUM(AF14:AF21)","v":0},{"$f":"SUM(AG14:AG21)","v":0},"Total Hours",null,null,null,176,null,"Hours Required this Month"]
["Carry over hours from previous month",null,null,null,null,null,null,null,null,null,null,null,null,null,null,null,null,null,null,null,null,null,null,null,null,"Carry over hours for month"]
["IV. EXTRA HOURS WORKED"]
[31,1,2,3,4,5,6,7,8,{"$f":"SUM(I25+1)","v":9},10,11,12,13,14,15,16,17,18,19,20,21,22,23,24,25,26,27,28,{"$f":"SUM(AC25+1)","v":29},{"$f":"SUM(AD25+1)","v":30},{"$f":"SUM(AE25+1)","v":31},"Summary of Extra Hours Worked:",null,null,null,null,null,null,null,"Hours","Paid This PP","Carry Over"]
[null,null,null,null,null,null,null,null,null,null,null,null,null,null,null,null,null,null,null,null,null,null,null,null,null,null,null,null,null,null,null,null,"Cash",null,null,null,null,null,null,null,{"$f":"SUM(A26:AF26)","v":0}]
[null,null,null,null,null,null,null,null,null,null,null,null,null,null,null,null,null,null,null,null,null,null,null,null,null,null,null,null,null,null,null,null,"CTO",null,null,"(CT06)",null,"(CT07)",null,null,{"$f":"SUM(A27:AF27)","v":0}]
[null,null,null,null,null,null,null,null,null,null,null,null,null,null,null,null,null,null,null,null,null,null,null,null,null,null,null,null,null,null,null,null,"Other (On-call/Standby)",null,null,null,null,{"$f":"SUM(A28:AF28)","v":0}]
["V. ABSENCE INFORMATION",null,null,null,null,null,null,null,null,"Date of Absence:  Enter symbol and number of hours in date blocks.",null,null,null,null,null,null,null,null,null,null,null,null,null,null,null,null,null,null,null,null,null,null,"Excess Hours",null,null,null,null,"(EX05)",null,null,0]
[31,1,2,3,4,5,6,7,8,9,10,11,12,{"$f":"SUM(M30+1)","v":13},14,15,16,17,18,19,20,21,22,23,24,25,26,27,28,{"$f":"SUM(AC30+1)","v":29},{"$f":"SUM(AD30+1)","v":30},{"$f":"SUM(AE30+1)","v":31},null,null,null,null,null,null,null,null,{"$f":"SUM(AO26:AO27)+AO29","v":0}]
[null,null,null,null,null,null,null,null,null,null,null,null,null,null,null,null,null,null,null,null,null,null,null,null,null,null,null,null,null,null,null,null,"Summary of Absences:",null,null,null,null,"Hours",null,null,null,null,"Hours"]
[null,null,null,null,null,null,null,null,null,null,null,null,null,null,null,null,null,null,null,null,null,null,null,null,null,null,null,null,null,null,null,null,"Sick-Self (S)",null,null,null,"(SL01)",0,null,"CTO (CT)",null,"(CT01)",0]
[null,null,null,null,null,null,null,null,null,null,null,null,null,null,null,null,null,null,null,null,null,null,null,null,null,null,null,null,null,null,null,null,"Sick-Family (FS)",null,null,null,"(SL02)",0,null,"Holiday (H) ",null,null,0]
[null,null,null,null,null,null,null,null,null,null,null,null,null,null,null,null,null,null,null,null,null,null,null,null,null,null,null,null,null,null,null,null,"Annual Leave (AL)",null,null,null,"(AL01)",0,null,"Pro. Dev. (PT)",null,null,0]
["Comments",null,null,null,null,null,null,null,null,null,null,null,null,null,null,null,null,null,null,null,null,null,null,null,null,null,null,null,null,null,null,null,"Vacation (V)",null,null,null,"(VA01)",0,null,"Other (O1)",null,null,0]
[null,null,null,null,null,null,null,null,null,null,null,null,null,null,null,null,null,null,null,null,null,null,null,null,null,null,null,null,null,null,null,null,"Personal Holiday (PH)",null,null,null,"(PH01)",0,null,"Other (O2)",null,null,0]
[null,null,null,null,null,null,null,null,null,null,null,null,null,null,null,null,null,null,null,null,null,null,null,null,null,null,null,null,null,null,null,null,"Excess (EX)",null,null,null,"(EX01)",0,null,"Other (O3)",null,null,0]
[null,null,null,null,null,null,null,null,null,null,null,null,null,null,null,null,null,null,null,null,null,null,null,null,null,null,null,null,null,null,null,null,null,null,null,null,null,null,null,"Absence Total",null,null,{"$f":"SUM(AQ32:AQ37)+SUM(AL32:AL37)","v":0}]
[null,null,null,null,null,null,null,null,null,null,null,null,null,null,null,null,null,null,null,null,null,null,null,null,null,null,null,null,null,null,null,null,"Holiday credit earned ______ hours."]
[]
[]
[]
[]
[]
[]
[null," ",null,null,null,null,null,null,null,null,null,null,null,null,null,"Simon"]
[" ",null,null,null,null,null,null,null,null,null,"Date",null,null,null,null,"Supervisor's Name",null,null,null,null,null,null,null,null,null,"Date"]
["Additional Labor Distribution For",null,null,null,null,null,null,null,null,null,null,null,null,null,null,null,null,null,null,null,null,null,"State of California",null,null,null,null,null,null,null,null,null,null,null,null,null,null,"Page",null,2,"of",2]
["Attendance and Labor",null,null,null,null,null,null,null,null,null,null,null,null,null,null,null,null,null,null,null,null,null,"Department of Fish and Wildlife",null,null,null,null,null,null,null,null,null,null,null,null,null,null,null,null,null,"Year","Mo"]
["Distribution Report",null,null,null,null,null,null,null,null,null,null,null,null,null,null,null,null,null,null,null,null,null,null,null,null,null,null,null,null,null,null,null,null,null,null,null,null,"Pay Period",null,null,{"$f":"AK1","v":0},{"$f":"AN1","v":1}]
["DFW 681 A (Rev. 02/02/2018)"]
[]
["I. EMPLOYEE INFORMATION",null,null,null,null,null,null,null,null,"Instructions on Reverse Side"]
["Name",null,null,null,null,null,null,null,"Div/Branch/Reg",null,null,null,null,null,null,"Social Security Number"]
[", ",null,null,null,null,null,null,null,{"$f":"$R$6","v":0},null,null,null,null,null,null,{"$f":"$V$6","v":0}]
["Work Phone Number",null,null,null,null,null,null,null,"Position Number"]
[{"$f":"$A$8","v":0},null,null,null,null,null,null,null,{"$f":"$I$8","v":0}]
[]
[]
["III. LABOR DISTRIBUTION"]
["Additional Labor Distribution totals will populate line 21 on the above Attendance Report"]
[31,1,2,3,4,5,6,7,8,9,10,11,12,13,14,15,16,17,18,19,20,21,22,23,24,25,26,27,28,29,30,31,"Total","Type","D","Reporting Structure","Project ID","On Call","Category",null,null,null,"Activity"]
[null,null,null,null,null,null,null,null,null,null,null,null,null,null,null,null,null,null,null,null,null,null,null,null,null,null,null,null,null,null,null,null,{"$f":"SUM(A63:AF63)","v":0},null,"N"]
[null,null,null,null,null,null,null,null,null,null,null,null,null,null,null,null,null,null,null,null,null,null,null,null,null,null,null,null,null,null,null,null,0,null,"N"]
[null,null,null,null,null,null,null,null,null,null,null,null,null,null,null,null,null,null,null,null,null,null,null,null,null,null,null,null,null,null,null,null,0,null,"N"]
[null,null,null,null,null,null,null,null,null,null,null,null,null,null,null,null,null,null,null,null,null,null,null,null,null,null,null,null,null,null,null,null,0,null,"N"]
[null,null,null,null,null,null,null,null,null,null,null,null,null,null,null,null,null,null,null,null,null,null,null,null,null,null,null,null,null,null,null,null,0,null,"N"]
[null,null,null,null,null,null,null,null,null,null,null,null,null,null,null,null,null,null,null,null,null,null,null,null,null,null,null,null,null,null,null,null,0,null,"N"]
[null,null,null,null,null,null,null,null,null,null,null,null,null,null,null,null,null,null,null,null,null,null,null,null,null,null,null,null,null,null,null,null,0,null,"N"]
[null,null,null,null,null,null,null,null,null,null,null,null,null,null,null,null,null,null,null,null,null,null,null,null,null,null,null,null,null,null,null,null,0,null,"N"]
[null,null,null,null,null,null,null,null,null,null,null,null,null,null,null,null,null,null,null,null,null,null,null,null,null,null,null,null,null,null,null,null,0,null,"N"]
[null,null,null,null,null,null,null,null,null,null,null,null,null,null,null,null,null,null,null,null,null,null,null,null,null,null,null,null,null,null,null,null,0,null,"N"]
[null,null,null,null,null,null,null,null,null,null,null,null,null,null,null,null,null,null,null,null,null,null,null,null,null,null,null,null,null,null,null,null,0,null,"N"]
[null,null,null,null,null,null,null,null,null,null,null,null,null,null,null,null,null,null,null,null,null,null,null,null,null,null,null,null,null,null,null,null,0,null,"N"]
[null,null,null,null,null,null,null,null,null,null,null,null,null,null,null,null,null,null,null,null,null,null,null,null,null,null,null,null,null,null,null,null,0,null,"N"]
[null,null,null,null,null,null,null,null,null,null,null,null,null,null,null,null,null,null,null,null,null,null,null,null,null,null,null,null,null,null,null,null,0,null,"N"]
[null,null,null,null,null,null,null,null,null,null,null,null,null,null,null,null,null,null,null,null,null,null,null,null,null,null,null,null,null,null,null,null,0,null,"N"]
[{"$f":"SUM(A63:A77)","v":0},0,0,0,0,0,0,0,0,0,0,0,0,0,0,0,0,0,0,0,0,0,0,0,0,0,0,0,0,0,0,0,0,"Total Hours"]
[31,1,2,3,4,5,6,7,8,9,10,11,12,13,14,15,16,17,18,19,20,21,22,23,24,25,26,27,28,29,30,31,"Enter Total on (DFW 681)"]
[null,null,null,null,null,null,null,null,null,null,null,null,null,null,null,null,null,null,null,null,null,null,null,null,null,null,null,null,null,null,null,null,null," "]
[null,null,null,null,null,null,null,null,null,null,null,null,null,null,null,null,null,null,null,null,null,null,null,null,null,null,null,null,null,null,null,null,null," "]
["DISTRIBUTION: ",null,null,null,null,null,null,"Accounting (ASB) - Original",null,null,null,null,null,null,null,null,"Supervisor",null,null,null,null,null,null,null,"Employee"]

{"sheet":"Dummy_Sheet","index":5,"n_rows":82,"n_cols":44,"rows_kept":82,"cut":false,"hidden":true,"merged":[[37,42,38,42],[33,39,33,40],[34,39,34,40],[35,39,35,40],[36,39,36,40],[32,37,32,38],[33,37,33,38],[34,37,34,38],[35,37,35,38],[36,37,36,38],[0,31,0,32],[1,27,1,29],[1,31,1,32],[9,30,9,31],[9,32,9,33],[8,39,8,42],[9,39,9,42],[8,30,8,31],[8,32,8,33],[8,34,8,35],[0,22,0,26],[5,39,5,42],[4,39,4,42],[33,32,33,35],[20,41,20,42],[3,9,3,16],[4,32,4,33],[6,34,6,35],[7,8,7,14],[7,15,7,28],[7,32,7,33],[7,34,7,35],[4,34,4,35],[4,30,4,31],[6,30,6,31],[6,32,6,33],[31,37,31,38],[25,32,25,39],[26,32,26,33],[26,34,26,36],[26,37,26,39],[27,32,27,36],[0,35,0,36],[0,27,0,29],[9,18,9,23],[12,38,12,41],[13,38,13,41],[22,0,22,7],[22,9,22,24],[18,38,18,41],[19,38,19,41],[22,25,22,30],[22,32,22,42],[14,38,14,41],[15,38,15,41],[16,38,16,41],[17,38,17,41],[24,32,24,39],[38,32,38,35],[28,32,28,36],[28,37,28,39],[34,32,34,35],[31,32,31,35],[36,32,36,35],[5,0,5,7],[5,8,5,14],[5,32,5,33],[5,34,5,35],[5,25,5,28],[5,21,5,24],[5,15,5,16],[5,17,5,20],[7,0,7,4],[7,5,7,7],[5,30,5,31],[7,30,7,31],[9,0,9,7],[9,8,9,12],[9,13,9,17],[9,34,9,35],[9,24,9,28],[40,1,40,13],[41,1,41,13],[40,15,40,27],[41,15,41,27],[42,15,44,23],[42,1,44,9],[42,10,44,13],[31,39,31,40],[37,0,38,31],[36,0,36,31],[32,32,32,35],[32,39,32,40],[37,39,38,41],[38,36,38,37],[35,32,35,35],[66,38,66,41],[45,1,45,9],[45,15,45,23],[62,38,62,41],[63,38,63,41],[64,38,64,41],[61,38,61,41],[42,24,44,27],[67,38,67,41],[46,1,46,13],[46,15,46,27],[60,0,60,31],[65,38,65,41],[54,0,54,7],[54,8,54,14],[54,15,54,21],[56,0,56,7],[56,8,56,21],[45,24,45,27],[45,10,45,13],[68,38,68,41],[73,38,73,41],[74,38,74,41],[75,38,75,41],[76,38,76,41],[69,38,69,41],[70,38,70,41],[71,38,71,41],[72,38,72,41]]}
[{"$f":"Master_Page!A1","v":"State of California"},null,null,null,null,null,null,null,null,null,null,null,null,null,null,null,{"$f":"Master_Page!Q1","v":"Attendance and Labor"},null,null,null,null,null,"Pay Period - From:",null,null,null,null,"2016-11-01",null,null,"To:","2016-11-30",null,null,"Year",2016,null,null,"Mo",11,"# Days",22]
[{"$f":"Master_Page!A2","v":"Department of Fish and Wildlife"},null,null,null,null,null,null,null,null,null,null,null,null,null,null,null,{"$f":"Master_Page!Q2","v":"Distribution Report"},null,null,null,null,null,null,null,null,null,null,"MM / DD /  YY",null,null,null,"MM / DD /  YY"]
[{"$f":"Master_Page!A3","v":"DFW 681 (Rev. 02/02/2018)"}]
["I. EMPLOYEE INFORMATION",null,null,null,null,null,null,null,null,null,null,null,null,null,null,null,null,null,null,null,null,null,null,null,null,null,null,null,null,null,"II. OTHER PAY HOURS"]
["Last Name",null,null,null,null,null,null,null,"First Name",null,null,null,null,null,null,"M.I.",null,"Div/Branch or Region",null,null,null,"Social Security Number",null,null,null,"Bargaining Unit Number",null,null,null,null,"Dive",null,"Comm. Driving",null,null,null,"Excess","CTO",null,"Audited By:"]
[" ",null,null,null,null,null,null,null," ",null,null,null,null,null,null," ",null," ",null,null,null,"    ",null,null,null,"R01",null,null,null,null,null,null,null,null,"Prev-Balance",null,{"$f":"SUM(December2022!AK10)","v":0}]
["Work Phone Number",null,null,null,null,"Phone Ext.",null,null,"  Position Number",null,null,null,null,null,null,"Classification Title",null,null,null,null,null,null,null,null,null,null,null,null,null,null,"SOU",null,"Shift",null,"Earned",null,{"$f":"+AO29","v":0},{"$f":"+AO27","v":0}]
[5555555555,null,null,null,null,"",null,null,5650301581009,null,null,null,null,null,null,"Staff Programmer Analyst (Specialist) ",null,null,null,null,null,null,null,null,null,null,null,null,null,null,null,null,null,null,"Total",null,{"$f":"+AK6+AK7","v":0},{"$f":"+AL6+AL7","v":0}]
["Work Week Schedule",null,null,null,null,null,null,null,"Time Base",null,null,null,null,"Work Week Group",null,null,null,null,"Assigned Days Off",null,null,null,null,null,"AWW Regular Day Off (RDO)",null,null,null,null,null,"FTO",null,"Holiday",null,"Used -",null,{"$f":"(AL37)","v":0},{"$f":"+AQ32","v":0},null,"Actual Time Worked-Days Limit"]
["Regular Schedule",null,null,null,null,null,null,null,"Full Time",null,null,null,null,"2",null,null,null,null,"Sat, Sun",null,null,null,null,null,"N/A",null,null,null,null,null,null,null,null,null,"Balance",null,{"$f":"+AK8-AK9","v":0},{"$f":"+AL8-AL9","v":0},null,{"$f":"IF(I10=\"int\",SUM(A22:AF22),COUNTIF(A22:AF22,\">0\"))","v":0}]
[]
["III. LABOR DISTRIBUTION"]
[null,1,2,3,4,5,6,7,8,9,10,11,12,13,14,15,16,17,18,19,20,21,22,23,24,25,26,27,28,29,30,null,"Total","Type","D","Index","PCA","On Call","Project/WP",null,null,null,"Activity"]
[null,null,null,null,null,null,null,null,null,null,null,null,null,null,null,null,null,null,null,null,null,null,null,null,null,null,null,null,null,null,null,null,{"$f":"SUM(A14:AF14)","v":0},"REG","N"]
[null,null,null,null,null,null,null,null,null,null,null,null,null,null,null,null,null,null,null,null,null,null,null,null,null,null,null,null,null,null,null,null,0,null,"N"]
[null,null,null,null,null,null,null,null,null,null,null,null,null,null,null,null,null,null,null,null,null,null,null,null,null,null,null,null,null,null,null,null,0,null,"N"]
[null,null,null,null,null,null,null,null,null,null,null,null,null,null,null,null,null,null,null,null,null,null,null,null,null,null,null,null,null,null,null,null,0,null,"N"]
[null,null,null,null,null,null,null,null,null,null,null,null,null,null,null,null,null,null,null,null,null,null,null,null,null,null,null,null,null,null,null,null,0,null,"N"]
[null,null,null,null,null,null,null,null,null,null,null,null,null,null,null,null,null,null,null,null,null,null,null,null,null,null,null,null,null,null,null,null,0,null,"N"]
[null,null,null,null,null,null,null,null,null,null,null,null,null,null,null,null,null,null,null,null,null,null,null,null,null,null,null,null,null,null,null,null,0,null,"N"]
[{"$f":"A78","v":0},0,0,0,0,0,0,0,0,0,0,0,0,0,0,0,0,0,0,0,0,0,0,0,0,0,0,0,0,0,0,0,{"$f":"SUM(A21:AF21)","v":0},"Total from DFW 681A(s) (Attach)"]
[{"$f":"SUM(A14:A21)","v":0},0,0,0,0,0,0,0,0,0,0,0,0,0,0,0,0,0,0,0,0,0,0,0,0,0,0,0,0,0,0,0,{"$f":"SUM(AG14:AG20) + SUM(AG63:AG77)","v":0},"Total Hours",null,null,null,176,"Hours Required this Month"]
["Carry over hours from previous month",null,null,null,null,null,null,null,null,null,null,null,null,null,null,null,null,null,null,null,null,null,null,null,null,"Carry over hours for month"]
["IV. EXTRA HOURS WORKED"]
[null,1,2,3,4,5,6,7,8,9,10,11,12,13,14,15,16,17,18,19,20,21,22,23,24,25,26,27,28,29,30,null,"Summary of Extra Hours Worked:",null,null,null,null,null,null,null,"Hours","Paid This PP","Carry Over"]
[null,null,null,null,null,null,null,null,null,null,null,null,null,null,null,null,null,null,null,null,null,null,null,null,null,null,null,null,null,null,null,null,"Cash",null,null,null,null,null,null,null,{"$f":"SUM(A26:AF26)","v":0}]
[null,null,null,null,null,null,null,null,null,null,null,null,null,null,null,null,null,null,null,null,null,null,null,null,null,null,null,null,null,null,null,null,"CTO",null,"(CT06)",null,null,"(CT07)",null,null,{"$f":"SUM(A27:AF27)","v":0}]
[null,null,null,null,null,null,null,null,null,null,null,null,null,null,null,null,null,null,null,null,null,null,null,null,null,null,null,null,null,null,null,null,"Other (On-call/Standby)",null,null,null,null,{"$f":"SUM(A28:AF28)","v":0}]
["V. ABSENCE INFORMATION",null,null,null,null,null,null,null,null,"Date of Absence:  Enter code and number of hours in date blocks.",null,null,null,null,null,null,null,null,null,null,null,null,null,null,null,null,null,null,null,null,null,null,"Excess Hours",null,null,null,null,"(EX05)",null,null,0]
[null,1,2,3,4,5,6,7,8,9,10,11,12,13,14,15,16,17,18,19,20,21,22,23,24,25,26,27,28,29,30,null,null,null,null,null,null,null,null,null,{"$f":"SUM(AO26:AO27)+AO29","v":0}]
[null,null,null,null,null,null,null,null,null,null,null,null,null,null,null,null,null,null,null,null,null,null,null,null,null,null,null,null,null,null,null,null,"Summary of Absences:",null,null,null,null,"Hours",null,null,null,null,"Hours"]
[null,null,null,null,null,null,null,null,null,null,null,null,null,null,null,null,null,null,null,null,null,null,null,null,null,null,null,null,null,null,null,null,"Sick-Self (S)",null,null,null,"(SL01)",0,null,"CTO (CT)",null,"(CT01)",0]
[null,null,null,null,null,null,null,null,null,null,null,null,null,null,null,null,null,null,null,null,null,null,null,null,null,null,null,null,null,null,null,null,"Sick-Family (FS)",null,null,null,"(SL02)",0,null,"Holiday (H) ",null,null,0]
[null,null,null,null,null,null,null,null,null,null,null,null,null,null,null,null,null,null,null,null,null,null,null,null,null,null,null,null,null,null,null,null,"Annual Leave (AL)",null,null,null,"(AL01)",0,null,"Pro.Dev. (PT)",null,null,0]
[null,null,null,null,null,null,null,null,null,null,null,null,null,null,null,null,null,null,null,null,null,null,null,null,null,null,null,null,null,null,null,null,"Vacation (V)",null,null,null,"(VA01)",0,null,"Other (O1)",null,null,0]
[null,null,null,null,null,null,null,null,null,null,null,null,null,null,null,null,null,null,null,null,null,null,null,null,null,null,null,null,null,null,null,null,"Personal Holiday (PH)",null,null,null,"(PH01)",0,null,"Other (O2)",null,null,0]
["Comments",null,null,null,null,null,null,null,null,null,null,null,null,null,null,null,null,null,null,null,null,null,null,null,null,null,null,null,null,null,null,null,"Excess (EX)",null,null,null,"(EX01)",0,null,"Other (O3)",null,null,0]
[null,null,null,null,null,null,null,null,null,null,null,null,null,null,null,null,null,null,null,null,null,null,null,null,null,null,null,null,null,null,null,null,null,null,null,null,null,null,null,"Absence Total",null,null,{"$f":"SUM(AQ32:AQ37)+SUM(AL32:AL37)","v":0}]
[null,null,null,null,null,null,null,null,null,null,null,null,null,null,null,null,null,null,null,null,null,null,null,null,null,null,null,null,null,null,null,null,"Holiday credit earned",null,null,null,0,null,"hrs"]
[]
[null,"Certification of Employee",null,null,null,null,null,null,null,null,null,null,null,null,null,"Certification of Supervisor"]
[null,"Employees are certifying to the accuracy of the data reported - See instructions.",null,null,null,null,null,null,null,null,null,null,null,null,null,"Supervisors are certifying to the accuracy of the data reported - See instructions."]
[null,null,null,null,null,null,null,null,null,null,{"$f":"TODAY()","v":"2022-02-10"}]
[]
[]
[null,"   .  ",null,null,null,null,null,null,null,null,"Date",null,null,null,null,"Patrick A. Gaul",null,null,null,null,null,null,null,null,"Date"]
[]
["Additional Labor Distribution For",null,null,null,null,null,null,null,null,null,null,null,null,null,null,null,null,null,null,null,null,null,"State of California",null,null,null,null,null,null,null,null,null,null,null,null,null,null,"Page",null,2,"of",2]
["Attendance and Labor",null,null,null,null,null,null,null,null,null,null,null,null,null,null,null,null,null,null,null,null,null,"Department of Fish and Wildlife",null,null,null,null,null,null,null,null,null,null,null,null,null,null,null,null,null,"Year","Mo"]
["Distribution Report",null,null,null,null,null,null,null,null,null,null,null,null,null,null,null,null,null,null,null,null,null,null,null,null,null,null,null,null,null,null,null,null,null,null,null,null,"Pay Period",null,null,{"$f":"AJ1","v":2016},{"$f":"AN1","v":11},null," "]
[{"$f":"Master_Page!A51","v":"DFW 681 A (Rev. 02/02/2018)"}]
[]
["I. EMPLOYEE INFORMATION",null,null,null,null,null,null,null,null,"Instructions on Reverse Side"]
["Name",null,null,null,null,null,null,null,"Div/Branch/Reg",null,null,null,null,null,null,"Social Security Number"]
[{"$f":"Master_Page!A55","v":", "},null,null,null,null,null,null,null,{"$f":"Master_Page!R6","v":0},null,null,null,null,null,null,{"$f":"$V$6","v":"    "}]
["Work Phone Number",null,null,null,null,null,null,null,"Position Number"]
[{"$f":"$A$8","v":5555555555},null,null,null,null,null,null,null,{"$f":"$I$8","v":5650301581009}]
[]
[]
["III. LABOR DISTRIBUTION"]
["Additional Labor Distribution totals will populate line 21 on the above Attendance Report"]
[null,1,2,3,4,5,6,7,8,9,10,11,12,13,14,15,16,17,18,19,20,21,22,23,24,25,26,27,28,29,30,null,"Total","Type","D","Index","PCA","On Call","Project/WP",null,null,null,"Activity"]
[null,null,null,null,null,null,null,null,null,null,null,null,null,null,null,null,null,null,null,null,null,null,null,null,null,null,null,null,null,null,null,null,{"$f":"SUM(A63:AF63)","v":0},null,"N"]
[null,null,null,null,null,null,null,null,null,null,null,null,null,null,null,null,null,null,null,null,null,null,null,null,null,null,null,null,null,null,null,null,0,null,"N"]
[null,null,null,null,null,null,null,null,null,null,null,null,null,null,null,null,null,null,null,null,null,null,null,null,null,null,null,null,null,null,null,null,0,null,"N"]
[null,null,null,null,null,null,null,null,null,null,null,null,null,null,null,null,null,null,null,null,null,null,null,null,null,null,null,null,null,null,null,null,0,null,"N"]
[null,null,null,null,null,null,null,null,null,null,null,null,null,null,null,null,null,null,null,null,null,null,null,null,null,null,null,null,null,null,null,null,0,null,"N"]
[null,null,null,null,null,null,null,null,null,null,null,null,null,null,null,null,null,null,null,null,null,null,null,null,null,null,null,null,null,null,null,null,0,null,"N"]
[null,null,null,null,null,null,null,null,null,null,null,null,null,null,null,null,null,null,null,null,null,null,null,null,null,null,null,null,null,null,null,null,0,null,"N"]
[null,null,null,null,null,null,null,null,null,null,null,null,null,null,null,null,null,null,null,null,null,null,null,null,null,null,null,null,null,null,null,null,0,null,"N"]
[null,null,null,null,null,null,null,null,null,null,null,null,null,null,null,null,null,null,null,null,null,null,null,null,null,null,null,null,null,null,null,null,0,null,"N"]
[null,null,null,null,null,null,null,null,null,null,null,null,null,null,null,null,null,null,null,null,null,null,null,null,null,null,null,null,null,null,null,null,0,null,"N"]
[null,null,null,null,null,null,null,null,null,null,null,null,null,null,null,null,null,null,null,null,null,null,null,null,null,null,null,null,null,null,null,null,0,null,"N"]
[null,null,null,null,null,null,null,null,null,null,null,null,null,null,null,null,null,null,null,null,null,null,null,null,null,null,null,null,null,null,null,null,0,null,"N"]
[null,null,null,null,null,null,null,null,null,null,null,null,null,null,null,null,null,null,null,null,null,null,null,null,null,null,null,null,null,null,null,null,0,null,"N"]
[null,null,null,null,null,null,null,null,null,null,null,null,null,null,null,null,null,null,null,null,null,null,null,null,null,null,null,null,null,null,null,null,0,null,"N"]
[null,null,null,null,null,null,null,null,null,null,null,null,null,null,null,null,null,null,null,null,null,null,null,null,null,null,null,null,null,null,null,null,0,null,"N"]
[{"$f":"SUM(A63:A77)","v":0},0,0,0,0,0,0,0,0,0,0,0,0,0,0,0,0,0,0,0,0,0,0,0,0,0,0,0,0,0,0,0,{"$f":"SUM(AG63:AG77)","v":0}]
[null,1,2,3,4,5,6,7,8,9,10,11,12,13,14,15,16,17,18,19,20,21,22,23,24,25,26,27,28,29,30,null,"Enter Total on (DFW 681)"]
[null,null,null,null,null,null,null,null,null,null,null,null,null,null,null,null,null,null,null,null,null,null,null,null,null,null,null,null,null,null,null,null,null," "]
[null,null,null,null,null,null,null,null,null,null,null,null,null,null,null,null,null,null,null,null,null,null,null,null,null,null,null,null,null,null,null,null,null," "]
["DISTRIBUTION: ",null,null,null,null,null,"Accounting (ASB) - Original",null,null,null,null,null,null,null,null,null,"Supervisor",null,null,null,null,null,null,null,"Employee"]

{"sheet":"January2022","index":6,"n_rows":82,"n_cols":44,"rows_kept":82,"cut":false,"hidden":false,"merged":[[73,38,73,41],[74,38,74,41],[75,38,75,41],[76,38,76,41],[67,38,67,41],[68,38,68,41],[69,38,69,41],[70,38,70,41],[71,38,71,41],[72,38,72,41],[61,38,61,41],[62,38,62,41],[63,38,63,41],[64,38,64,41],[65,38,65,41],[66,38,66,41],[54,0,54,7],[54,8,54,14],[54,15,54,21],[56,0,56,7],[56,8,56,21],[60,0,60,31],[45,1,45,9],[45,10,45,13],[45,15,45,23],[45,24,45,27],[46,1,46,13],[46,15,46,27],[41,1,41,13],[41,15,41,27],[42,1,44,9],[42,10,44,13],[42,15,44,23],[42,24,44,27],[37,0,38,31],[37,39,38,41],[37,42,38,42],[38,32,38,35],[38,36,38,37],[40,1,40,13],[40,15,40,27],[35,32,35,35],[35,37,35,38],[35,39,35,40],[36,0,36,31],[36,32,36,35],[36,37,36,38],[36,39,36,40],[33,32,33,35],[33,37,33,38],[33,39,33,40],[34,32,34,35],[34,37,34,38],[34,39,34,40],[31,32,31,35],[31,37,31,38],[31,39,31,40],[32,32,32,35],[32,37,32,38],[32,39,32,40],[25,32,25,39],[26,32,26,33],[26,34,26,36],[26,37,26,39],[27,32,27,36],[28,32,28,36],[28,37,28,39],[20,41,20,42],[22,0,22,7],[22,9,22,24],[22,25,22,30],[22,32,22,42],[24,32,24,39],[14,38,14,41],[15,38,15,41],[16,38,16,41],[17,38,17,41],[18,38,18,41],[19,38,19,41],[9,30,9,31],[9,32,9,33],[9,34,9,35],[9,39,9,42],[12,38,12,41],[13,38,13,41],[7,34,7,35],[8,30,8,31],[8,32,8,33],[8,34,8,35],[8,39,8,42],[9,0,9,7],[9,8,9,12],[9,13,9,17],[9,18,9,23],[9,24,9,28],[7,0,7,4],[7,5,7,7],[7,8,7,14],[7,15,7,28],[7,30,7,31],[7,32,7,33],[5,39,5,42],[6,30,6,31],[6,32,6,33],[6,34,6,35],[3,9,3,16],[4,30,4,31],[4,32,4,33],[4,34,4,35],[4,39,4,42],[5,0,5,7],[5,8,5,14],[5,15,5,16],[5,17,5,20],[5,21,5,24],[0,22,0,26],[0,27,0,29],[0,31,0,32],[0,35,0,36],[1,27,1,29],[1,31,1,32],[5,25,5,28],[5,30,5,31],[5,32,5,33],[5,34,5,35]]}
[{"$f":"Master_Page!A1","v":"State of California"},null,null,null,null,null,null,null,null,null,null,null,null,null,null,null,{"$f":"Master_Page!Q1","v":"Attendance and Labor"},null,null,null,null,null,"Pay Period - From:",null,null,null,null,"2019-01-01",null,null,"To:","2019-01-30",null,null,"Year",2019,null,null,"Mo",1,"# Days",22]
[{"$f":"Master_Page!A2","v":"Department of Fish and Wildlife"},null,null,null,null,null,null,null,null,null,null,null,null,null,null,null,{"$f":"Master_Page!Q2","v":"Distribution Report"},null,null,null,null,null,null,null,null,null,null,"MM / DD /  YY",null,null,null,"MM / DD /  YY"]
["DFW 681 (Rev. 02/02/2018)"]
["I. EMPLOYEE INFORMATION",null,null,null,null,null,null,null,null,null,null,null,null,null,null,null,null,null,null,null,null,null,null,null,null,null,null,null,null,null,"II. OTHER PAY HOURS"]
["Last Name",null,null,null,null,null,null,null,"First Name",null,null,null,null,null,null,"M.I.",null,"Div/Branch or Region",null,null,null,"Social Security Number",null,null,null,"Bargaining Unit Number",null,null,null,null,"Dive",null,"Comm. Driving",null,null,null,"Excess","CTO",null,"Audited By:"]
[" ",null,null,null,null,null,null,null," ",null,null,null,null,null,null," ",null," ",null,null,null,"0000",null,null,null,"R01",null,null,null,null,null,null,null,null,"Prev-Balance",null,0]
["Work Phone Number",null,null,null,null,"Phone Ext.",null,null,"  Position Number",null,null,null,null,null,null,"Classification Title",null,null,null,null,null,null,null,null,null,null,null,null,null,null,"SOU",null,"Shift",null,"Earned",null,{"$f":"+AO29","v":0},{"$f":"+AO27","v":0}]
[9165555555,null,null,null,null,"",null,null,5653031581001,null,null,null,null,null,null,"Staff Programmer Analyst (Specialist) ",null,null,null,null,null,null,null,null,null,null,null,null,null,null,null,null,null,null,"Total",null,{"$f":"+AK6+AK7","v":0},{"$f":"+AL6+AL7","v":0}]
["Work Week Schedule",null,null,null,null,null,null,null,"Time Base",null,null,null,null,"Work Week Group",null,null,null,null,"Assigned Days Off",null,null,null,null,null,"AWW Regular Day Off (RDO)",null,null,null,null,null,"FTO",null,"Holiday",null,"Used -",null,{"$f":"(AL37)","v":0},{"$f":"+AQ32","v":0},null,"Actual Time Worked-Days Limit"]
["Regular Schedule",null,null,null,null,null,null,null,"Full Time",null,null,null,null,"2",null,null,null,null,"Sat, Sun",null,null,null,null,null,"N/A",null,null,null,null,null,null,null,null,null,"Balance",null,{"$f":"+AK8-AK9","v":0},{"$f":"+AL8-AL9","v":0},null,{"$f":"IF(I10=\"int\",SUM(A22:AF22),COUNTIF(A22:AF22,\">0\"))","v":0}]
[]
["III. LABOR DISTRIBUTION"]
[null,1,2,3,4,5,6,7,8,9,10,11,12,13,14,15,16,17,18,19,20,21,22,23,24,25,26,27,28,29,30,null,"Total","Type","D","Reporting Structure","Project ID","On Call","Project/WP",null,null,null,"Activity"]
[null,null,null,null,null,null,null,null,null,null,null,null,null,null,null,null,null,null,null,null,null,null,null,null,null,null,null,null,null,null,null,null,{"$f":"SUM(A14:AF14)","v":0},"REG","N"]
[null,null,null,null,null,null,null,null,null,null,null,null,null,null,null,null,null,null,null,null,null,null,null,null,null,null,null,null,null,null,null,null,0,null,"N"]
[null,null,null,null,null,null,null,null,null,null,null,null,null,null,null,null,null,null,null,null,null,null,null,null,null,null,null,null,null,null,null,null,0,null,"N"]
[null,null,null,null,null,null,null,null,null,null,null,null,null,null,null,null,null,null,null,null,null,null,null,null,null,null,null,null,null,null,null,null,0,null,"N"]
[null,null,null,null,null,null,null,null,null,null,null,null,null,null,null,null,null,null,null,null,null,null,null,null,null,null,null,null,null,null,null,null,0,null,"N"]
[null,null,null,null,null,null,null,null,null,null,null,null,null,null,null,null,null,null,null,null,null,null,null,null,null,null,null,null,null,null,null,null,0,null,"N"]
[null,null,null,null,null,null,null,null,null,null,null,null,null,null,null,null,null,null,null,null,null,null,null,null,null,null,null,null,null,null,null,null,0,null,"N"]
[{"$f":"A78","v":0},0,0,0,0,0,0,0,0,0,0,0,0,0,0,0,0,0,0,0,0,0,0,0,0,0,0,0,0,0,0,0,{"$f":"SUM(A21:AF21)","v":0},"Total from DFW 681A(s) (Attach)"]
[{"$f":"SUM(A14:A21)","v":0},0,0,0,0,0,0,0,0,0,0,0,0,0,0,0,0,0,0,0,0,0,0,0,0,0,0,0,0,0,0,0,{"$f":"SUM(AG14:AG20) + SUM(AG63:AG77)","v":0},"Total Hours",null,null,null,176,"Hours Required this Month"]
["Carry over hours from previous month",null,null,null,null,null,null,null,null,null,null,null,null,null,null,null,null,null,null,null,null,null,null,null,null,"Carry over hours for month"]
["IV. EXTRA HOURS WORKED"]
[null,1,2,3,4,5,6,7,8,9,10,11,12,13,14,15,16,17,18,19,20,21,22,23,24,25,26,27,28,29,30,null,"Summary of Extra Hours Worked:",null,null,null,null,null,null,null,"Hours","Paid This PP","Carry Over"]
[null,null,null,null,null,null,null,null,null,null,null,null,null,null,null,null,null,null,null,null,null,null,null,null,null,null,null,null,null,null,null,null,"Cash",null,null,null,null,null,null,null,{"$f":"SUM(A26:AF26)","v":0}]
[null,null,null,null,null,null,null,null,null,null,null,null,null,null,null,null,null,null,null,null,null,null,null,null,null,null,null,null,null,null,null,null,"CTO",null,"(CT06)",null,null,"(CT07)",null,null,{"$f":"SUM(A27:AF27)","v":0}]
[null,null,null,null,null,null,null,null,null,null,null,null,null,null,null,null,null,null,null,null,null,null,null,null,null,null,null,null,null,null,null,null,"Other (On-call/Standby)",null,null,null,null,{"$f":"SUM(A28:AF28)","v":0}]
["V. ABSENCE INFORMATION",null,null,null,null,null,null,null,null,"Date of Absence:  Enter code and number of hours in date blocks.",null,null,null,null,null,null,null,null,null,null,null,null,null,null,null,null,null,null,null,null,null,null,"Excess Hours",null,null,null,null,"(EX05)",null,null,0]
[null,1,2,3,4,5,6,7,8,9,10,11,12,13,14,15,16,17,18,19,20,21,22,23,24,25,26,27,28,29,30,null,null,null,null,null,null,null,null,null,{"$f":"SUM(AO26:AO27)+AO29","v":0}]
[null,null,null,null,null,null,null,null,null,null,null,null,null,null,null,null,null,null,null,null,null,null,null,null,null,null,null,null,null,null,null,null,"Summary of Absences:",null,null,null,null,"Hours",null,null,null,null,"Hours"]
[null,null,null,null,null,null,null,null,null,null,null,null,null,null,null,null,null,null,null,null,null,null,null,null,null,null,null,null,null,null,null,null,"Sick-Self (S)",null,null,null,"(SL01)",0,null,"CTO (CT)",null,"(CT01)",0]
[null,null,null,null,null,null,null,null,null,null,null,null,null,null,null,null,null,null,null,null,null,null,null,null,null,null,null,null,null,null,null,null,"Sick-Family (FS)",null,null,null,"(SL02)",0,null,"Holiday (H) ",null,null,0]
[null,null,null,null,null,null,null,null,null,null,null,null,null,null,null,null,null,null,null,null,null,null,null,null,null,null,null,null,null,null,null,null,"Annual Leave (AL)",null,null,null,"(AL01)",0,null,"Pro.Dev. (PT)",null,null,0]
[null,null,null,null,null,null,null,null,null,null,null,null,null,null,null,null,null,null,null,null,null,null,null,null,null,null,null,null,null,null,null,null,"Vacation (V)",null,null,null,"(VA01)",0,null,"Other (O1)",null,null,0]
[null,null,null,null,null,null,null,null,null,null,null,null,null,null,null,null,null,null,null,null,null,null,null,null,null,null,null,null,null,null,null,null,"Personal Holiday (PH)",null,null,null,"(PH01)",0,null,"Other (O2)",null,null,0]
["Comments",null,null,null,null,null,null,null,null,null,null,null,null,null,null,null,null,null,null,null,null,null,null,null,null,null,null,null,null,null,null,null,"Excess (EX)",null,null,null,"(EX01)",0,null,"Other (O3)",null,null,0]
[null,null,null,null,null,null,null,null,null,null,null,null,null,null,null,null,null,null,null,null,null,null,null,null,null,null,null,null,null,null,null,null,null,null,null,null,null,null,null,"Absence Total",null,null,{"$f":"SUM(AQ32:AQ37)+SUM(AL32:AL37)","v":0}]
[null,null,null,null,null,null,null,null,null,null,null,null,null,null,null,null,null,null,null,null,null,null,null,null,null,null,null,null,null,null,null,null,"Holiday credit earned",null,null,null,0,null,"hrs"]
[]
[null,"Certification of Employee",null,null,null,null,null,null,null,null,null,null,null,null,null,"Certification of Supervisor"]
[null,"Employees are certifying to the accuracy of the data reported - See instructions.",null,null,null,null,null,null,null,null,null,null,null,null,null,"Supervisors are certifying to the accuracy of the data reported - See instructions."]
[null,null,null,null,null,null,null,null,null,null,{"$f":"TODAY()","v":"2022-02-10"}]
[]
[]
[null,"   .  ",null,null,null,null,null,null,null,null,"Date",null,null,null,null,"Simon",null,null,null,null,null,null,null,null,"Date"]
[]
["Additional Labor Distribution For",null,null,null,null,null,null,null,null,null,null,null,null,null,null,null,null,null,null,null,null,null,"State of California",null,null,null,null,null,null,null,null,null,null,null,null,null,null,"Page",null,2,"of",2]
["Attendance and Labor",null,null,null,null,null,null,null,null,null,null,null,null,null,null,null,null,null,null,null,null,null,"Department of Fish and Wildlife",null,null,null,null,null,null,null,null,null,null,null,null,null,null,null,null,null,"Year","Mo"]
["Distribution Report",null,null,null,null,null,null,null,null,null,null,null,null,null,null,null,null,null,null,null,null,null,null,null,null,null,null,null,null,null,null,null,null,null,null,null,null,"Pay Period",null,null,{"$f":"AJ1","v":2019},{"$f":"AN1","v":1},null," "]
["DFW 681 A (Rev. 02/02/2018)"]
[]
["I. EMPLOYEE INFORMATION",null,null,null,null,null,null,null,null,"Instructions on Reverse Side"]
["Name",null,null,null,null,null,null,null,"Div/Branch/Reg",null,null,null,null,null,null,"Social Security Number"]
[{"$f":"Master_Page!A55","v":", "},null,null,null,null,null,null,null,{"$f":"Master_Page!R6","v":0},null,null,null,null,null,null,{"$f":"$V$6","v":"0000"}]
["Work Phone Number",null,null,null,null,null,null,null,"Position Number"]
[{"$f":"$A$8","v":9165555555},null,null,null,null,null,null,null,{"$f":"$I$8","v":5653031581001}]
[]
[]
["III. LABOR DISTRIBUTION"]
["Additional Labor Distribution totals will populate line 21 on the above Attendance Report"]
[null,1,2,3,4,5,6,7,8,9,10,11,12,13,14,15,16,17,18,19,20,21,22,23,24,25,26,27,28,29,30,null,"Total","Type","D","Reporting Structure","Project ID","On Call","Category",null,null,null,"Activity"]
[null,null,null,null,null,null,null,null,null,null,null,null,null,null,null,null,null,null,null,null,null,null,null,null,null,null,null,null,null,null,null,null,{"$f":"SUM(A63:AF63)","v":0},null,"N"]
[null,null,null,null,null,null,null,null,null,null,null,null,null,null,null,null,null,null,null,null,null,null,null,null,null,null,null,null,null,null,null,null,0,null,"N"]
[null,null,null,null,null,null,null,null,null,null,null,null,null,null,null,null,null,null,null,null,null,null,null,null,null,null,null,null,null,null,null,null,0,null,"N"]
[null,null,null,null,null,null,null,null,null,null,null,null,null,null,null,null,null,null,null,null,null,null,null,null,null,null,null,null,null,null,null,null,0,null,"N"]
[null,null,null,null,null,null,null,null,null,null,null,null,null,null,null,null,null,null,null,null,null,null,null,null,null,null,null,null,null,null,null,null,0,null,"N"]
[null,null,null,null,null,null,null,null,null,null,null,null,null,null,null,null,null,null,null,null,null,null,null,null,null,null,null,null,null,null,null,null,0,null,"N"]
[null,null,null,null,null,null,null,null,null,null,null,null,null,null,null,null,null,null,null,null,null,null,null,null,null,null,null,null,null,null,null,null,0,null,"N"]
[null,null,null,null,null,null,null,null,null,null,null,null,null,null,null,null,null,null,null,null,null,null,null,null,null,null,null,null,null,null,null,null,0,null,"N"]
[null,null,null,null,null,null,null,null,null,null,null,null,null,null,null,null,null,null,null,null,null,null,null,null,null,null,null,null,null,null,null,null,0,null,"N"]
[null,null,null,null,null,null,null,null,null,null,null,null,null,null,null,null,null,null,null,null,null,null,null,null,null,null,null,null,null,null,null,null,0,null,"N"]
[null,null,null,null,null,null,null,null,null,null,null,null,null,null,null,null,null,null,null,null,null,null,null,null,null,null,null,null,null,null,null,null,0,null,"N"]
[null,null,null,null,null,null,null,null,null,null,null,null,null,null,null,null,null,null,null,null,null,null,null,null,null,null,null,null,null,null,null,null,0,null,"N"]
[null,null,null,null,null,null,null,null,null,null,null,null,null,null,null,null,null,null,null,null,null,null,null,null,null,null,null,null,null,null,null,null,0,null,"N"]
[null,null,null,null,null,null,null,null,null,null,null,null,null,null,null,null,null,null,null,null,null,null,null,null,null,null,null,null,null,null,null,null,0,null,"N"]
[null,null,null,null,null,null,null,null,null,null,null,null,null,null,null,null,null,null,null,null,null,null,null,null,null,null,null,null,null,null,null,null,0,null,"N"]
[{"$f":"SUM(A63:A77)","v":0},0,0,0,0,0,0,0,0,0,0,0,0,0,0,0,0,0,0,0,0,0,0,0,0,0,0,0,0,0,0,0,{"$f":"SUM(AG63:AG77)","v":0}]
[null,1,2,3,4,5,6,7,8,9,10,11,12,13,14,15,16,17,18,19,20,21,22,23,24,25,26,27,28,29,30,null,"Enter Total on (DFW 681)"]
[null,null,null,null,null,null,null,null,null,null,null,null,null,null,null,null,null,null,null,null,null,null,null,null,null,null,null,null,null,null,null,null,null," "]
[null,null,null,null,null,null,null,null,null,null,null,null,null,null,null,null,null,null,null,null,null,null,null,null,null,null,null,null,null,null,null,null,null," "]
["DISTRIBUTION: ",null,null,null,null,null,"Accounting (ASB) - Original",null,null,null,null,null,null,null,null,null,"Supervisor",null,null,null,null,null,null,null,"Employee"]

{"sheet":"February2022","index":7,"n_rows":82,"n_cols":44,"rows_kept":82,"cut":false,"hidden":false,"merged":[[73,38,73,41],[74,38,74,41],[75,38,75,41],[76,38,76,41],[67,38,67,41],[68,38,68,41],[69,38,69,41],[70,38,70,41],[71,38,71,41],[72,38,72,41],[61,38,61,41],[62,38,62,41],[63,38,63,41],[64,38,64,41],[65,38,65,41],[66,38,66,41],[54,0,54,7],[54,8,54,14],[54,15,54,21],[56,0,56,7],[56,8,56,21],[60,0,60,31],[45,1,45,9],[45,10,45,13],[45,15,45,23],[45,24,45,27],[46,1,46,13],[46,15,46,27],[41,1,41,13],[41,15,41,27],[42,1,44,9],[42,10,44,13],[42,15,44,23],[42,24,44,27],[37,0,38,31],[37,39,38,41],[37,42,38,42],[38,32,38,35],[38,36,38,37],[40,1,40,13],[40,15,40,27],[35,32,35,35],[35,37,35,38],[35,39,35,40],[36,0,36,31],[36,32,36,35],[36,37,36,38],[36,39,36,40],[33,32,33,35],[33,37,33,38],[33,39,33,40],[34,32,34,35],[34,37,34,38],[34,39,34,40],[31,32,31,35],[31,37,31,38],[31,39,31,40],[32,32,32,35],[32,37,32,38],[32,39,32,40],[25,32,25,39],[26,32,26,33],[26,34,26,36],[26,37,26,39],[27,32,27,36],[28,32,28,36],[28,37,28,39],[20,41,20,42],[22,0,22,7],[22,9,22,24],[22,25,22,30],[22,32,22,42],[24,32,24,39],[14,38,14,41],[15,38,15,41],[16,38,16,41],[17,38,17,41],[18,38,18,41],[19,38,19,41],[9,30,9,31],[9,32,9,33],[9,34,9,35],[9,39,9,42],[12,38,12,41],[13,38,13,41],[7,34,7,35],[8,30,8,31],[8,32,8,33],[8,34,8,35],[8,39,8,42],[9,0,9,7],[9,8,9,12],[9,13,9,17],[9,18,9,23],[9,24,9,28],[7,0,7,4],[7,5,7,7],[7,8,7,14],[7,15,7,28],[7,30,7,31],[7,32,7,33],[5,39,5,42],[6,30,6,31],[6,32,6,33],[6,34,6,35],[3,9,3,16],[4,30,4,31],[4,32,4,33],[4,34,4,35],[4,39,4,42],[5,0,5,7],[5,8,5,14],[5,15,5,16],[5,17,5,20],[5,21,5,24],[0,22,0,26],[0,27,0,29],[0,31,0,32],[0,35,0,36],[1,27,1,29],[1,31,1,32],[5,25,5,28],[5,30,5,31],[5,32,5,33],[5,34,5,35]]}
[{"$f":"Master_Page!A1","v":"State of California"},null,null,null,null,null,null,null,null,null,null,null,null,null,null,null,{"$f":"Master_Page!Q1","v":"Attendance and Labor"},null,null,null,null,null,"Pay Period - From:",null,null,null,null,"2019-01-31",null,null,"To:","2019-02-28",null,null,"Year",2019,null,null,"Mo",2,"# Days",21]
[{"$f":"Master_Page!A2","v":"Department of Fish and Wildlife"},null,null,null,null,null,null,null,null,null,null,null,null,null,null,null,{"$f":"Master_Page!Q2","v":"Distribution Report"},null,null,null,null,null,null,null,null,null,null,"MM / DD /  YY",null,null,null,"MM / DD /  YY"]
["DFW 681 (Rev. 02/02/2018)"]
["I. EMPLOYEE INFORMATION",null,null,null,null,null,null,null,null,null,null,null,null,null,null,null,null,null,null,null,null,null,null,null,null,null,null,null,null,null,"II. OTHER PAY HOURS"]
["Last Name",null,null,null,null,null,null,null,"First Name",null,null,null,null,null,null,"M.I.",null,"Div/Branch or Region",null,null,null,"Social Security Number",null,null,null,"Bargaining Unit Number",null,null,null,null,"Dive",null,"Comm. Driving",null,null,null,"Excess","CTO",null,"Audited By:"]
[" ",null,null,null,null,null,null,null," ",null,null,null,null,null,null," ",null," ",null,null,null,"0000",null,null,null,"R01",null,null,null,null,null,null,null,null,"Prev-Balance",null,{"$f":"SUM(January2022!AK10)","v":0}]
["Work Phone Number",null,null,null,null,"Phone Ext.",null,null,"  Position Number",null,null,null,null,null,null,"Classification Title",null,null,null,null,null,null,null,null,null,null,null,null,null,null,"SOU",null,"Shift",null,"Earned",null,{"$f":"+AO29","v":0},{"$f":"+AO27","v":0}]
[9165555555,null,null,null,null,"",null,null,5653031581001,null,null,null,null,null,null,"Staff Programmer Analyst (Specialist) ",null,null,null,null,null,null,null,null,null,null,null,null,null,null,null,null,null,null,"Total",null,{"$f":"+AK6+AK7","v":0},{"$f":"+AL6+AL7","v":0}]
["Work Week Schedule",null,null,null,null,null,null,null,"Time Base",null,null,null,null,"Work Week Group",null,null,null,null,"Assigned Days Off",null,null,null,null,null,"AWW Regular Day Off (RDO)",null,null,null,null,null,"FTO",null,"Holiday",null,"Used -",null,{"$f":"(AL37)","v":0},{"$f":"+AQ32","v":0},null,"Actual Time Worked-Days Limit"]
["Regular Schedule",null,null,null,null,null,null,null,"Full Time",null,null,null,null,"2",null,null,null,null,"Sat, Sun",null,null,null,null,null,"N/A",null,null,null,null,null,null,null,null,null,"Balance",null,{"$f":"+AK8-AK9","v":0},{"$f":"+AL8-AL9","v":0},null,{"$f":"IF(I10=\"int\",SUM(A22:AF22),COUNTIF(A22:AF22,\">0\"))","v":0}]
[]
["III. LABOR DISTRIBUTION"]
[null,31,1,2,3,4,5,6,7,8,9,10,11,12,13,14,15,16,17,18,19,20,21,22,23,24,25,26,27,28,null,null,"Total","Type","D","Reporting Structure","Project ID","On Call","Project/WP",null,null,null,"Activity"]
[null,null,null,null,null,null,null,null,null,null,null,null,null,null,null,null,null,null,null,null,null,null,null,null,null,null,null,null,null,null,null,null,{"$f":"SUM(A14:AF14)","v":0},"REG","N"]
[null,null,null,null,null,null,null,null,null,null,null,null,null,null,null,null,null,null,null,null,null,null,null,null,null,null,null,null,null,null,null,null,0,null,"N"]
[null,null,null,null,null,null,null,null,null,null,null,null,null,null,null,null,null,null,null,null,null,null,null,null,null,null,null,null,null,null,null,null,0,null,"N"]
[null,null,null,null,null,null,null,null,null,null,null,null,null,null,null,null,null,null,null,null,null,null,null,null,null,null,null,null,null,null,null,null,0,null,"N"]
[null,null,null,null,null,null,null,null,null,null,null,null,null,null,null,null,null,null,null,null,null,null,null,null,null,null,null,null,null,null,null,null,0,null,"N"]
[null,null,null,null,null,null,null,null,null,null,null,null,null,null,null,null,null,null,null,null,null,null,null,null,null,null,null,null,null,null,null,null,0,null,"N"]
[null,null,null,null,null,null,null,null,null,null,null,null,null,null,null,null,null,null,null,null,null,null,null,null,null,null,null,null,null,null,null,null,0,null,"N"]
[{"$f":"A78","v":0},0,0,0,0,0,0,0,0,0,0,0,0,0,0,0,0,0,0,0,0,0,0,0,0,0,0,0,0,0,0,0,{"$f":"SUM(A21:AF21)","v":0},"Total from DFW 681A(s) (Attach)"]
[{"$f":"SUM(A14:A21)","v":0},0,0,0,0,0,0,0,0,0,0,0,0,0,0,0,0,0,0,0,0,0,0,0,0,0,0,0,0,0,0,0,{"$f":"SUM(AG14:AG20) + SUM(AG63:AG77)","v":0},"Total Hours",null,null,null,168,"Hours Required this Month"]
["Carry over hours from previous month",null,null,null,null,null,null,null,null,null,null,null,null,null,null,null,null,null,null,null,null,null,null,null,null,"Carry over hours for month"]
["IV. EXTRA HOURS WORKED"]
[null,31,1,2,3,4,5,6,7,8,9,10,11,12,13,14,15,16,17,18,19,20,21,22,23,24,25,26,27,28,null,null,"Summary of Extra Hours Worked:",null,null,null,null,null,null,null,"Hours","Paid This PP","Carry Over"]
[null,null,null,null,null,null,null,null,null,null,null,null,null,null,null,null,null,null,null,null,null,null,null,null,null,null,null,null,null,null,null,null,"Cash",null,null,null,null,null,null,null,{"$f":"SUM(A26:AF26)","v":0}]
[null,null,null,null,null,null,null,null,null,null,null,null,null,null,null,null,null,null,null,null,null,null,null,null,null,null,null,null,null,null,null,null,"CTO",null,"(CT06)",null,null,"(CT07)",null,null,{"$f":"SUM(A27:AF27)","v":0}]
[null,null,null,null,null,null,null,null,null,null,null,null,null,null,null,null,null,null,null,null,null,null,null,null,null,null,null,null,null,null,null,null,"Other (On-call/Standby)",null,null,null,null,{"$f":"SUM(A28:AF28)","v":0}]
["V. ABSENCE INFORMATION",null,null,null,null,null,null,null,null,"Date of Absence:  Enter code and number of hours in date blocks.",null,null,null,null,null,null,null,null,null,null,null,null,null,null,null,null,null,null,null,null,null,null,"Excess Hours",null,null,null,null,"(EX05)",null,null,0]
[null,31,1,2,3,4,5,6,7,8,9,10,11,12,13,14,15,16,17,18,19,20,21,22,23,24,25,26,27,28,null,null,null,null,null,null,null,null,null,null,{"$f":"SUM(AO26:AO27)+AO29","v":0}]
[null,null,null,null,null,null,null,null,null,null,null,null,null,null,null,null,null,null,null,null,null,null,null,null,null,null,null,null,null,null,null,null,"Summary of Absences:",null,null,null,null,"Hours",null,null,null,null,"Hours"]
[null,null,null,null,null,null,null,null,null,null,null,null,null,null,null,null,null,null,null,null,null,null,null,null,null,null,null,null,null,null,null,null,"Sick-Self (S)",null,null,null,"(SL01)",0,null,"CTO (CT)",null,"(CT01)",0]
[null,null,null,null,null,null,null,null,null,null,null,null,null,null,null,null,null,null,null,null,null,null,null,null,null,null,null,null,null,null,null,null,"Sick-Family (FS)",null,null,null,"(SL02)",0,null,"Holiday (H) ",null,null,0]
[null,null,null,null,null,null,null,null,null,null,null,null,null,null,null,null,null,null,null,null,null,null,null,null,null,null,null,null,null,null,null,null,"Annual Leave (AL)",null,null,null,"(AL01)",0,null,"Pro.Dev. (PT)",null,null,0]
[null,null,null,null,null,null,null,null,null,null,null,null,null,null,null,null,null,null,null,null,null,null,null,null,null,null,null,null,null,null,null,null,"Vacation (V)",null,null,null,"(VA01)",0,null,"Other (O1)",null,null,0]
[null,null,null,null,null,null,null,null,null,null,null,null,null,null,null,null,null,null,null,null,null,null,null,null,null,null,null,null,null,null,null,null,"Personal Holiday (PH)",null,null,null,"(PH01)",0,null,"Other (O2)",null,null,0]
["Comments",null,null,null,null,null,null,null,null,null,null,null,null,null,null,null,null,null,null,null,null,null,null,null,null,null,null,null,null,null,null,null,"Excess (EX)",null,null,null,"(EX01)",0,null,"Other (O3)",null,null,0]
[null,null,null,null,null,null,null,null,null,null,null,null,null,null,null,null,null,null,null,null,null,null,null,null,null,null,null,null,null,null,null,null,null,null,null,null,null,null,null,"Absence Total",null,null,{"$f":"SUM(AQ32:AQ37)+SUM(AL32:AL37)","v":0}]
[null,null,null,null,null,null,null,null,null,null,null,null,null,null,null,null,null,null,null,null,null,null,null,null,null,null,null,null,null,null,null,null,"Holiday credit earned",null,null,null,0,null,"hrs"]
[]
[null,"Certification of Employee",null,null,null,null,null,null,null,null,null,null,null,null,null,"Certification of Supervisor"]
[null,"Employees are certifying to the accuracy of the data reported - See instructions.",null,null,null,null,null,null,null,null,null,null,null,null,null,"Supervisors are certifying to the accuracy of the data reported - See instructions."]
[null,null,null,null,null,null,null,null,null,null,{"$f":"TODAY()","v":"2022-02-10"}]
[]
[]
[null,"   .  ",null,null,null,null,null,null,null,null,"Date",null,null,null,null,"Simon",null,null,null,null,null,null,null,null,"Date"]
[]
["Additional Labor Distribution For",null,null,null,null,null,null,null,null,null,null,null,null,null,null,null,null,null,null,null,null,null,"State of California",null,null,null,null,null,null,null,null,null,null,null,null,null,null,"Page",null,2,"of",2]
["Attendance and Labor",null,null,null,null,null,null,null,null,null,null,null,null,null,null,null,null,null,null,null,null,null,"Department of Fish and Wildlife",null,null,null,null,null,null,null,null,null,null,null,null,null,null,null,null,null,"Year","Mo"]
["Distribution Report",null,null,null,null,null,null,null,null,null,null,null,null,null,null,null,null,null,null,null,null,null,null,null,null,null,null,null,null,null,null,null,null,null,null,null,null,"Pay Period",null,null,{"$f":"AJ1","v":2019},{"$f":"AN1","v":2},null," "]
["DFW 681 A (Rev. 02/02/2018)"]
[]
["I. EMPLOYEE INFORMATION",null,null,null,null,null,null,null,null,"Instructions on Reverse Side"]
["Name",null,null,null,null,null,null,null,"Div/Branch/Reg",null,null,null,null,null,null,"Social Security Number"]
[{"$f":"Master_Page!A55","v":", "},null,null,null,null,null,null,null,{"$f":"Master_Page!R6","v":0},null,null,null,null,null,null,{"$f":"$V$6","v":"0000"}]
["Work Phone Number",null,null,null,null,null,null,null,"Position Number"]
[{"$f":"$A$8","v":9165555555},null,null,null,null,null,null,null,{"$f":"$I$8","v":5653031581001}]
[]
[]
["III. LABOR DISTRIBUTION"]
["Additional Labor Distribution totals will populate line 21 on the above Attendance Report"]
[null,31,1,2,3,4,5,6,7,8,9,10,11,12,13,14,15,16,17,18,19,20,21,22,23,24,25,26,27,28,null,null,"Total","Type","D","Reporting Structure","Project ID","On Call","Category",null,null,null,"Activity"]
[null,null,null,null,null,null,null,null,null,null,null,null,null,null,null,null,null,null,null,null,null,null,null,null,null,null,null,null,null,null,null,null,{"$f":"SUM(A63:AF63)","v":0},null,"N"]
[null,null,null,null,null,null,null,null,null,null,null,null,null,null,null,null,null,null,null,null,null,null,null,null,null,null,null,null,null,null,null,null,0,null,"N"]
[null,null,null,null,null,null,null,null,null,null,null,null,null,null,null,null,null,null,null,null,null,null,null,null,null,null,null,null,null,null,null,null,0,null,"N"]
[null,null,null,null,null,null,null,null,null,null,null,null,null,null,null,null,null,null,null,null,null,null,null,null,null,null,null,null,null,null,null,null,0,null,"N"]
[null,null,null,null,null,null,null,null,null,null,null,null,null,null,null,null,null,null,null,null,null,null,null,null,null,null,null,null,null,null,null,null,0,null,"N"]
[null,null,null,null,null,null,null,null,null,null,null,null,null,null,null,null,null,null,null,null,null,null,null,null,null,null,null,null,null,null,null,null,0,null,"N"]
[null,null,null,null,null,null,null,null,null,null,null,null,null,null,null,null,null,null,null,null,null,null,null,null,null,null,null,null,null,null,null,null,0,null,"N"]
[null,null,null,null,null,null,null,null,null,null,null,null,null,null,null,null,null,null,null,null,null,null,null,null,null,null,null,null,null,null,null,null,0,null,"N"]
[null,null,null,null,null,null,null,null,null,null,null,null,null,null,null,null,null,null,null,null,null,null,null,null,null,null,null,null,null,null,null,null,0,null,"N"]
[null,null,null,null,null,null,null,null,null,null,null,null,null,null,null,null,null,null,null,null,null,null,null,null,null,null,null,null,null,null,null,null,0,null,"N"]
[null,null,null,null,null,null,null,null,null,null,null,null,null,null,null,null,null,null,null,null,null,null,null,null,null,null,null,null,null,null,null,null,0,null,"N"]
[null,null,null,null,null,null,null,null,null,null,null,null,null,null,null,null,null,null,null,null,null,null,null,null,null,null,null,null,null,null,null,null,0,null,"N"]
[null,null,null,null,null,null,null,null,null,null,null,null,null,null,null,null,null,null,null,null,null,null,null,null,null,null,null,null,null,null,null,null,0,null,"N"]
[null,null,null,null,null,null,null,null,null,null,null,null,null,null,null,null,null,null,null,null,null,null,null,null,null,null,null,null,null,null,null,null,0,null,"N"]
[null,null,null,null,null,null,null,null,null,null,null,null,null,null,null,null,null,null,null,null,null,null,null,null,null,null,null,null,null,null,null,null,0,null,"N"]
[{"$f":"SUM(A63:A77)","v":0},0,0,0,0,0,0,0,0,0,0,0,0,0,0,0,0,0,0,0,0,0,0,0,0,0,0,0,0,0,0,0,{"$f":"SUM(AG63:AG77)","v":0}]
[null,31,1,2,3,4,5,6,7,8,9,10,11,12,13,14,15,16,17,18,19,20,21,22,23,24,25,26,27,28,null,null,"Enter Total on (DFW 681)"]
[null,null,null,null,null,null,null,null,null,null,null,null,null,null,null,null,null,null,null,null,null,null,null,null,null,null,null,null,null,null,null,null,null," "]
[null,null,null,null,null,null,null,null,null,null,null,null,null,null,null,null,null,null,null,null,null,null,null,null,null,null,null,null,null,null,null,null,null," "]
["DISTRIBUTION: ",null,null,null,null,null,"Accounting (ASB) - Original",null,null,null,null,null,null,null,null,null,"Supervisor",null,null,null,null,null,null,null,"Employee"]

{"sheet":"March2022","index":8,"n_rows":82,"n_cols":44,"rows_kept":82,"cut":false,"hidden":false,"merged":[[73,38,73,41],[74,38,74,41],[75,38,75,41],[76,38,76,41],[67,38,67,41],[68,38,68,41],[69,38,69,41],[70,38,70,41],[71,38,71,41],[72,38,72,41],[61,38,61,41],[62,38,62,41],[63,38,63,41],[64,38,64,41],[65,38,65,41],[66,38,66,41],[54,0,54,7],[54,8,54,14],[54,15,54,21],[56,0,56,7],[56,8,56,21],[60,0,60,31],[45,1,45,9],[45,10,45,13],[45,15,45,23],[45,24,45,27],[46,1,46,13],[46,15,46,27],[41,1,41,13],[41,15,41,27],[42,1,44,9],[42,10,44,13],[42,15,44,23],[42,24,44,27],[37,0,38,31],[37,39,38,41],[37,42,38,42],[38,32,38,35],[38,36,38,37],[40,1,40,13],[40,15,40,27],[35,32,35,35],[35,37,35,38],[35,39,35,40],[36,0,36,31],[36,32,36,35],[36,37,36,38],[36,39,36,40],[33,32,33,35],[33,37,33,38],[33,39,33,40],[34,32,34,35],[34,37,34,38],[34,39,34,40],[31,32,31,35],[31,37,31,38],[31,39,31,40],[32,32,32,35],[32,37,32,38],[32,39,32,40],[25,32,25,39],[26,32,26,33],[26,34,26,36],[26,37,26,39],[27,32,27,36],[28,32,28,36],[28,37,28,39],[20,41,20,42],[22,0,22,7],[22,9,22,24],[22,25,22,30],[22,32,22,42],[24,32,24,39],[14,38,14,41],[15,38,15,41],[16,38,16,41],[17,38,17,41],[18,38,18,41],[19,38,19,41],[9,30,9,31],[9,32,9,33],[9,34,9,35],[9,39,9,42],[12,38,12,41],[13,38,13,41],[7,34,7,35],[8,30,8,31],[8,32,8,33],[8,34,8,35],[8,39,8,42],[9,0,9,7],[9,8,9,12],[9,13,9,17],[9,18,9,23],[9,24,9,28],[7,0,7,4],[7,5,7,7],[7,8,7,14],[7,15,7,28],[7,30,7,31],[7,32,7,33],[5,39,5,42],[6,30,6,31],[6,32,6,33],[6,34,6,35],[3,9,3,16],[4,30,4,31],[4,32,4,33],[4,34,4,35],[4,39,4,42],[5,0,5,7],[5,8,5,14],[5,15,5,16],[5,17,5,20],[5,21,5,24],[0,22,0,26],[0,27,0,29],[0,31,0,32],[0,35,0,36],[1,27,1,29],[1,31,1,32],[5,25,5,28],[5,30,5,31],[5,32,5,33],[5,34,5,35]]}
[{"$f":"Master_Page!A1","v":"State of California"},null,null,null,null,null,null,null,null,null,null,null,null,null,null,null,{"$f":"Master_Page!Q1","v":"Attendance and Labor"},null,null,null,null,null,"Pay Period - From:",null,null,null,null,"2019-03-01",null,null,"To:","2019-03-31",null,null,"Year",2019,null,null,"Mo",3,"# Days",21]
[{"$f":"Master_Page!A2","v":"Department of Fish and Wildlife"},null,null,null,null,null,null,null,null,null,null,null,null,null,null,null,{"$f":"Master_Page!Q2","v":"Distribution Report"},null,null,null,null,null,null,null,null,null,null,"MM / DD /  YY",null,null,null,"MM / DD /  YY"]
["DFW 681 (Rev. 02/02/2018)"]
["I. EMPLOYEE INFORMATION",null,null,null,null,null,null,null,null,null,null,null,null,null,null,null,null,null,null,null,null,null,null,null,null,null,null,null,null,null,"II. OTHER PAY HOURS"]
["Last Name",null,null,null,null,null,null,null,"First Name",null,null,null,null,null,null,"M.I.",null,"Div/Branch or Region",null,null,null,"Social Security Number",null,null,null,"Bargaining Unit Number",null,null,null,null,"Dive",null,"Comm. Driving",null,null,null,"Excess","CTO",null,"Audited By:"]
[" ",null,null,null,null,null,null,null," ",null,null,null,null,null,null," ",null," ",null,null,null,"0000",null,null,null,"R01",null,null,null,null,null,null,null,null,"Prev-Balance",null,{"$f":"SUM(February2022!AK10)","v":0}]
["Work Phone Number",null,null,null,null,"Phone Ext.",null,null,"  Position Number",null,null,null,null,null,null,"Classification Title",null,null,null,null,null,null,null,null,null,null,null,null,null,null,"SOU",null,"Shift",null,"Earned",null,{"$f":"+AO29","v":0},{"$f":"+AO27","v":0}]
[9165555555,null,null,null,null,"",null,null,5653031581001,null,null,null,null,null,null,"Staff Programmer Analyst (Specialist) ",null,null,null,null,null,null,null,null,null,null,null,null,null,null,null,null,null,null,"Total",null,{"$f":"+AK6+AK7","v":0},{"$f":"+AL6+AL7","v":0}]
["Work Week Schedule",null,null,null,null,null,null,null,"Time Base",null,null,null,null,"Work Week Group",null,null,null,null,"Assigned Days Off",null,null,null,null,null,"AWW Regular Day Off (RDO)",null,null,null,null,null,"FTO",null,"Holiday",null,"Used -",null,{"$f":"(AL37)","v":0},{"$f":"+AQ32","v":0},null,"Actual Time Worked-Days Limit"]
["Regular Schedule",null,null,null,null,null,null,null,"Full Time",null,null,null,null,"2",null,null,null,null,"Sat, Sun",null,null,null,null,null,"N/A",null,null,null,null,null,null,null,null,null,"Balance",null,{"$f":"+AK8-AK9","v":0},{"$f":"+AL8-AL9","v":0},null,{"$f":"IF(I10=\"int\",SUM(A22:AF22),COUNTIF(A22:AF22,\">0\"))","v":0}]
[]
["III. LABOR DISTRIBUTION"]
[null,1,2,3,4,5,6,7,8,9,10,11,12,13,14,15,16,17,18,19,20,21,22,23,24,25,26,27,28,29,30,31,"Total","Type","D","Reporting Structure","Project ID","On Call","Project/WP",null,null,null,"Activity"]
[null,null,null,null,null,null,null,null,null,null,null,null,null,null,null,null,null,null,null,null,null,null,null,null,null,null,null,null,null,null,null,null,{"$f":"SUM(A14:AF14)","v":0},"REG","N"]
[null,null,null,null,null,null,null,null,null,null,null,null,null,null,null,null,null,null,null,null,null,null,null,null,null,null,null,null,null,null,null,null,0,null,"N"]
[null,null,null,null,null,null,null,null,null,null,null,null,null,null,null,null,null,null,null,null,null,null,null,null,null,null,null,null,null,null,null,null,0,null,"N"]
[null,null,null,null,null,null,null,null,null,null,null,null,null,null,null,null,null,null,null,null,null,null,null,null,null,null,null,null,null,null,null,null,0,null,"N"]
[null,null,null,null,null,null,null,null,null,null,null,null,null,null,null,null,null,null,null,null,null,null,null,null,null,null,null,null,null,null,null,null,0,null,"N"]
[null,null,null,null,null,null,null,null,null,null,null,null,null,null,null,null,null,null,null,null,null,null,null,null,null,null,null,null,null,null,null,null,0,null,"N"]
[null,null,null,null,null,null,null,null,null,null,null,null,null,null,null,null,null,null,null,null,null,null,null,null,null,null,null,null,null,null,null,null,0,null,"N"]
[{"$f":"A78","v":0},0,0,0,0,0,0,0,0,0,0,0,0,0,0,0,0,0,0,0,0,0,0,0,0,0,0,0,0,0,0,0,{"$f":"SUM(A21:AF21)","v":0},"Total from DFW 681A(s) (Attach)"]
[{"$f":"SUM(A14:A21)","v":0},0,0,0,0,0,0,0,0,0,0,0,0,0,0,0,0,0,0,0,0,0,0,0,0,0,0,0,0,0,0,0,{"$f":"SUM(AG14:AG20) + SUM(AG63:AG77)","v":0},"Total Hours",null,null,null,168,"Hours Required this Month"]
["Carry over hours from previous month",null,null,null,null,null,null,null,null,null,null,null,null,null,null,null,null,null,null,null,null,null,null,null,null,"Carry over hours for month"]
["IV. EXTRA HOURS WORKED"]
[null,1,2,3,4,5,6,7,8,9,10,11,12,13,14,15,16,17,18,19,20,21,22,23,24,25,26,27,28,29,30,31,"Summary of Extra Hours Worked:",null,null,null,null,null,null,null,"Hours","Paid This PP","Carry Over"]
[null,null,null,null,null,null,null,null,null,null,null,null,null,null,null,null,null,null,null,null,null,null,null,null,null,null,null,null,null,null,null,null,"Cash",null,null,null,null,null,null,null,{"$f":"SUM(A26:AF26)","v":0}]
[null,null,null,null,null,null,null,null,null,null,null,null,null,null,null,null,null,null,null,null,null,null,null,null,null,null,null,null,null,null,null,null,"CTO",null,"(CT06)",null,null,"(CT07)",null,null,{"$f":"SUM(A27:AF27)","v":0}]
[null,null,null,null,null,null,null,null,null,null,null,null,null,null,null,null,null,null,null,null,null,null,null,null,null,null,null,null,null,null,null,null,"Other (On-call/Standby)",null,null,null,null,{"$f":"SUM(A28:AF28)","v":0}]
["V. ABSENCE INFORMATION",null,null,null,null,null,null,null,null,"Date of Absence:  Enter code and number of hours in date blocks.",null,null,null,null,null,null,null,null,null,null,null,null,null,null,null,null,null,null,null,null,null,null,"Excess Hours",null,null,null,null,"(EX05)",null,null,0]
[null,1,2,3,4,5,6,7,8,9,10,11,12,13,14,15,16,17,18,19,20,21,22,23,24,25,26,27,28,29,30,31,null,null,null,null,null,null,null,null,{"$f":"SUM(AO26:AO27)+AO29","v":0}]
[null,null,null,null,null,null,null,null,null,null,null,null,null,null,null,null,null,null,null,null,null,null,null,null,null,null,null,null,null,null,null,null,"Summary of Absences:",null,null,null,null,"Hours",null,null,null,null,"Hours"]
[null,null,null,null,null,null,null,null,null,null,null,null,null,null,null,null,null,null,null,null,null,null,null,null,null,null,null,null,null,null,null,null,"Sick-Self (S)",null,null,null,"(SL01)",0,null,"CTO (CT)",null,"(CT01)",0]
[null,null,null,null,null,null,null,null,null,null,null,null,null,null,null,null,null,null,null,null,null,null,null,null,null,null,null,null,null,null,null,null,"Sick-Family (FS)",null,null,null,"(SL02)",0,null,"Holiday (H) ",null,null,0]
[null,null,null,null,null,null,null,null,null,null,null,null,null,null,null,null,null,null,null,null,null,null,null,null,null,null,null,null,null,null,null,null,"Annual Leave (AL)",null,null,null,"(AL01)",0,null,"Pro.Dev. (PT)",null,null,0]
[null,null,null,null,null,null,null,null,null,null,null,null,null,null,null,null,null,null,null,null,null,null,null,null,null,null,null,null,null,null,null,null,"Vacation (V)",null,null,null,"(VA01)",0,null,"Other (O1)",null,null,0]
[null,null,null,null,null,null,null,null,null,null,null,null,null,null,null,null,null,null,null,null,null,null,null,null,null,null,null,null,null,null,null,null,"Personal Holiday (PH)",null,null,null,"(PH01)",0,null,"Other (O2)",null,null,0]
["Comments",null,null,null,null,null,null,null,null,null,null,null,null,null,null,null,null,null,null,null,null,null,null,null,null,null,null,null,null,null,null,null,"Excess (EX)",null,null,null,"(EX01)",0,null,"Other (O3)",null,null,0]
[null,null,null,null,null,null,null,null,null,null,null,null,null,null,null,null,null,null,null,null,null,null,null,null,null,null,null,null,null,null,null,null,null,null,null,null,null,null,null,"Absence Total",null,null,{"$f":"SUM(AQ32:AQ37)+SUM(AL32:AL37)","v":0}]
[null,null,null,null,null,null,null,null,null,null,null,null,null,null,null,null,null,null,null,null,null,null,null,null,null,null,null,null,null,null,null,null,"Holiday credit earned",null,null,null,0,null,"hrs"]
[]
[null,"Certification of Employee",null,null,null,null,null,null,null,null,null,null,null,null,null,"Certification of Supervisor"]
[null,"Employees are certifying to the accuracy of the data reported - See instructions.",null,null,null,null,null,null,null,null,null,null,null,null,null,"Supervisors are certifying to the accuracy of the data reported - See instructions."]
[null,null,null,null,null,null,null,null,null,null,{"$f":"TODAY()","v":"2022-02-10"}]
[]
[]
[null,"   .  ",null,null,null,null,null,null,null,null,"Date",null,null,null,null,"Simon",null,null,null,null,null,null,null,null,"Date"]
[]
["Additional Labor Distribution For",null,null,null,null,null,null,null,null,null,null,null,null,null,null,null,null,null,null,null,null,null,"State of California",null,null,null,null,null,null,null,null,null,null,null,null,null,null,"Page",null,2,"of",2]
["Attendance and Labor",null,null,null,null,null,null,null,null,null,null,null,null,null,null,null,null,null,null,null,null,null,"Department of Fish and Wildlife",null,null,null,null,null,null,null,null,null,null,null,null,null,null,null,null,null,"Year","Mo"]
["Distribution Report",null,null,null,null,null,null,null,null,null,null,null,null,null,null,null,null,null,null,null,null,null,null,null,null,null,null,null,null,null,null,null,null,null,null,null,null,"Pay Period",null,null,{"$f":"AJ1","v":2019},{"$f":"AN1","v":3},null," "]
["DFW 681 A (Rev. 02/02/2018)"]
[]
["I. EMPLOYEE INFORMATION",null,null,null,null,null,null,null,null,"Instructions on Reverse Side"]
["Name",null,null,null,null,null,null,null,"Div/Branch/Reg",null,null,null,null,null,null,"Social Security Number"]
[{"$f":"Master_Page!A55","v":", "},null,null,null,null,null,null,null,{"$f":"Master_Page!R6","v":0},null,null,null,null,null,null,{"$f":"$V$6","v":"0000"}]
["Work Phone Number",null,null,null,null,null,null,null,"Position Number"]
[{"$f":"$A$8","v":9165555555},null,null,null,null,null,null,null,{"$f":"$I$8","v":5653031581001}]
[]
[]
["III. LABOR DISTRIBUTION"]
["Additional Labor Distribution totals will populate line 21 on the above Attendance Report"]
[null,1,2,3,4,5,6,7,8,9,10,11,12,13,14,15,16,17,18,19,20,21,22,23,24,25,26,27,28,29,30,31,"Total","Type","D","Reporting Structure","Project ID","On Call","Category",null,null,null,"Activity"]
[null,null,null,null,null,null,null,null,null,null,null,null,null,null,null,null,null,null,null,null,null,null,null,null,null,null,null,null,null,null,null,null,{"$f":"SUM(A63:AF63)","v":0},null,"N"]
[null,null,null,null,null,null,null,null,null,null,null,null,null,null,null,null,null,null,null,null,null,null,null,null,null,null,null,null,null,null,null,null,0,null,"N"]
[null,null,null,null,null,null,null,null,null,null,null,null,null,null,null,null,null,null,null,null,null,null,null,null,null,null,null,null,null,null,null,null,0,null,"N"]
[null,null,null,null,null,null,null,null,null,null,null,null,null,null,null,null,null,null,null,null,null,null,null,null,null,null,null,null,null,null,null,null,0,null,"N"]
[null,null,null,null,null,null,null,null,null,null,null,null,null,null,null,null,null,null,null,null,null,null,null,null,null,null,null,null,null,null,null,null,0,null,"N"]
[null,null,null,null,null,null,null,null,null,null,null,null,null,null,null,null,null,null,null,null,null,null,null,null,null,null,null,null,null,null,null,null,0,null,"N"]
[null,null,null,null,null,null,null,null,null,null,null,null,null,null,null,null,null,null,null,null,null,null,null,null,null,null,null,null,null,null,null,null,0,null,"N"]
[null,null,null,null,null,null,null,null,null,null,null,null,null,null,null,null,null,null,null,null,null,null,null,null,null,null,null,null,null,null,null,null,0,null,"N"]
[null,null,null,null,null,null,null,null,null,null,null,null,null,null,null,null,null,null,null,null,null,null,null,null,null,null,null,null,null,null,null,null,0,null,"N"]
[null,null,null,null,null,null,null,null,null,null,null,null,null,null,null,null,null,null,null,null,null,null,null,null,null,null,null,null,null,null,null,null,0,null,"N"]
[null,null,null,null,null,null,null,null,null,null,null,null,null,null,null,null,null,null,null,null,null,null,null,null,null,null,null,null,null,null,null,null,0,null,"N"]
[null,null,null,null,null,null,null,null,null,null,null,null,null,null,null,null,null,null,null,null,null,null,null,null,null,null,null,null,null,null,null,null,0,null,"N"]
[null,null,null,null,null,null,null,null,null,null,null,null,null,null,null,null,null,null,null,null,null,null,null,null,null,null,null,null,null,null,null,null,0,null,"N"]
[null,null,null,null,null,null,null,null,null,null,null,null,null,null,null,null,null,null,null,null,null,null,null,null,null,null,null,null,null,null,null,null,0,null,"N"]
[null,null,null,null,null,null,null,null,null,null,null,null,null,null,null,null,null,null,null,null,null,null,null,null,null,null,null,null,null,null,null,null,0,null,"N"]
[{"$f":"SUM(A63:A77)","v":0},0,0,0,0,0,0,0,0,0,0,0,0,0,0,0,0,0,0,0,0,0,0,0,0,0,0,0,0,0,0,0,{"$f":"SUM(AG63:AG77)","v":0}]
[null,1,2,3,4,5,6,7,8,9,10,11,12,13,14,15,16,17,18,19,20,21,22,23,24,25,26,27,28,29,30,31,"Enter Total on (DFW 681)"]
[null,null,null,null,null,null,null,null,null,null,null,null,null,null,null,null,null,null,null,null,null,null,null,null,null,null,null,null,null,null,null,null,null," "]
[null,null,null,null,null,null,null,null,null,null,null,null,null,null,null,null,null,null,null,null,null,null,null,null,null,null,null,null,null,null,null,null,null," "]
["DISTRIBUTION: ",null,null,null,null,null,"Accounting (ASB) - Original",null,null,null,null,null,null,null,null,null,"Supervisor",null,null,null,null,null,null,null,"Employee"]

{"sheet":"April2022","index":9,"n_rows":82,"n_cols":44,"rows_kept":82,"cut":false,"hidden":false,"merged":[[73,38,73,41],[74,38,74,41],[75,38,75,41],[76,38,76,41],[67,38,67,41],[68,38,68,41],[69,38,69,41],[70,38,70,41],[71,38,71,41],[72,38,72,41],[61,38,61,41],[62,38,62,41],[63,38,63,41],[64,38,64,41],[65,38,65,41],[66,38,66,41],[54,0,54,7],[54,8,54,14],[54,15,54,21],[56,0,56,7],[56,8,56,21],[60,0,60,31],[45,1,45,9],[45,10,45,13],[45,15,45,23],[45,24,45,27],[46,1,46,13],[46,15,46,27],[41,1,41,13],[41,15,41,27],[42,1,44,9],[42,10,44,13],[42,15,44,23],[42,24,44,27],[37,0,38,31],[37,39,38,41],[37,42,38,42],[38,32,38,35],[38,36,38,37],[40,1,40,13],[40,15,40,27],[35,32,35,35],[35,37,35,38],[35,39,35,40],[36,0,36,31],[36,32,36,35],[36,37,36,38],[36,39,36,40],[33,32,33,35],[33,37,33,38],[33,39,33,40],[34,32,34,35],[34,37,34,38],[34,39,34,40],[31,32,31,35],[31,37,31,38],[31,39,31,40],[32,32,32,35],[32,37,32,38],[32,39,32,40],[25,32,25,39],[26,32,26,33],[26,34,26,36],[26,37,26,39],[27,32,27,36],[28,32,28,36],[28,37,28,39],[20,41,20,42],[22,0,22,7],[22,9,22,24],[22,25,22,30],[22,32,22,42],[24,32,24,39],[14,38,14,41],[15,38,15,41],[16,38,16,41],[17,38,17,41],[18,38,18,41],[19,38,19,41],[9,30,9,31],[9,32,9,33],[9,34,9,35],[9,39,9,42],[12,38,12,41],[13,38,13,41],[7,34,7,35],[8,30,8,31],[8,32,8,33],[8,34,8,35],[8,39,8,42],[9,0,9,7],[9,8,9,12],[9,13,9,17],[9,18,9,23],[9,24,9,28],[7,0,7,4],[7,5,7,7],[7,8,7,14],[7,15,7,28],[7,30,7,31],[7,32,7,33],[5,39,5,42],[6,30,6,31],[6,32,6,33],[6,34,6,35],[3,9,3,16],[4,30,4,31],[4,32,4,33],[4,34,4,35],[4,39,4,42],[5,0,5,7],[5,8,5,14],[5,15,5,16],[5,17,5,20],[5,21,5,24],[0,22,0,26],[0,27,0,29],[0,31,0,32],[0,35,0,36],[1,27,1,29],[1,31,1,32],[5,25,5,28],[5,30,5,31],[5,32,5,33],[5,34,5,35]]}
[{"$f":"Master_Page!A1","v":"State of California"},null,null,null,null,null,null,null,null,null,null,null,null,null,null,null,{"$f":"Master_Page!Q1","v":"Attendance and Labor"},null,null,null,null,null,"Pay Period - From:",null,null,null,null,"2019-04-01",null,null,"To:","2019-04-30",null,null,"Year",2019,null,null,"Mo",4,"# Days",22]
[{"$f":"Master_Page!A2","v":"Department of Fish and Wildlife"},null,null,null,null,null,null,null,null,null,null,null,null,null,null,null,{"$f":"Master_Page!Q2","v":"Distribution Report"},null,null,null,null,null,null,null,null,null,null,"MM / DD /  YY",null,null,null,"MM / DD /  YY"]
["DFW 681 (Rev. 02/02/2018)"]
["I. EMPLOYEE INFORMATION",null,null,null,null,null,null,null,null,null,null,null,null,null,null,null,null,null,null,null,null,null,null,null,null,null,null,null,null,null,"II. OTHER PAY HOURS"]
["Last Name",null,null,null,null,null,null,null,"First Name",null,null,null,null,null,null,"M.I.",null,"Div/Branch or Region",null,null,null,"Social Security Number",null,null,null,"Bargaining Unit Number",null,null,null,null,"Dive",null,"Comm. Driving",null,null,null,"Excess","CTO",null,"Audited By:"]
[" ",null,null,null,null,null,null,null," ",null,null,null,null,null,null," ",null," ",null,null,null,"0000",null,null,null,"R01",null,null,null,null,null,null,null,null,"Prev-Balance",null,{"$f":"SUM(March2022!AK10)","v":0}]
["Work Phone Number",null,null,null,null,"Phone Ext.",null,null,"  Position Number",null,null,null,null,null,null,"Classification Title",null,null,null,null,null,null,null,null,null,null,null,null,null,null,"SOU",null,"Shift",null,"Earned",null,{"$f":"+AO29","v":0},{"$f":"+AO27","v":0}]
[9165555555,null,null,null,null,"",null,null,5653031581001,null,null,null,null,null,null,"Staff Programmer Analyst (Specialist) ",null,null,null,null,null,null,null,null,null,null,null,null,null,null,null,null,null,null,"Total",null,{"$f":"+AK6+AK7","v":0},{"$f":"+AL6+AL7","v":0}]
["Work Week Schedule",null,null,null,null,null,null,null,"Time Base",null,null,null,null,"Work Week Group",null,null,null,null,"Assigned Days Off",null,null,null,null,null,"AWW Regular Day Off (RDO)",null,null,null,null,null,"FTO",null,"Holiday",null,"Used -",null,{"$f":"(AL37)","v":0},{"$f":"+AQ32","v":0},null,"Actual Time Worked-Days Limit"]
["Regular Schedule",null,null,null,null,null,null,null,"Full Time",null,null,null,null,"2",null,null,null,null,"Sat, Sun",null,null,null,null,null,"N/A",null,null,null,null,null,null,null,null,null,"Balance",null,{"$f":"+AK8-AK9","v":0},{"$f":"+AL8-AL9","v":0},null,{"$f":"IF(I10=\"int\",SUM(A22:AF22),COUNTIF(A22:AF22,\">0\"))","v":0}]
[]
["III. LABOR DISTRIBUTION"]
[null,1,2,3,4,5,6,7,8,9,10,11,12,13,14,15,16,17,18,19,20,21,22,23,24,25,26,27,28,29,30,null,"Total","Type","D","Reporting Structure","Project ID","On Call","Project/WP",null,null,null,"Activity"]
[null,null,null,null,null,null,null,null,null,null,null,null,null,null,null,null,null,null,null,null,null,null,null,null,null,null,null,null,null,null,null,null,{"$f":"SUM(A14:AF14)","v":0},"REG","N"]
[null,null,null,null,null,null,null,null,null,null,null,null,null,null,null,null,null,null,null,null,null,null,null,null,null,null,null,null,null,null,null,null,0,null,"N"]
[null,null,null,null,null,null,null,null,null,null,null,null,null,null,null,null,null,null,null,null,null,null,null,null,null,null,null,null,null,null,null,null,0,null,"N"]
[null,null,null,null,null,null,null,null,null,null,null,null,null,null,null,null,null,null,null,null,null,null,null,null,null,null,null,null,null,null,null,null,0,null,"N"]
[null,null,null,null,null,null,null,null,null,null,null,null,null,null,null,null,null,null,null,null,null,null,null,null,null,null,null,null,null,null,null,null,0,null,"N"]
[null,null,null,null,null,null,null,null,null,null,null,null,null,null,null,null,null,null,null,null,null,null,null,null,null,null,null,null,null,null,null,null,0,null,"N"]
[null,null,null,null,null,null,null,null,null,null,null,null,null,null,null,null,null,null,null,null,null,null,null,null,null,null,null,null,null,null,null,null,0,null,"N"]
[{"$f":"A78","v":0},0,0,0,0,0,0,0,0,0,0,0,0,0,0,0,0,0,0,0,0,0,0,0,0,0,0,0,0,0,0,0,{"$f":"SUM(A21:AF21)","v":0},"Total from DFW 681A(s) (Attach)"]
[{"$f":"SUM(A14:A21)","v":0},0,0,0,0,0,0,0,0,0,0,0,0,0,0,0,0,0,0,0,0,0,0,0,0,0,0,0,0,0,0,0,{"$f":"SUM(AG14:AG20) + SUM(AG63:AG77)","v":0},"Total Hours",null,null,null,176,"Hours Required this Month"]
["Carry over hours from previous month",null,null,null,null,null,null,null,null,null,null,null,null,null,null,null,null,null,null,null,null,null,null,null,null,"Carry over hours for month"]
["IV. EXTRA HOURS WORKED"]
[null,1,2,3,4,5,6,7,8,9,10,11,12,13,14,15,16,17,18,19,20,21,22,23,24,25,26,27,28,29,30,null,"Summary of Extra Hours Worked:",null,null,null,null,null,null,null,"Hours","Paid This PP","Carry Over"]
[null,null,null,null,null,null,null,null,null,null,null,null,null,null,null,null,null,null,null,null,null,null,null,null,null,null,null,null,null,null,null,null,"Cash",null,null,null,null,null,null,null,{"$f":"SUM(A26:AF26)","v":0}]
[null,null,null,null,null,null,null,null,null,null,null,null,null,null,null,null,null,null,null,null,null,null,null,null,null,null,null,null,null,null,null,null,"CTO",null,"(CT06)",null,null,"(CT07)",null,null,{"$f":"SUM(A27:AF27)","v":0}]
[null,null,null,null,null,null,null,null,null,null,null,null,null,null,null,null,null,null,null,null,null,null,null,null,null,null,null,null,null,null,null,null,"Other (On-call/Standby)",null,null,null,null,{"$f":"SUM(A28:AF28)","v":0}]
["V. ABSENCE INFORMATION",null,null,null,null,null,null,null,null,"Date of Absence:  Enter code and number of hours in date blocks.",null,null,null,null,null,null,null,null,null,null,null,null,null,null,null,null,null,null,null,null,null,null,"Excess Hours",null,null,null,null,"(EX05)",null,null,0]
[null,1,2,3,4,5,6,7,8,9,10,11,12,13,14,15,16,17,18,19,20,21,22,23,24,25,26,27,28,29,30,null,null,null,null,null,null,null,null,null,{"$f":"SUM(AO26:AO27)+AO29","v":0}]
[null,null,null,null,null,null,null,null,null,null,null,null,null,null,null,null,null,null,null,null,null,null,null,null,null,null,null,null,null,null,null,null,"Summary of Absences:",null,null,null,null,"Hours",null,null,null,null,"Hours"]
[null,null,null,null,null,null,null,null,null,null,null,null,null,null,null,null,null,null,null,null,null,null,null,null,null,null,null,null,null,null,null,null,"Sick-Self (S)",null,null,null,"(SL01)",0,null,"CTO (CT)",null,"(CT01)",0]
[null,null,null,null,null,null,null,null,null,null,null,null,null,null,null,null,null,null,null,null,null,null,null,null,null,null,null,null,null,null,null,null,"Sick-Family (FS)",null,null,null,"(SL02)",0,null,"Holiday (H) ",null,null,0]
[null,null,null,null,null,null,null,null,null,null,null,null,null,null,null,null,null,null,null,null,null,null,null,null,null,null,null,null,null,null,null,null,"Annual Leave (AL)",null,null,null,"(AL01)",0,null,"Pro.Dev. (PT)",null,null,0]
[null,null,null,null,null,null,null,null,null,null,null,null,null,null,null,null,null,null,null,null,null,null,null,null,null,null,null,null,null,null,null,null,"Vacation (V)",null,null,null,"(VA01)",0,null,"Other (O1)",null,null,0]
[null,null,null,null,null,null,null,null,null,null,null,null,null,null,null,null,null,null,null,null,null,null,null,null,null,null,null,null,null,null,null,null,"Personal Holiday (PH)",null,null,null,"(PH01)",0,null,"Other (O2)",null,null,0]
["Comments",null,null,null,null,null,null,null,null,null,null,null,null,null,null,null,null,null,null,null,null,null,null,null,null,null,null,null,null,null,null,null,"Excess (EX)",null,null,null,"(EX01)",0,null,"Other (O3)",null,null,0]
[null,null,null,null,null,null,null,null,null,null,null,null,null,null,null,null,null,null,null,null,null,null,null,null,null,null,null,null,null,null,null,null,null,null,null,null,null,null,null,"Absence Total",null,null,{"$f":"SUM(AQ32:AQ37)+SUM(AL32:AL37)","v":0}]
[null,null,null,null,null,null,null,null,null,null,null,null,null,null,null,null,null,null,null,null,null,null,null,null,null,null,null,null,null,null,null,null,"Holiday credit earned",null,null,null,0,null,"hrs"]
[]
[null,"Certification of Employee",null,null,null,null,null,null,null,null,null,null,null,null,null,"Certification of Supervisor"]
[null,"Employees are certifying to the accuracy of the data reported - See instructions.",null,null,null,null,null,null,null,null,null,null,null,null,null,"Supervisors are certifying to the accuracy of the data reported - See instructions."]
[null,null,null,null,null,null,null,null,null,null,{"$f":"TODAY()","v":"2022-02-10"}]
[]
[]
[null,"   .  ",null,null,null,null,null,null,null,null,"Date",null,null,null,null,"Simon",null,null,null,null,null,null,null,null,"Date"]
[]
["Additional Labor Distribution For",null,null,null,null,null,null,null,null,null,null,null,null,null,null,null,null,null,null,null,null,null,"State of California",null,null,null,null,null,null,null,null,null,null,null,null,null,null,"Page",null,2,"of",2]
["Attendance and Labor",null,null,null,null,null,null,null,null,null,null,null,null,null,null,null,null,null,null,null,null,null,"Department of Fish and Wildlife",null,null,null,null,null,null,null,null,null,null,null,null,null,null,null,null,null,"Year","Mo"]
["Distribution Report",null,null,null,null,null,null,null,null,null,null,null,null,null,null,null,null,null,null,null,null,null,null,null,null,null,null,null,null,null,null,null,null,null,null,null,null,"Pay Period",null,null,{"$f":"AJ1","v":2019},{"$f":"AN1","v":4},null," "]
["DFW 681 A (Rev. 02/02/2018)"]
[]
["I. EMPLOYEE INFORMATION",null,null,null,null,null,null,null,null,"Instructions on Reverse Side"]
["Name",null,null,null,null,null,null,null,"Div/Branch/Reg",null,null,null,null,null,null,"Social Security Number"]
[{"$f":"Master_Page!A55","v":", "},null,null,null,null,null,null,null,{"$f":"Master_Page!R6","v":0},null,null,null,null,null,null,{"$f":"$V$6","v":"0000"}]
["Work Phone Number",null,null,null,null,null,null,null,"Position Number"]
[{"$f":"$A$8","v":9165555555},null,null,null,null,null,null,null,{"$f":"$I$8","v":5653031581001}]
[]
[]
["III. LABOR DISTRIBUTION"]
["Additional Labor Distribution totals will populate line 21 on the above Attendance Report"]
[null,1,2,3,4,5,6,7,8,9,10,11,12,13,14,15,16,17,18,19,20,21,22,23,24,25,26,27,28,29,30,null,"Total","Type","D","Reporting Structure","Project ID","On Call","Category",null,null,null,"Activity"]
[null,null,null,null,null,null,null,null,null,null,null,null,null,null,null,null,null,null,null,null,null,null,null,null,null,null,null,null,null,null,null,null,{"$f":"SUM(A63:AF63)","v":0},null,"N"]
[null,null,null,null,null,null,null,null,null,null,null,null,null,null,null,null,null,null,null,null,null,null,null,null,null,null,null,null,null,null,null,null,0,null,"N"]
[null,null,null,null,null,null,null,null,null,null,null,null,null,null,null,null,null,null,null,null,null,null,null,null,null,null,null,null,null,null,null,null,0,null,"N"]
[null,null,null,null,null,null,null,null,null,null,null,null,null,null,null,null,null,null,null,null,null,null,null,null,null,null,null,null,null,null,null,null,0,null,"N"]
[null,null,null,null,null,null,null,null,null,null,null,null,null,null,null,null,null,null,null,null,null,null,null,null,null,null,null,null,null,null,null,null,0,null,"N"]
[null,null,null,null,null,null,null,null,null,null,null,null,null,null,null,null,null,null,null,null,null,null,null,null,null,null,null,null,null,null,null,null,0,null,"N"]
[null,null,null,null,null,null,null,null,null,null,null,null,null,null,null,null,null,null,null,null,null,null,null,null,null,null,null,null,null,null,null,null,0,null,"N"]
[null,null,null,null,null,null,null,null,null,null,null,null,null,null,null,null,null,null,null,null,null,null,null,null,null,null,null,null,null,null,null,null,0,null,"N"]
[null,null,null,null,null,null,null,null,null,null,null,null,null,null,null,null,null,null,null,null,null,null,null,null,null,null,null,null,null,null,null,null,0,null,"N"]
[null,null,null,null,null,null,null,null,null,null,null,null,null,null,null,null,null,null,null,null,null,null,null,null,null,null,null,null,null,null,null,null,0,null,"N"]
[null,null,null,null,null,null,null,null,null,null,null,null,null,null,null,null,null,null,null,null,null,null,null,null,null,null,null,null,null,null,null,null,0,null,"N"]
[null,null,null,null,null,null,null,null,null,null,null,null,null,null,null,null,null,null,null,null,null,null,null,null,null,null,null,null,null,null,null,null,0,null,"N"]
[null,null,null,null,null,null,null,null,null,null,null,null,null,null,null,null,null,null,null,null,null,null,null,null,null,null,null,null,null,null,null,null,0,null,"N"]
[null,null,null,null,null,null,null,null,null,null,null,null,null,null,null,null,null,null,null,null,null,null,null,null,null,null,null,null,null,null,null,null,0,null,"N"]
[null,null,null,null,null,null,null,null,null,null,null,null,null,null,null,null,null,null,null,null,null,null,null,null,null,null,null,null,null,null,null,null,0,null,"N"]
[{"$f":"SUM(A63:A77)","v":0},0,0,0,0,0,0,0,0,0,0,0,0,0,0,0,0,0,0,0,0,0,0,0,0,0,0,0,0,0,0,0,{"$f":"SUM(AG63:AG77)","v":0}]
[null,1,2,3,4,5,6,7,8,9,10,11,12,13,14,15,16,17,18,19,20,21,22,23,24,25,26,27,28,29,30,null,"Enter Total on (DFW 681)"]
[null,null,null,null,null,null,null,null,null,null,null,null,null,null,null,null,null,null,null,null,null,null,null,null,null,null,null,null,null,null,null,null,null," "]
[null,null,null,null,null,null,null,null,null,null,null,null,null,null,null,null,null,null,null,null,null,null,null,null,null,null,null,null,null,null,null,null,null," "]
["DISTRIBUTION: ",null,null,null,null,null,"Accounting (ASB) - Original",null,null,null,null,null,null,null,null,null,"Supervisor",null,null,null,null,null,null,null,"Employee"]

{"sheet":"May2022","index":10,"n_rows":82,"n_cols":44,"rows_kept":82,"cut":false,"hidden":false,"merged":[[73,38,73,41],[74,38,74,41],[75,38,75,41],[76,38,76,41],[67,38,67,41],[68,38,68,41],[69,38,69,41],[70,38,70,41],[71,38,71,41],[72,38,72,41],[61,38,61,41],[62,38,62,41],[63,38,63,41],[64,38,64,41],[65,38,65,41],[66,38,66,41],[54,0,54,7],[54,8,54,14],[54,15,54,21],[56,0,56,7],[56,8,56,21],[60,0,60,31],[45,1,45,9],[45,10,45,13],[45,15,45,23],[45,24,45,27],[46,1,46,13],[46,15,46,27],[41,1,41,13],[41,15,41,27],[42,1,44,9],[42,10,44,13],[42,15,44,23],[42,24,44,27],[37,0,38,31],[37,39,38,41],[37,42,38,42],[38,32,38,35],[38,36,38,37],[40,1,40,13],[40,15,40,27],[35,32,35,35],[35,37,35,38],[35,39,35,40],[36,0,36,31],[36,32,36,35],[36,37,36,38],[36,39,36,40],[33,32,33,35],[33,37,33,38],[33,39,33,40],[34,32,34,35],[34,37,34,38],[34,39,34,40],[31,32,31,35],[31,37,31,38],[31,39,31,40],[32,32,32,35],[32,37,32,38],[32,39,32,40],[25,32,25,39],[26,32,26,33],[26,34,26,36],[26,37,26,39],[27,32,27,36],[28,32,28,36],[28,37,28,39],[20,41,20,42],[22,0,22,7],[22,9,22,24],[22,25,22,30],[22,32,22,42],[24,32,24,39],[14,38,14,41],[15,38,15,41],[16,38,16,41],[17,38,17,41],[18,38,18,41],[19,38,19,41],[9,30,9,31],[9,32,9,33],[9,34,9,35],[9,39,9,42],[12,38,12,41],[13,38,13,41],[7,34,7,35],[8,30,8,31],[8,32,8,33],[8,34,8,35],[8,39,8,42],[9,0,9,7],[9,8,9,12],[9,13,9,17],[9,18,9,23],[9,24,9,28],[7,0,7,4],[7,5,7,7],[7,8,7,14],[7,15,7,28],[7,30,7,31],[7,32,7,33],[5,39,5,42],[6,30,6,31],[6,32,6,33],[6,34,6,35],[3,9,3,16],[4,30,4,31],[4,32,4,33],[4,34,4,35],[4,39,4,42],[5,0,5,7],[5,8,5,14],[5,15,5,16],[5,17,5,20],[5,21,5,24],[0,22,0,26],[0,27,0,29],[0,31,0,32],[0,35,0,36],[1,27,1,29],[1,31,1,32],[5,25,5,28],[5,30,5,31],[5,32,5,33],[5,34,5,35]]}
[{"$f":"Master_Page!A1","v":"State of California"},null,null,null,null,null,null,null,null,null,null,null,null,null,null,null,{"$f":"Master_Page!Q1","v":"Attendance and Labor"},null,null,null,null,null,"Pay Period - From:",null,null,null,null,"2019-05-01",null,null,"To:","2019-05-30",null,null,"Year",2019,null,null,"Mo",5,"# Days",22]
[{"$f":"Master_Page!A2","v":"Department of Fish and Wildlife"},null,null,null,null,null,null,null,null,null,null,null,null,null,null,null,{"$f":"Master_Page!Q2","v":"Distribution Report"},null,null,null,null,null,null,null,null,null,null,"MM / DD /  YY",null,null,null,"MM / DD /  YY"]
["DFW 681 (Rev. 02/02/2018)"]
["I. EMPLOYEE INFORMATION",null,null,null,null,null,null,null,null,null,null,null,null,null,null,null,null,null,null,null,null,null,null,null,null,null,null,null,null,null,"II. OTHER PAY HOURS"]
["Last Name",null,null,null,null,null,null,null,"First Name",null,null,null,null,null,null,"M.I.",null,"Div/Branch or Region",null,null,null,"Social Security Number",null,null,null,"Bargaining Unit Number",null,null,null,null,"Dive",null,"Comm. Driving",null,null,null,"Excess","CTO",null,"Audited By:"]
[" ",null,null,null,null,null,null,null," ",null,null,null,null,null,null," ",null," ",null,null,null,"0000",null,null,null,"R01",null,null,null,null,null,null,null,null,"Prev-Balance",null,{"$f":"SUM(April2022!AK10)","v":0}]
["Work Phone Number",null,null,null,null,"Phone Ext.",null,null,"  Position Number",null,null,null,null,null,null,"Classification Title",null,null,null,null,null,null,null,null,null,null,null,null,null,null,"SOU",null,"Shift",null,"Earned",null,{"$f":"+AO29","v":0},{"$f":"+AO27","v":0}]
[9165555555,null,null,null,null,"",null,null,5653031581001,null,null,null,null,null,null,"Staff Programmer Analyst (Specialist) ",null,null,null,null,null,null,null,null,null,null,null,null,null,null,null,null,null,null,"Total",null,{"$f":"+AK6+AK7","v":0},{"$f":"+AL6+AL7","v":0}]
["Work Week Schedule",null,null,null,null,null,null,null,"Time Base",null,null,null,null,"Work Week Group",null,null,null,null,"Assigned Days Off",null,null,null,null,null,"AWW Regular Day Off (RDO)",null,null,null,null,null,"FTO",null,"Holiday",null,"Used -",null,{"$f":"(AL37)","v":0},{"$f":"+AQ32","v":0},null,"Actual Time Worked-Days Limit"]
["Regular Schedule",null,null,null,null,null,null,null,"Full Time",null,null,null,null,"2",null,null,null,null,"Sat, Sun",null,null,null,null,null,"N/A",null,null,null,null,null,null,null,null,null,"Balance",null,{"$f":"+AK8-AK9","v":0},{"$f":"+AL8-AL9","v":0},null,{"$f":"IF(I10=\"int\",SUM(A22:AF22),COUNTIF(A22:AF22,\">0\"))","v":0}]
[]
["III. LABOR DISTRIBUTION"]
[null,1,2,3,4,5,6,7,8,9,10,11,12,13,14,15,16,17,18,19,20,21,22,23,24,25,26,27,28,29,30,null,"Total","Type","D","Reporting Structure","Project ID","On Call","Project/WP",null,null,null,"Activity"]
[null,null,null,null,null,null,null,null,null,null,null,null,null,null,null,null,null,null,null,null,null,null,null,null,null,null,null,null,null,null,null,null,{"$f":"SUM(A14:AF14)","v":0},"REG","N"]
[null,null,null,null,null,null,null,null,null,null,null,null,null,null,null,null,null,null,null,null,null,null,null,null,null,null,null,null,null,null,null,null,0,null,"N"]
[null,null,null,null,null,null,null,null,null,null,null,null,null,null,null,null,null,null,null,null,null,null,null,null,null,null,null,null,null,null,null,null,0,null,"N"]
[null,null,null,null,null,null,null,null,null,null,null,null,null,null,null,null,null,null,null,null,null,null,null,null,null,null,null,null,null,null,null,null,0,null,"N"]
[null,null,null,null,null,null,null,null,null,null,null,null,null,null,null,null,null,null,null,null,null,null,null,null,null,null,null,null,null,null,null,null,0,null,"N"]
[null,null,null,null,null,null,null,null,null,null,null,null,null,null,null,null,null,null,null,null,null,null,null,null,null,null,null,null,null,null,null,null,0,null,"N"]
[null,null,null,null,null,null,null,null,null,null,null,null,null,null,null,null,null,null,null,null,null,null,null,null,null,null,null,null,null,null,null,null,0,null,"N"]
[{"$f":"A78","v":0},0,0,0,0,0,0,0,0,0,0,0,0,0,0,0,0,0,0,0,0,0,0,0,0,0,0,0,0,0,0,0,{"$f":"SUM(A21:AF21)","v":0},"Total from DFW 681A(s) (Attach)"]
[{"$f":"SUM(A14:A21)","v":0},0,0,0,0,0,0,0,0,0,0,0,0,0,0,0,0,0,0,0,0,0,0,0,0,0,0,0,0,0,0,0,{"$f":"SUM(AG14:AG20) + SUM(AG63:AG77)","v":0},"Total Hours",null,null,null,176,"Hours Required this Month"]
["Carry over hours from previous month",null,null,null,null,null,null,null,null,null,null,null,null,null,null,null,null,null,null,null,null,null,null,null,null,"Carry over hours for month"]
["IV. EXTRA HOURS WORKED"]
[null,1,2,3,4,5,6,7,8,9,10,11,12,13,14,15,16,17,18,19,20,21,22,23,24,25,26,27,28,29,30,null,"Summary of Extra Hours Worked:",null,null,null,null,null,null,null,"Hours","Paid This PP","Carry Over"]
[null,null,null,null,null,null,null,null,null,null,null,null,null,null,null,null,null,null,null,null,null,null,null,null,null,null,null,null,null,null,null,null,"Cash",null,null,null,null,null,null,null,{"$f":"SUM(A26:AF26)","v":0}]
[null,null,null,null,null,null,null,null,null,null,null,null,null,null,null,null,null,null,null,null,null,null,null,null,null,null,null,null,null,null,null,null,"CTO",null,"(CT06)",null,null,"(CT07)",null,null,{"$f":"SUM(A27:AF27)","v":0}]
[null,null,null,null,null,null,null,null,null,null,null,null,null,null,null,null,null,null,null,null,null,null,null,null,null,null,null,null,null,null,null,null,"Other (On-call/Standby)",null,null,null,null,{"$f":"SUM(A28:AF28)","v":0}]
["V. ABSENCE INFORMATION",null,null,null,null,null,null,null,null,"Date of Absence:  Enter code and number of hours in date blocks.",null,null,null,null,null,null,null,null,null,null,null,null,null,null,null,null,null,null,null,null,null,null,"Excess Hours",null,null,null,null,"(EX05)",null,null,0]
[null,1,2,3,4,5,6,7,8,9,10,11,12,13,14,15,16,17,18,19,20,21,22,23,24,25,26,27,28,29,30,null,null,null,null,null,null,null,null,null,{"$f":"SUM(AO26:AO27)+AO29","v":0}]
[null,null,null,null,null,null,null,null,null,null,null,null,null,null,null,null,null,null,null,null,null,null,null,null,null,null,null,null,null,null,null,null,"Summary of Absences:",null,null,null,null,"Hours",null,null,null,null,"Hours"]
[null,null,null,null,null,null,null,null,null,null,null,null,null,null,null,null,null,null,null,null,null,null,null,null,null,null,null,null,null,null,null,null,"Sick-Self (S)",null,null,null,"(SL01)",0,null,"CTO (CT)",null,"(CT01)",0]
[null,null,null,null,null,null,null,null,null,null,null,null,null,null,null,null,null,null,null,null,null,null,null,null,null,null,null,null,null,null,null,null,"Sick-Family (FS)",null,null,null,"(SL02)",0,null,"Holiday (H) ",null,null,0]
[null,null,null,null,null,null,null,null,null,null,null,null,null,null,null,null,null,null,null,null,null,null,null,null,null,null,null,null,null,null,null,null,"Annual Leave (AL)",null,null,null,"(AL01)",0,null,"Pro.Dev. (PT)",null,null,0]
[null,null,null,null,null,null,null,null,null,null,null,null,null,null,null,null,null,null,null,null,null,null,null,null,null,null,null,null,null,null,null,null,"Vacation (V)",null,null,null,"(VA01)",0,null,"Other (O1)",null,null,0]
[null,null,null,null,null,null,null,null,null,null,null,null,null,null,null,null,null,null,null,null,null,null,null,null,null,null,null,null,null,null,null,null,"Personal Holiday (PH)",null,null,null,"(PH01)",0,null,"Other (O2)",null,null,0]
["Comments",null,null,null,null,null,null,null,null,null,null,null,null,null,null,null,null,null,null,null,null,null,null,null,null,null,null,null,null,null,null,null,"Excess (EX)",null,null,null,"(EX01)",0,null,"Other (O3)",null,null,0]
[null,null,null,null,null,null,null,null,null,null,null,null,null,null,null,null,null,null,null,null,null,null,null,null,null,null,null,null,null,null,null,null,null,null,null,null,null,null,null,"Absence Total",null,null,{"$f":"SUM(AQ32:AQ37)+SUM(AL32:AL37)","v":0}]
[null,null,null,null,null,null,null,null,null,null,null,null,null,null,null,null,null,null,null,null,null,null,null,null,null,null,null,null,null,null,null,null,"Holiday credit earned",null,null,null,0,null,"hrs"]
[]
[null,"Certification of Employee",null,null,null,null,null,null,null,null,null,null,null,null,null,"Certification of Supervisor"]
[null,"Employees are certifying to the accuracy of the data reported - See instructions.",null,null,null,null,null,null,null,null,null,null,null,null,null,"Supervisors are certifying to the accuracy of the data reported - See instructions."]
[null,null,null,null,null,null,null,null,null,null,{"$f":"TODAY()","v":"2022-02-10"}]
[]
[]
[null,"   .  ",null,null,null,null,null,null,null,null,"Date",null,null,null,null,"Simon",null,null,null,null,null,null,null,null,"Date"]
[]
["Additional Labor Distribution For",null,null,null,null,null,null,null,null,null,null,null,null,null,null,null,null,null,null,null,null,null,"State of California",null,null,null,null,null,null,null,null,null,null,null,null,null,null,"Page",null,2,"of",2]
["Attendance and Labor",null,null,null,null,null,null,null,null,null,null,null,null,null,null,null,null,null,null,null,null,null,"Department of Fish and Wildlife",null,null,null,null,null,null,null,null,null,null,null,null,null,null,null,null,null,"Year","Mo"]
["Distribution Report",null,null,null,null,null,null,null,null,null,null,null,null,null,null,null,null,null,null,null,null,null,null,null,null,null,null,null,null,null,null,null,null,null,null,null,null,"Pay Period",null,null,{"$f":"AJ1","v":2019},{"$f":"AN1","v":5},null," "]
["DFW 681 A (Rev. 02/02/2018)"]
[]
["I. EMPLOYEE INFORMATION",null,null,null,null,null,null,null,null,"Instructions on Reverse Side"]
["Name",null,null,null,null,null,null,null,"Div/Branch/Reg",null,null,null,null,null,null,"Social Security Number"]
[{"$f":"Master_Page!A55","v":", "},null,null,null,null,null,null,null,{"$f":"Master_Page!R6","v":0},null,null,null,null,null,null,{"$f":"$V$6","v":"0000"}]
["Work Phone Number",null,null,null,null,null,null,null,"Position Number"]
[{"$f":"$A$8","v":9165555555},null,null,null,null,null,null,null,{"$f":"$I$8","v":5653031581001}]
[]
[]
["III. LABOR DISTRIBUTION"]
["Additional Labor Distribution totals will populate line 21 on the above Attendance Report"]
[null,1,2,3,4,5,6,7,8,9,10,11,12,13,14,15,16,17,18,19,20,21,22,23,24,25,26,27,28,29,30,null,"Total","Type","D","Reporting Structure","Project ID","On Call","Category",null,null,null,"Activity"]
[null,null,null,null,null,null,null,null,null,null,null,null,null,null,null,null,null,null,null,null,null,null,null,null,null,null,null,null,null,null,null,null,{"$f":"SUM(A63:AF63)","v":0},null,"N"]
[null,null,null,null,null,null,null,null,null,null,null,null,null,null,null,null,null,null,null,null,null,null,null,null,null,null,null,null,null,null,null,null,0,null,"N"]
[null,null,null,null,null,null,null,null,null,null,null,null,null,null,null,null,null,null,null,null,null,null,null,null,null,null,null,null,null,null,null,null,0,null,"N"]
[null,null,null,null,null,null,null,null,null,null,null,null,null,null,null,null,null,null,null,null,null,null,null,null,null,null,null,null,null,null,null,null,0,null,"N"]
[null,null,null,null,null,null,null,null,null,null,null,null,null,null,null,null,null,null,null,null,null,null,null,null,null,null,null,null,null,null,null,null,0,null,"N"]
[null,null,null,null,null,null,null,null,null,null,null,null,null,null,null,null,null,null,null,null,null,null,null,null,null,null,null,null,null,null,null,null,0,null,"N"]
[null,null,null,null,null,null,null,null,null,null,null,null,null,null,null,null,null,null,null,null,null,null,null,null,null,null,null,null,null,null,null,null,0,null,"N"]
[null,null,null,null,null,null,null,null,null,null,null,null,null,null,null,null,null,null,null,null,null,null,null,null,null,null,null,null,null,null,null,null,0,null,"N"]
[null,null,null,null,null,null,null,null,null,null,null,null,null,null,null,null,null,null,null,null,null,null,null,null,null,null,null,null,null,null,null,null,0,null,"N"]
[null,null,null,null,null,null,null,null,null,null,null,null,null,null,null,null,null,null,null,null,null,null,null,null,null,null,null,null,null,null,null,null,0,null,"N"]
[null,null,null,null,null,null,null,null,null,null,null,null,null,null,null,null,null,null,null,null,null,null,null,null,null,null,null,null,null,null,null,null,0,null,"N"]
[null,null,null,null,null,null,null,null,null,null,null,null,null,null,null,null,null,null,null,null,null,null,null,null,null,null,null,null,null,null,null,null,0,null,"N"]
[null,null,null,null,null,null,null,null,null,null,null,null,null,null,null,null,null,null,null,null,null,null,null,null,null,null,null,null,null,null,null,null,0,null,"N"]
[null,null,null,null,null,null,null,null,null,null,null,null,null,null,null,null,null,null,null,null,null,null,null,null,null,null,null,null,null,null,null,null,0,null,"N"]
[null,null,null,null,null,null,null,null,null,null,null,null,null,null,null,null,null,null,null,null,null,null,null,null,null,null,null,null,null,null,null,null,0,null,"N"]
[{"$f":"SUM(A63:A77)","v":0},0,0,0,0,0,0,0,0,0,0,0,0,0,0,0,0,0,0,0,0,0,0,0,0,0,0,0,0,0,0,0,{"$f":"SUM(AG63:AG77)","v":0}]
[null,1,2,3,4,5,6,7,8,9,10,11,12,13,14,15,16,17,18,19,20,21,22,23,24,25,26,27,28,29,30,null,"Enter Total on (DFW 681)"]
[null,null,null,null,null,null,null,null,null,null,null,null,null,null,null,null,null,null,null,null,null,null,null,null,null,null,null,null,null,null,null,null,null," "]
[null,null,null,null,null,null,null,null,null,null,null,null,null,null,null,null,null,null,null,null,null,null,null,null,null,null,null,null,null,null,null,null,null," "]
["DISTRIBUTION: ",null,null,null,null,null,"Accounting (ASB) - Original",null,null,null,null,null,null,null,null,null,"Supervisor",null,null,null,null,null,null,null,"Employee"]

{"sheet":"June2022","index":11,"n_rows":82,"n_cols":44,"rows_kept":82,"cut":false,"hidden":false,"merged":[[73,38,73,41],[74,38,74,41],[75,38,75,41],[76,38,76,41],[67,38,67,41],[68,38,68,41],[69,38,69,41],[70,38,70,41],[71,38,71,41],[72,38,72,41],[61,38,61,41],[62,38,62,41],[63,38,63,41],[64,38,64,41],[65,38,65,41],[66,38,66,41],[54,0,54,7],[54,8,54,14],[54,15,54,21],[56,0,56,7],[56,8,56,21],[60,0,60,31],[45,1,45,9],[45,10,45,13],[45,15,45,23],[45,24,45,27],[46,1,46,13],[46,15,46,27],[41,1,41,13],[41,15,41,27],[42,1,44,9],[42,10,44,13],[42,15,44,23],[42,24,44,27],[37,0,38,31],[37,39,38,41],[37,42,38,42],[38,32,38,35],[38,36,38,37],[40,1,40,13],[40,15,40,27],[35,32,35,35],[35,37,35,38],[35,39,35,40],[36,0,36,31],[36,32,36,35],[36,37,36,38],[36,39,36,40],[33,32,33,35],[33,37,33,38],[33,39,33,40],[34,32,34,35],[34,37,34,38],[34,39,34,40],[31,32,31,35],[31,37,31,38],[31,39,31,40],[32,32,32,35],[32,37,32,38],[32,39,32,40],[25,32,25,39],[26,32,26,33],[26,34,26,36],[26,37,26,39],[27,32,27,36],[28,32,28,36],[28,37,28,39],[20,41,20,42],[22,0,22,7],[22,9,22,24],[22,25,22,30],[22,32,22,42],[24,32,24,39],[14,38,14,41],[15,38,15,41],[16,38,16,41],[17,38,17,41],[18,38,18,41],[19,38,19,41],[9,30,9,31],[9,32,9,33],[9,34,9,35],[9,39,9,42],[12,38,12,41],[13,38,13,41],[7,34,7,35],[8,30,8,31],[8,32,8,33],[8,34,8,35],[8,39,8,42],[9,0,9,7],[9,8,9,12],[9,13,9,17],[9,18,9,23],[9,24,9,28],[7,0,7,4],[7,5,7,7],[7,8,7,14],[7,15,7,28],[7,30,7,31],[7,32,7,33],[5,39,5,42],[6,30,6,31],[6,32,6,33],[6,34,6,35],[3,9,3,16],[4,30,4,31],[4,32,4,33],[4,34,4,35],[4,39,4,42],[5,0,5,7],[5,8,5,14],[5,15,5,16],[5,17,5,20],[5,21,5,24],[0,22,0,26],[0,27,0,29],[0,31,0,32],[0,35,0,36],[1,27,1,29],[1,31,1,32],[5,25,5,28],[5,30,5,31],[5,32,5,33],[5,34,5,35]]}
[{"$f":"Master_Page!A1","v":"State of California"},null,null,null,null,null,null,null,null,null,null,null,null,null,null,null,{"$f":"Master_Page!Q1","v":"Attendance and Labor"},null,null,null,null,null,"Pay Period - From:",null,null,null,null,"2019-05-31",null,null,"To:","2019-06-30",null,null,"Year",2019,null,null,"Mo",6,"# Days",21]
[{"$f":"Master_Page!A2","v":"Department of Fish and Wildlife"},null,null,null,null,null,null,null,null,null,null,null,null,null,null,null,{"$f":"Master_Page!Q2","v":"Distribution Report"},null,null,null,null,null,null,null,null,null,null,"MM / DD /  YY",null,null,null,"MM / DD /  YY"]
["DFW 681 (Rev. 02/02/2018)"]
["I. EMPLOYEE INFORMATION",null,null,null,null,null,null,null,null,null,null,null,null,null,null,null,null,null,null,null,null,null,null,null,null,null,null,null,null,null,"II. OTHER PAY HOURS"]
["Last Name",null,null,null,null,null,null,null,"First Name",null,null,null,null,null,null,"M.I.",null,"Div/Branch or Region",null,null,null,"Social Security Number",null,null,null,"Bargaining Unit Number",null,null,null,null,"Dive",null,"Comm. Driving",null,null,null,"Excess","CTO",null,"Audited By:"]
[" ",null,null,null,null,null,null,null," ",null,null,null,null,null,null," ",null," ",null,null,null,"0000",null,null,null,"R01",null,null,null,null,null,null,null,null,"Prev-Balance",null,{"$f":"SUM('May2022'!AK10)","v":0}]
["Work Phone Number",null,null,null,null,"Phone Ext.",null,null,"  Position Number",null,null,null,null,null,null,"Classification Title",null,null,null,null,null,null,null,null,null,null,null,null,null,null,"SOU",null,"Shift",null,"Earned",null,{"$f":"+AO29","v":0},{"$f":"+AO27","v":0}]
[9165555555,null,null,null,null,"",null,null,5653031581001,null,null,null,null,null,null,"Staff Programmer Analyst (Specialist) ",null,null,null,null,null,null,null,null,null,null,null,null,null,null,null,null,null,null,"Total",null,{"$f":"+AK6+AK7","v":0},{"$f":"+AL6+AL7","v":0}]
["Work Week Schedule",null,null,null,null,null,null,null,"Time Base",null,null,null,null,"Work Week Group",null,null,null,null,"Assigned Days Off",null,null,null,null,null,"AWW Regular Day Off (RDO)",null,null,null,null,null,"FTO",null,"Holiday",null,"Used -",null,{"$f":"(AL37)","v":0},{"$f":"+AQ32","v":0},null,"Actual Time Worked-Days Limit"]
["Regular Schedule",null,null,null,null,null,null,null,"Full Time",null,null,null,null,"2",null,null,null,null,"Sat, Sun",null,null,null,null,null,"N/A",null,null,null,null,null,null,null,null,null,"Balance",null,{"$f":"+AK8-AK9","v":0},{"$f":"+AL8-AL9","v":0},null,{"$f":"IF(I10=\"int\",SUM(A22:AF22),COUNTIF(A22:AF22,\">0\"))","v":0}]
[]
["III. LABOR DISTRIBUTION"]
[null,31,1,2,3,4,5,6,7,8,9,10,11,12,13,14,15,16,17,18,19,20,21,22,23,24,25,26,27,28,29,30,"Total","Type","D","Reporting Structure","Project ID","On Call","Project/WP",null,null,null,"Activity"]
[null,null,null,null,null,null,null,null,null,null,null,null,null,null,null,null,null,null,null,null,null,null,null,null,null,null,null,null,null,null,null,null,{"$f":"SUM(A14:AF14)","v":0},"REG","N"]
[null,null,null,null,null,null,null,null,null,null,null,null,null,null,null,null,null,null,null,null,null,null,null,null,null,null,null,null,null,null,null,null,0,null,"N"]
[null,null,null,null,null,null,null,null,null,null,null,null,null,null,null,null,null,null,null,null,null,null,null,null,null,null,null,null,null,null,null,null,0,null,"N"]
[null,null,null,null,null,null,null,null,null,null,null,null,null,null,null,null,null,null,null,null,null,null,null,null,null,null,null,null,null,null,null,null,0,null,"N"]
[null,null,null,null,null,null,null,null,null,null,null,null,null,null,null,null,null,null,null,null,null,null,null,null,null,null,null,null,null,null,null,null,0,null,"N"]
[null,null,null,null,null,null,null,null,null,null,null,null,null,null,null,null,null,null,null,null,null,null,null,null,null,null,null,null,null,null,null,null,0,null,"N"]
[null,null,null,null,null,null,null,null,null,null,null,null,null,null,null,null,null,null,null,null,null,null,null,null,null,null,null,null,null,null,null,null,0,null,"N"]
[{"$f":"A78","v":0},0,0,0,0,0,0,0,0,0,0,0,0,0,0,0,0,0,0,0,0,0,0,0,0,0,0,0,0,0,0,0,{"$f":"SUM(A21:AF21)","v":0},"Total from DFW 681A(s) (Attach)"]
[{"$f":"SUM(A14:A21)","v":0},0,0,0,0,0,0,0,0,0,0,0,0,0,0,0,0,0,0,0,0,0,0,0,0,0,0,0,0,0,0,0,{"$f":"SUM(AG14:AG20) + SUM(AG63:AG77)","v":0},"Total Hours",null,null,null,168,"Hours Required this Month"]
["Carry over hours from previous month",null,null,null,null,null,null,null,null,null,null,null,null,null,null,null,null,null,null,null,null,null,null,null,null,"Carry over hours for month"]
["IV. EXTRA HOURS WORKED"]
[null,31,1,2,3,4,5,6,7,8,9,10,11,12,13,14,15,16,17,18,19,20,21,22,23,24,25,26,27,28,29,30,"Summary of Extra Hours Worked:",null,null,null,null,null,null,null,"Hours","Paid This PP","Carry Over"]
[null,null,null,null,null,null,null,null,null,null,null,null,null,null,null,null,null,null,null,null,null,null,null,null,null,null,null,null,null,null,null,null,"Cash",null,null,null,null,null,null,null,{"$f":"SUM(A26:AF26)","v":0}]
[null,null,null,null,null,null,null,null,null,null,null,null,null,null,null,null,null,null,null,null,null,null,null,null,null,null,null,null,null,null,null,null,"CTO",null,"(CT06)",null,null,"(CT07)",null,null,{"$f":"SUM(A27:AF27)","v":0}]
[null,null,null,null,null,null,null,null,null,null,null,null,null,null,null,null,null,null,null,null,null,null,null,null,null,null,null,null,null,null,null,null,"Other (On-call/Standby)",null,null,null,null,{"$f":"SUM(A28:AF28)","v":0}]
["V. ABSENCE INFORMATION",null,null,null,null,null,null,null,null,"Date of Absence:  Enter code and number of hours in date blocks.",null,null,null,null,null,null,null,null,null,null,null,null,null,null,null,null,null,null,null,null,null,null,"Excess Hours",null,null,null,null,"(EX05)",null,null,0]
[null,31,1,2,3,4,5,6,7,8,9,10,11,12,13,14,15,16,17,18,19,20,21,22,23,24,25,26,27,28,29,30,null,null,null,null,null,null,null,null,{"$f":"SUM(AO26:AO27)+AO29","v":0}]
[null,null,null,null,null,null,null,null,null,null,null,null,null,null,null,null,null,null,null,null,null,null,null,null,null,null,null,null,null,null,null,null,"Summary of Absences:",null,null,null,null,"Hours",null,null,null,null,"Hours"]
[null,null,null,null,null,null,null,null,null,null,null,null,null,null,null,null,null,null,null,null,null,null,null,null,null,null,null,null,null,null,null,null,"Sick-Self (S)",null,null,null,"(SL01)",0,null,"CTO (CT)",null,"(CT01)",0]
[null,null,null,null,null,null,null,null,null,null,null,null,null,null,null,null,null,null,null,null,null,null,null,null,null,null,null,null,null,null,null,null,"Sick-Family (FS)",null,null,null,"(SL02)",0,null,"Holiday (H) ",null,null,0]
[null,null,null,null,null,null,null,null,null,null,null,null,null,null,null,null,null,null,null,null,null,null,null,null,null,null,null,null,null,null,null,null,"Annual Leave (AL)",null,null,null,"(AL01)",0,null,"Pro.Dev. (PT)",null,null,0]
[null,null,null,null,null,null,null,null,null,null,null,null,null,null,null,null,null,null,null,null,null,null,null,null,null,null,null,null,null,null,null,null,"Vacation (V)",null,null,null,"(VA01)",0,null,"Other (O1)",null,null,0]
[null,null,null,null,null,null,null,null,null,null,null,null,null,null,null,null,null,null,null,null,null,null,null,null,null,null,null,null,null,null,null,null,"Personal Holiday (PH)",null,null,null,"(PH01)",0,null,"Other (O2)",null,null,0]
["Comments",null,null,null,null,null,null,null,null,null,null,null,null,null,null,null,null,null,null,null,null,null,null,null,null,null,null,null,null,null,null,null,"Excess (EX)",null,null,null,"(EX01)",0,null,"Other (O3)",null,null,0]
[null,null,null,null,null,null,null,null,null,null,null,null,null,null,null,null,null,null,null,null,null,null,null,null,null,null,null,null,null,null,null,null,null,null,null,null,null,null,null,"Absence Total",null,null,{"$f":"SUM(AQ32:AQ37)+SUM(AL32:AL37)","v":0}]
[null,null,null,null,null,null,null,null,null,null,null,null,null,null,null,null,null,null,null,null,null,null,null,null,null,null,null,null,null,null,null,null,"Holiday credit earned",null,null,null,0,null,"hrs"]
[]
[null,"Certification of Employee",null,null,null,null,null,null,null,null,null,null,null,null,null,"Certification of Supervisor"]
[null,"Employees are certifying to the accuracy of the data reported - See instructions.",null,null,null,null,null,null,null,null,null,null,null,null,null,"Supervisors are certifying to the accuracy of the data reported - See instructions."]
[null,null,null,null,null,null,null,null,null,null,{"$f":"TODAY()","v":"2022-02-10"}]
[]
[]
[null,"   .  ",null,null,null,null,null,null,null,null,"Date",null,null,null,null,"Simon",null,null,null,null,null,null,null,null,"Date"]
[]
["Additional Labor Distribution For",null,null,null,null,null,null,null,null,null,null,null,null,null,null,null,null,null,null,null,null,null,"State of California",null,null,null,null,null,null,null,null,null,null,null,null,null,null,"Page",null,2,"of",2]
["Attendance and Labor",null,null,null,null,null,null,null,null,null,null,null,null,null,null,null,null,null,null,null,null,null,"Department of Fish and Wildlife",null,null,null,null,null,null,null,null,null,null,null,null,null,null,null,null,null,"Year","Mo"]
["Distribution Report",null,null,null,null,null,null,null,null,null,null,null,null,null,null,null,null,null,null,null,null,null,null,null,null,null,null,null,null,null,null,null,null,null,null,null,null,"Pay Period",null,null,{"$f":"AJ1","v":2019},{"$f":"AN1","v":6},null," "]
["DFW 681 A (Rev. 02/02/2018)"]
[]
["I. EMPLOYEE INFORMATION",null,null,null,null,null,null,null,null,"Instructions on Reverse Side"]
["Name",null,null,null,null,null,null,null,"Div/Branch/Reg",null,null,null,null,null,null,"Social Security Number"]
[{"$f":"Master_Page!A55","v":", "},null,null,null,null,null,null,null,{"$f":"Master_Page!R6","v":0},null,null,null,null,null,null,{"$f":"$V$6","v":"0000"}]
["Work Phone Number",null,null,null,null,null,null,null,"Position Number"]
[{"$f":"$A$8","v":9165555555},null,null,null,null,null,null,null,{"$f":"$I$8","v":5653031581001}]
[]
[]
["III. LABOR DISTRIBUTION"]
["Additional Labor Distribution totals will populate line 21 on the above Attendance Report"]
[null,31,1,2,3,4,5,6,7,8,9,10,11,12,13,14,15,16,17,18,19,20,21,22,23,24,25,26,27,28,29,30,"Total","Type","D","Reporting Structure","Project ID","On Call","Category",null,null,null,"Activity"]
[null,null,null,null,null,null,null,null,null,null,null,null,null,null,null,null,null,null,null,null,null,null,null,null,null,null,null,null,null,null,null,null,{"$f":"SUM(A63:AF63)","v":0},null,"N"]
[null,null,null,null,null,null,null,null,null,null,null,null,null,null,null,null,null,null,null,null,null,null,null,null,null,null,null,null,null,null,null,null,0,null,"N"]
[null,null,null,null,null,null,null,null,null,null,null,null,null,null,null,null,null,null,null,null,null,null,null,null,null,null,null,null,null,null,null,null,0,null,"N"]
[null,null,null,null,null,null,null,null,null,null,null,null,null,null,null,null,null,null,null,null,null,null,null,null,null,null,null,null,null,null,null,null,0,null,"N"]
[null,null,null,null,null,null,null,null,null,null,null,null,null,null,null,null,null,null,null,null,null,null,null,null,null,null,null,null,null,null,null,null,0,null,"N"]
[null,null,null,null,null,null,null,null,null,null,null,null,null,null,null,null,null,null,null,null,null,null,null,null,null,null,null,null,null,null,null,null,0,null,"N"]
[null,null,null,null,null,null,null,null,null,null,null,null,null,null,null,null,null,null,null,null,null,null,null,null,null,null,null,null,null,null,null,null,0,null,"N"]
[null,null,null,null,null,null,null,null,null,null,null,null,null,null,null,null,null,null,null,null,null,null,null,null,null,null,null,null,null,null,null,null,0,null,"N"]
[null,null,null,null,null,null,null,null,null,null,null,null,null,null,null,null,null,null,null,null,null,null,null,null,null,null,null,null,null,null,null,null,0,null,"N"]
[null,null,null,null,null,null,null,null,null,null,null,null,null,null,null,null,null,null,null,null,null,null,null,null,null,null,null,null,null,null,null,null,0,null,"N"]
[null,null,null,null,null,null,null,null,null,null,null,null,null,null,null,null,null,null,null,null,null,null,null,null,null,null,null,null,null,null,null,null,0,null,"N"]
[null,null,null,null,null,null,null,null,null,null,null,null,null,null,null,null,null,null,null,null,null,null,null,null,null,null,null,null,null,null,null,null,0,null,"N"]
[null,null,null,null,null,null,null,null,null,null,null,null,null,null,null,null,null,null,null,null,null,null,null,null,null,null,null,null,null,null,null,null,0,null,"N"]
[null,null,null,null,null,null,null,null,null,null,null,null,null,null,null,null,null,null,null,null,null,null,null,null,null,null,null,null,null,null,null,null,0,null,"N"]
[null,null,null,null,null,null,null,null,null,null,null,null,null,null,null,null,null,null,null,null,null,null,null,null,null,null,null,null,null,null,null,null,0,null,"N"]
[{"$f":"SUM(A63:A77)","v":0},0,0,0,0,0,0,0,0,0,0,0,0,0,0,0,0,0,0,0,0,0,0,0,0,0,0,0,0,0,0,0,{"$f":"SUM(AG63:AG77)","v":0}]
[null,31,1,2,3,4,5,6,7,8,9,10,11,12,13,14,15,16,17,18,19,20,21,22,23,24,25,26,27,28,29,30,"Enter Total on (DFW 681)"]
[null,null,null,null,null,null,null,null,null,null,null,null,null,null,null,null,null,null,null,null,null,null,null,null,null,null,null,null,null,null,null,null,null," "]
[null,null,null,null,null,null,null,null,null,null,null,null,null,null,null,null,null,null,null,null,null,null,null,null,null,null,null,null,null,null,null,null,null," "]
["DISTRIBUTION: ",null,null,null,null,null,"Accounting (ASB) - Original",null,null,null,null,null,null,null,null,null,"Supervisor",null,null,null,null,null,null,null,"Employee"]

{"sheet":"July2022","index":12,"n_rows":82,"n_cols":44,"rows_kept":82,"cut":false,"hidden":false,"merged":[[73,38,73,41],[74,38,74,41],[75,38,75,41],[76,38,76,41],[67,38,67,41],[68,38,68,41],[69,38,69,41],[70,38,70,41],[71,38,71,41],[72,38,72,41],[61,38,61,41],[62,38,62,41],[63,38,63,41],[64,38,64,41],[65,38,65,41],[66,38,66,41],[54,0,54,7],[54,8,54,14],[54,15,54,21],[56,0,56,7],[56,8,56,21],[60,0,60,31],[45,1,45,9],[45,10,45,13],[45,15,45,23],[45,24,45,27],[46,1,46,13],[46,15,46,27],[41,1,41,13],[41,15,41,27],[42,1,44,9],[42,10,44,13],[42,15,44,23],[42,24,44,27],[37,0,38,31],[37,39,38,41],[37,42,38,42],[38,32,38,35],[38,36,38,37],[40,1,40,13],[40,15,40,27],[35,32,35,35],[35,37,35,38],[35,39,35,40],[36,0,36,31],[36,32,36,35],[36,37,36,38],[36,39,36,40],[33,32,33,35],[33,37,33,38],[33,39,33,40],[34,32,34,35],[34,37,34,38],[34,39,34,40],[31,32,31,35],[31,37,31,38],[31,39,31,40],[32,32,32,35],[32,37,32,38],[32,39,32,40],[25,32,25,39],[26,32,26,33],[26,34,26,36],[26,37,26,39],[27,32,27,36],[28,32,28,36],[28,37,28,39],[20,41,20,42],[22,0,22,7],[22,9,22,24],[22,25,22,30],[22,32,22,42],[24,32,24,39],[14,38,14,41],[15,38,15,41],[16,38,16,41],[17,38,17,41],[18,38,18,41],[19,38,19,41],[9,30,9,31],[9,32,9,33],[9,34,9,35],[9,39,9,42],[12,38,12,41],[13,38,13,41],[7,34,7,35],[8,30,8,31],[8,32,8,33],[8,34,8,35],[8,39,8,42],[9,0,9,7],[9,8,9,12],[9,13,9,17],[9,18,9,23],[9,24,9,28],[7,0,7,4],[7,5,7,7],[7,8,7,14],[7,15,7,28],[7,30,7,31],[7,32,7,33],[5,39,5,42],[6,30,6,31],[6,32,6,33],[6,34,6,35],[3,9,3,16],[4,30,4,31],[4,32,4,33],[4,34,4,35],[4,39,4,42],[5,0,5,7],[5,8,5,14],[5,15,5,16],[5,17,5,20],[5,21,5,24],[0,22,0,26],[0,27,0,29],[0,31,0,32],[0,35,0,36],[1,27,1,29],[1,31,1,32],[5,25,5,28],[5,30,5,31],[5,32,5,33],[5,34,5,35]]}
[{"$f":"Master_Page!A1","v":"State of California"},null,null,null,null,null,null,null,null,null,null,null,null,null,null,null,{"$f":"Master_Page!Q1","v":"Attendance and Labor"},null,null,null,null,null,"Pay Period - From:",null,null,null,null,"2019-07-01",null,null,"To:","2019-07-30",null,null,"Year",2019,null,null,"Mo",7,"# Days",22]
[{"$f":"Master_Page!A2","v":"Department of Fish and Wildlife"},null,null,null,null,null,null,null,null,null,null,null,null,null,null,null,{"$f":"Master_Page!Q2","v":"Distribution Report"},null,null,null,null,null,null,null,null,null,null,"MM / DD /  YY",null,null,null,"MM / DD /  YY"]
["DFW 681 (Rev. 02/02/2018)"]
["I. EMPLOYEE INFORMATION",null,null,null,null,null,null,null,null,null,null,null,null,null,null,null,null,null,null,null,null,null,null,null,null,null,null,null,null,null,"II. OTHER PAY HOURS"]
["Last Name",null,null,null,null,null,null,null,"First Name",null,null,null,null,null,null,"M.I.",null,"Div/Branch or Region",null,null,null,"Social Security Number",null,null,null,"Bargaining Unit Number",null,null,null,null,"Dive",null,"Comm. Driving",null,null,null,"Excess","CTO",null,"Audited By:"]
[" ",null,null,null,null,null,null,null," ",null,null,null,null,null,null," ",null," ",null,null,null,"0000",null,null,null,"R01",null,null,null,null,null,null,null,null,"Prev-Balance",null,{"$f":"SUM(June2022!AK10)","v":0}]
["Work Phone Number",null,null,null,null,"Phone Ext.",null,null,"  Position Number",null,null,null,null,null,null,"Classification Title",null,null,null,null,null,null,null,null,null,null,null,null,null,null,"SOU",null,"Shift",null,"Earned",null,{"$f":"+AO29","v":0},{"$f":"+AO27","v":0}]
[9165555555,null,null,null,null,"",null,null,5653031581001,null,null,null,null,null,null,"Staff Programmer Analyst (Specialist) ",null,null,null,null,null,null,null,null,null,null,null,null,null,null,null,null,null,null,"Total",null,{"$f":"+AK6+AK7","v":0},{"$f":"+AL6+AL7","v":0}]
["Work Week Schedule",null,null,null,null,null,null,null,"Time Base",null,null,null,null,"Work Week Group",null,null,null,null,"Assigned Days Off",null,null,null,null,null,"AWW Regular Day Off (RDO)",null,null,null,null,null,"FTO",null,"Holiday",null,"Used -",null,{"$f":"(AL37)","v":0},{"$f":"+AQ32","v":0},null,"Actual Time Worked-Days Limit"]
["Regular Schedule",null,null,null,null,null,null,null,"Full Time",null,null,null,null,"2",null,null,null,null,"Sat, Sun",null,null,null,null,null,"N/A",null,null,null,null,null,null,null,null,null,"Balance",null,{"$f":"+AK8-AK9","v":0},{"$f":"+AL8-AL9","v":0},null,{"$f":"IF(I10=\"int\",SUM(A22:AF22),COUNTIF(A22:AF22,\">0\"))","v":0}]
[]
["III. LABOR DISTRIBUTION"]
[null,1,2,3,4,5,6,7,8,9,10,11,12,13,14,15,16,17,18,19,20,21,22,23,24,25,26,27,28,29,30,null,"Total","Type","D","Reporting Structure","Project ID","On Call","Project/WP",null,null,null,"Activity"]
[null,null,null,null,null,null,null,null,null,null,null,null,null,null,null,null,null,null,null,null,null,null,null,null,null,null,null,null,null,null,null,null,{"$f":"SUM(A14:AF14)","v":0},"REG","N"]
[null,null,null,null,null,null,null,null,null,null,null,null,null,null,null,null,null,null,null,null,null,null,null,null,null,null,null,null,null,null,null,null,0,null,"N"]
[null,null,null,null,null,null,null,null,null,null,null,null,null,null,null,null,null,null,null,null,null,null,null,null,null,null,null,null,null,null,null,null,0,null,"N"]
[null,null,null,null,null,null,null,null,null,null,null,null,null,null,null,null,null,null,null,null,null,null,null,null,null,null,null,null,null,null,null,null,0,null,"N"]
[null,null,null,null,null,null,null,null,null,null,null,null,null,null,null,null,null,null,null,null,null,null,null,null,null,null,null,null,null,null,null,null,0,null,"N"]
[null,null,null,null,null,null,null,null,null,null,null,null,null,null,null,null,null,null,null,null,null,null,null,null,null,null,null,null,null,null,null,null,0,null,"N"]
[null,null,null,null,null,null,null,null,null,null,null,null,null,null,null,null,null,null,null,null,null,null,null,null,null,null,null,null,null,null,null,null,0,null,"N"]
[{"$f":"A78","v":0},0,0,0,0,0,0,0,0,0,0,0,0,0,0,0,0,0,0,0,0,0,0,0,0,0,0,0,0,0,0,0,{"$f":"SUM(A21:AF21)","v":0},"Total from DFW 681A(s) (Attach)"]
[{"$f":"SUM(A14:A21)","v":0},0,0,0,0,0,0,0,0,0,0,0,0,0,0,0,0,0,0,0,0,0,0,0,0,0,0,0,0,0,0,0,{"$f":"SUM(AG14:AG20) + SUM(AG63:AG77)","v":0},"Total Hours",null,null,null,176,"Hours Required this Month"]
["Carry over hours from previous month",null,null,null,null,null,null,null,null,null,null,null,null,null,null,null,null,null,null,null,null,null,null,null,null,"Carry over hours for month"]
["IV. EXTRA HOURS WORKED"]
[null,1,2,3,4,5,6,7,8,9,10,11,12,13,14,15,16,17,18,19,20,21,22,23,24,25,26,27,28,29,30,null,"Summary of Extra Hours Worked:",null,null,null,null,null,null,null,"Hours","Paid This PP","Carry Over"]
[null,null,null,null,null,null,null,null,null,null,null,null,null,null,null,null,null,null,null,null,null,null,null,null,null,null,null,null,null,null,null,null,"Cash",null,null,null,null,null,null,null,{"$f":"SUM(A26:AF26)","v":0}]
[null,null,null,null,null,null,null,null,null,null,null,null,null,null,null,null,null,null,null,null,null,null,null,null,null,null,null,null,null,null,null,null,"CTO",null,"(CT06)",null,null,"(CT07)",null,null,{"$f":"SUM(A27:AF27)","v":0}]
[null,null,null,null,null,null,null,null,null,null,null,null,null,null,null,null,null,null,null,null,null,null,null,null,null,null,null,null,null,null,null,null,"Other (On-call/Standby)",null,null,null,null,{"$f":"SUM(A28:AF28)","v":0}]
["V. ABSENCE INFORMATION",null,null,null,null,null,null,null,null,"Date of Absence:  Enter code and number of hours in date blocks.",null,null,null,null,null,null,null,null,null,null,null,null,null,null,null,null,null,null,null,null,null,null,"Excess Hours",null,null,null,null,"(EX05)",null,null,0]
[null,1,2,3,4,5,6,7,8,9,10,11,12,13,14,15,16,17,18,19,20,21,22,23,24,25,26,27,28,29,30,null,null,null,null,null,null,null,null,null,{"$f":"SUM(AO26:AO27)+AO29","v":0}]
[null,null,null,null,null,null,null,null,null,null,null,null,null,null,null,null,null,null,null,null,null,null,null,null,null,null,null,null,null,null,null,null,"Summary of Absences:",null,null,null,null,"Hours",null,null,null,null,"Hours"]
[null,null,null,null,null,null,null,null,null,null,null,null,null,null,null,null,null,null,null,null,null,null,null,null,null,null,null,null,null,null,null,null,"Sick-Self (S)",null,null,null,"(SL01)",0,null,"CTO (CT)",null,"(CT01)",0]
[null,null,null,null,null,null,null,null,null,null,null,null,null,null,null,null,null,null,null,null,null,null,null,null,null,null,null,null,null,null,null,null,"Sick-Family (FS)",null,null,null,"(SL02)",0,null,"Holiday (H) ",null,null,0]
[null,null,null,null,null,null,null,null,null,null,null,null,null,null,null,null,null,null,null,null,null,null,null,null,null,null,null,null,null,null,null,null,"Annual Leave (AL)",null,null,null,"(AL01)",0,null,"Pro.Dev. (PT)",null,null,0]
[null,null,null,null,null,null,null,null,null,null,null,null,null,null,null,null,null,null,null,null,null,null,null,null,null,null,null,null,null,null,null,null,"Vacation (V)",null,null,null,"(VA01)",0,null,"Other (O1)",null,null,0]
[null,null,null,null,null,null,null,null,null,null,null,null,null,null,null,null,null,null,null,null,null,null,null,null,null,null,null,null,null,null,null,null,"Personal Holiday (PH)",null,null,null,"(PH01)",0,null,"Other (O2)",null,null,0]
["Comments",null,null,null,null,null,null,null,null,null,null,null,null,null,null,null,null,null,null,null,null,null,null,null,null,null,null,null,null,null,null,null,"Excess (EX)",null,null,null,"(EX01)",0,null,"Other (O3)",null,null,0]
[null,null,null,null,null,null,null,null,null,null,null,null,null,null,null,null,null,null,null,null,null,null,null,null,null,null,null,null,null,null,null,null,null,null,null,null,null,null,null,"Absence Total",null,null,{"$f":"SUM(AQ32:AQ37)+SUM(AL32:AL37)","v":0}]
[null,null,null,null,null,null,null,null,null,null,null,null,null,null,null,null,null,null,null,null,null,null,null,null,null,null,null,null,null,null,null,null,"Holiday credit earned",null,null,null,0,null,"hrs"]
[]
[null,"Certification of Employee",null,null,null,null,null,null,null,null,null,null,null,null,null,"Certification of Supervisor"]
[null,"Employees are certifying to the accuracy of the data reported - See instructions.",null,null,null,null,null,null,null,null,null,null,null,null,null,"Supervisors are certifying to the accuracy of the data reported - See instructions."]
[null,null,null,null,null,null,null,null,null,null,{"$f":"TODAY()","v":"2022-02-10"}]
[]
[]
[null,"   .  ",null,null,null,null,null,null,null,null,"Date",null,null,null,null,"Simon",null,null,null,null,null,null,null,null,"Date"]
[]
["Additional Labor Distribution For",null,null,null,null,null,null,null,null,null,null,null,null,null,null,null,null,null,null,null,null,null,"State of California",null,null,null,null,null,null,null,null,null,null,null,null,null,null,"Page",null,2,"of",2]
["Attendance and Labor",null,null,null,null,null,null,null,null,null,null,null,null,null,null,null,null,null,null,null,null,null,"Department of Fish and Wildlife",null,null,null,null,null,null,null,null,null,null,null,null,null,null,null,null,null,"Year","Mo"]
["Distribution Report",null,null,null,null,null,null,null,null,null,null,null,null,null,null,null,null,null,null,null,null,null,null,null,null,null,null,null,null,null,null,null,null,null,null,null,null,"Pay Period",null,null,{"$f":"AJ1","v":2019},{"$f":"AN1","v":7},null," "]
["DFW 681 A (Rev. 02/02/2018)"]
[]
["I. EMPLOYEE INFORMATION",null,null,null,null,null,null,null,null,"Instructions on Reverse Side"]
["Name",null,null,null,null,null,null,null,"Div/Branch/Reg",null,null,null,null,null,null,"Social Security Number"]
[{"$f":"Master_Page!A55","v":", "},null,null,null,null,null,null,null,{"$f":"Master_Page!R6","v":0},null,null,null,null,null,null,{"$f":"$V$6","v":"0000"}]
["Work Phone Number",null,null,null,null,null,null,null,"Position Number"]
[{"$f":"$A$8","v":9165555555},null,null,null,null,null,null,null,{"$f":"$I$8","v":5653031581001}]
[]
[]
["III. LABOR DISTRIBUTION"]
["Additional Labor Distribution totals will populate line 21 on the above Attendance Report"]
[null,1,2,3,4,5,6,7,8,9,10,11,12,13,14,15,16,17,18,19,20,21,22,23,24,25,26,27,28,29,30,null,"Total","Type","D","Reporting Structure","Project ID","On Call","Category",null,null,null,"Activity"]
[null,null,null,null,null,null,null,null,null,null,null,null,null,null,null,null,null,null,null,null,null,null,null,null,null,null,null,null,null,null,null,null,{"$f":"SUM(A63:AF63)","v":0},null,"N"]
[null,null,null,null,null,null,null,null,null,null,null,null,null,null,null,null,null,null,null,null,null,null,null,null,null,null,null,null,null,null,null,null,0,null,"N"]
[null,null,null,null,null,null,null,null,null,null,null,null,null,null,null,null,null,null,null,null,null,null,null,null,null,null,null,null,null,null,null,null,0,null,"N"]
[null,null,null,null,null,null,null,null,null,null,null,null,null,null,null,null,null,null,null,null,null,null,null,null,null,null,null,null,null,null,null,null,0,null,"N"]
[null,null,null,null,null,null,null,null,null,null,null,null,null,null,null,null,null,null,null,null,null,null,null,null,null,null,null,null,null,null,null,null,0,null,"N"]
[null,null,null,null,null,null,null,null,null,null,null,null,null,null,null,null,null,null,null,null,null,null,null,null,null,null,null,null,null,null,null,null,0,null,"N"]
[null,null,null,null,null,null,null,null,null,null,null,null,null,null,null,null,null,null,null,null,null,null,null,null,null,null,null,null,null,null,null,null,0,null,"N"]
[null,null,null,null,null,null,null,null,null,null,null,null,null,null,null,null,null,null,null,null,null,null,null,null,null,null,null,null,null,null,null,null,0,null,"N"]
[null,null,null,null,null,null,null,null,null,null,null,null,null,null,null,null,null,null,null,null,null,null,null,null,null,null,null,null,null,null,null,null,0,null,"N"]
[null,null,null,null,null,null,null,null,null,null,null,null,null,null,null,null,null,null,null,null,null,null,null,null,null,null,null,null,null,null,null,null,0,null,"N"]
[null,null,null,null,null,null,null,null,null,null,null,null,null,null,null,null,null,null,null,null,null,null,null,null,null,null,null,null,null,null,null,null,0,null,"N"]
[null,null,null,null,null,null,null,null,null,null,null,null,null,null,null,null,null,null,null,null,null,null,null,null,null,null,null,null,null,null,null,null,0,null,"N"]
[null,null,null,null,null,null,null,null,null,null,null,null,null,null,null,null,null,null,null,null,null,null,null,null,null,null,null,null,null,null,null,null,0,null,"N"]
[null,null,null,null,null,null,null,null,null,null,null,null,null,null,null,null,null,null,null,null,null,null,null,null,null,null,null,null,null,null,null,null,0,null,"N"]
[null,null,null,null,null,null,null,null,null,null,null,null,null,null,null,null,null,null,null,null,null,null,null,null,null,null,null,null,null,null,null,null,0,null,"N"]
[{"$f":"SUM(A63:A77)","v":0},0,0,0,0,0,0,0,0,0,0,0,0,0,0,0,0,0,0,0,0,0,0,0,0,0,0,0,0,0,0,0,{"$f":"SUM(AG63:AG77)","v":0}]
[null,1,2,3,4,5,6,7,8,9,10,11,12,13,14,15,16,17,18,19,20,21,22,23,24,25,26,27,28,29,30,null,"Enter Total on (DFW 681)"]
[null,null,null,null,null,null,null,null,null,null,null,null,null,null,null,null,null,null,null,null,null,null,null,null,null,null,null,null,null,null,null,null,null," "]
[null,null,null,null,null,null,null,null,null,null,null,null,null,null,null,null,null,null,null,null,null,null,null,null,null,null,null,null,null,null,null,null,null," "]
["DISTRIBUTION: ",null,null,null,null,null,"Accounting (ASB) - Original",null,null,null,null,null,null,null,null,null,"Supervisor",null,null,null,null,null,null,null,"Employee"]

{"sheet":"August2022","index":13,"n_rows":82,"n_cols":44,"rows_kept":82,"cut":false,"hidden":false,"merged":[[73,38,73,41],[74,38,74,41],[75,38,75,41],[76,38,76,41],[67,38,67,41],[68,38,68,41],[69,38,69,41],[70,38,70,41],[71,38,71,41],[72,38,72,41],[61,38,61,41],[62,38,62,41],[63,38,63,41],[64,38,64,41],[65,38,65,41],[66,38,66,41],[54,0,54,7],[54,8,54,14],[54,15,54,21],[56,0,56,7],[56,8,56,21],[60,0,60,31],[45,1,45,9],[45,10,45,13],[45,15,45,23],[45,24,45,27],[46,1,46,13],[46,15,46,27],[41,1,41,13],[41,15,41,27],[42,1,44,9],[42,10,44,13],[42,15,44,23],[42,24,44,27],[37,0,38,31],[37,39,38,41],[37,42,38,42],[38,32,38,35],[38,36,38,37],[40,1,40,13],[40,15,40,27],[35,32,35,35],[35,37,35,38],[35,39,35,40],[36,0,36,31],[36,32,36,35],[36,37,36,38],[36,39,36,40],[33,32,33,35],[33,37,33,38],[33,39,33,40],[34,32,34,35],[34,37,34,38],[34,39,34,40],[31,32,31,35],[31,37,31,38],[31,39,31,40],[32,32,32,35],[32,37,32,38],[32,39,32,40],[25,32,25,39],[26,32,26,33],[26,34,26,36],[26,37,26,39],[27,32,27,36],[28,32,28,36],[28,37,28,39],[20,41,20,42],[22,0,22,7],[22,9,22,24],[22,25,22,30],[22,32,22,42],[24,32,24,39],[14,38,14,41],[15,38,15,41],[16,38,16,41],[17,38,17,41],[18,38,18,41],[19,38,19,41],[9,30,9,31],[9,32,9,33],[9,34,9,35],[9,39,9,42],[12,38,12,41],[13,38,13,41],[7,34,7,35],[8,30,8,31],[8,32,8,33],[8,34,8,35],[8,39,8,42],[9,0,9,7],[9,8,9,12],[9,13,9,17],[9,18,9,23],[9,24,9,28],[7,0,7,4],[7,5,7,7],[7,8,7,14],[7,15,7,28],[7,30,7,31],[7,32,7,33],[5,39,5,42],[6,30,6,31],[6,32,6,33],[6,34,6,35],[3,9,3,16],[4,30,4,31],[4,32,4,33],[4,34,4,35],[4,39,4,42],[5,0,5,7],[5,8,5,14],[5,15,5,16],[5,17,5,20],[5,21,5,24],[0,22,0,26],[0,27,0,29],[0,31,0,32],[0,35,0,36],[1,27,1,29],[1,31,1,32],[5,25,5,28],[5,30,5,31],[5,32,5,33],[5,34,5,35]]}
[{"$f":"Master_Page!A1","v":"State of California"},null,null,null,null,null,null,null,null,null,null,null,null,null,null,null,{"$f":"Master_Page!Q1","v":"Attendance and Labor"},null,null,null,null,null,"Pay Period - From:",null,null,null,null,"2019-07-31",null,null,"To:","2019-08-29",null,null,"Year",2019,null,null,"Mo",8,"# Days",22]
[{"$f":"Master_Page!A2","v":"Department of Fish and Wildlife"},null,null,null,null,null,null,null,null,null,null,null,null,null,null,null,{"$f":"Master_Page!Q2","v":"Distribution Report"},null,null,null,null,null,null,null,null,null,null,"MM / DD /  YY",null,null,null,"MM / DD /  YY"]
["DFW 681 (Rev. 02/02/2018)"]
["I. EMPLOYEE INFORMATION",null,null,null,null,null,null,null,null,null,null,null,null,null,null,null,null,null,null,null,null,null,null,null,null,null,null,null,null,null,"II. OTHER PAY HOURS"]
["Last Name",null,null,null,null,null,null,null,"First Name",null,null,null,null,null,null,"M.I.",null,"Div/Branch or Region",null,null,null,"Social Security Number",null,null,null,"Bargaining Unit Number",null,null,null,null,"Dive",null,"Comm. Driving",null,null,null,"Excess","CTO",null,"Audited By:"]
[" ",null,null,null,null,null,null,null," ",null,null,null,null,null,null," ",null," ",null,null,null,"0000",null,null,null,"R01",null,null,null,null,null,null,null,null,"Prev-Balance",null,{"$f":"SUM(July2022!AK10)","v":0}]
["Work Phone Number",null,null,null,null,"Phone Ext.",null,null,"  Position Number",null,null,null,null,null,null,"Classification Title",null,null,null,null,null,null,null,null,null,null,null,null,null,null,"SOU",null,"Shift",null,"Earned",null,{"$f":"+AO29","v":0},{"$f":"+AO27","v":0}]
[9165555555,null,null,null,null,"",null,null,5653031581001,null,null,null,null,null,null,"Staff Programmer Analyst (Specialist) ",null,null,null,null,null,null,null,null,null,null,null,null,null,null,null,null,null,null,"Total",null,{"$f":"+AK6+AK7","v":0},{"$f":"+AL6+AL7","v":0}]
["Work Week Schedule",null,null,null,null,null,null,null,"Time Base",null,null,null,null,"Work Week Group",null,null,null,null,"Assigned Days Off",null,null,null,null,null,"AWW Regular Day Off (RDO)",null,null,null,null,null,"FTO",null,"Holiday",null,"Used -",null,{"$f":"(AL37)","v":0},{"$f":"+AQ32","v":0},null,"Actual Time Worked-Days Limit"]
["Regular Schedule",null,null,null,null,null,null,null,"Full Time",null,null,null,null,"2",null,null,null,null,"Sat, Sun",null,null,null,null,null,"N/A",null,null,null,null,null,null,null,null,null,"Balance",null,{"$f":"+AK8-AK9","v":0},{"$f":"+AL8-AL9","v":0},null,{"$f":"IF(I10=\"int\",SUM(A22:AF22),COUNTIF(A22:AF22,\">0\"))","v":0}]
[]
["III. LABOR DISTRIBUTION"]
[null,31,1,2,3,4,5,6,7,8,9,10,11,12,13,14,15,16,17,18,19,20,21,22,23,24,25,26,27,28,29,null,"Total","Type","D","Reporting Structure","Project ID","On Call","Project/WP",null,null,null,"Activity"]
[null,null,null,null,null,null,null,null,null,null,null,null,null,null,null,null,null,null,null,null,null,null,null,null,null,null,null,null,null,null,null,null,{"$f":"SUM(A14:AF14)","v":0},"REG","N"]
[null,null,null,null,null,null,null,null,null,null,null,null,null,null,null,null,null,null,null,null,null,null,null,null,null,null,null,null,null,null,null,null,0,null,"N"]
[null,null,null,null,null,null,null,null,null,null,null,null,null,null,null,null,null,null,null,null,null,null,null,null,null,null,null,null,null,null,null,null,0,null,"N"]
[null,null,null,null,null,null,null,null,null,null,null,null,null,null,null,null,null,null,null,null,null,null,null,null,null,null,null,null,null,null,null,null,0,null,"N"]
[null,null,null,null,null,null,null,null,null,null,null,null,null,null,null,null,null,null,null,null,null,null,null,null,null,null,null,null,null,null,null,null,0,null,"N"]
[null,null,null,null,null,null,null,null,null,null,null,null,null,null,null,null,null,null,null,null,null,null,null,null,null,null,null,null,null,null,null,null,0,null,"N"]
[null,null,null,null,null,null,null,null,null,null,null,null,null,null,null,null,null,null,null,null,null,null,null,null,null,null,null,null,null,null,null,null,0,null,"N"]
[{"$f":"A78","v":0},0,0,0,0,0,0,0,0,0,0,0,0,0,0,0,0,0,0,0,0,0,0,0,0,0,0,0,0,0,0,0,{"$f":"SUM(A21:AF21)","v":0},"Total from DFW 681A(s) (Attach)"]
[{"$f":"SUM(A14:A21)","v":0},0,0,0,0,0,0,0,0,0,0,0,0,0,0,0,0,0,0,0,0,0,0,0,0,0,0,0,0,0,0,0,{"$f":"SUM(AG14:AG20) + SUM(AG63:AG77)","v":0},"Total Hours",null,null,null,176,"Hours Required this Month"]
["Carry over hours from previous month",null,null,null,null,null,null,null,null,null,null,null,null,null,null,null,null,null,null,null,null,null,null,null,null,"Carry over hours for month"]
["IV. EXTRA HOURS WORKED"]
[null,31,1,2,3,4,5,6,7,8,9,10,11,12,13,14,15,16,17,18,19,20,21,22,23,24,25,26,27,28,29,null,"Summary of Extra Hours Worked:",null,null,null,null,null,null,null,"Hours","Paid This PP","Carry Over"]
[null,null,null,null,null,null,null,null,null,null,null,null,null,null,null,null,null,null,null,null,null,null,null,null,null,null,null,null,null,null,null,null,"Cash",null,null,null,null,null,null,null,{"$f":"SUM(A26:AF26)","v":0}]
[null,null,null,null,null,null,null,null,null,null,null,null,null,null,null,null,null,null,null,null,null,null,null,null,null,null,null,null,null,null,null,null,"CTO",null,"(CT06)",null,null,"(CT07)",null,null,{"$f":"SUM(A27:AF27)","v":0}]
[null,null,null,null,null,null,null,null,null,null,null,null,null,null,null,null,null,null,null,null,null,null,null,null,null,null,null,null,null,null,null,null,"Other (On-call/Standby)",null,null,null,null,{"$f":"SUM(A28:AF28)","v":0}]
["V. ABSENCE INFORMATION",null,null,null,null,null,null,null,null,"Date of Absence:  Enter code and number of hours in date blocks.",null,null,null,null,null,null,null,null,null,null,null,null,null,null,null,null,null,null,null,null,null,null,"Excess Hours",null,null,null,null,"(EX05)",null,null,0]
[null,31,1,2,3,4,5,6,7,8,9,10,11,12,13,14,15,16,17,18,19,20,21,22,23,24,25,26,27,28,29,null,null,null,null,null,null,null,null,null,{"$f":"SUM(AO26:AO27)+AO29","v":0}]
[null,null,null,null,null,null,null,null,null,null,null,null,null,null,null,null,null,null,null,null,null,null,null,null,null,null,null,null,null,null,null,null,"Summary of Absences:",null,null,null,null,"Hours",null,null,null,null,"Hours"]
[null,null,null,null,null,null,null,null,null,null,null,null,null,null,null,null,null,null,null,null,null,null,null,null,null,null,null,null,null,null,null,null,"Sick-Self (S)",null,null,null,"(SL01)",0,null,"CTO (CT)",null,"(CT01)",0]
[null,null,null,null,null,null,null,null,null,null,null,null,null,null,null,null,null,null,null,null,null,null,null,null,null,null,null,null,null,null,null,null,"Sick-Family (FS)",null,null,null,"(SL02)",0,null,"Holiday (H) ",null,null,0]
[null,null,null,null,null,null,null,null,null,null,null,null,null,null,null,null,null,null,null,null,null,null,null,null,null,null,null,null,null,null,null,null,"Annual Leave (AL)",null,null,null,"(AL01)",0,null,"Pro.Dev. (PT)",null,null,0]
[null,null,null,null,null,null,null,null,null,null,null,null,null,null,null,null,null,null,null,null,null,null,null,null,null,null,null,null,null,null,null,null,"Vacation (V)",null,null,null,"(VA01)",0,null,"Other (O1)",null,null,0]
[null,null,null,null,null,null,null,null,null,null,null,null,null,null,null,null,null,null,null,null,null,null,null,null,null,null,null,null,null,null,null,null,"Personal Holiday (PH)",null,null,null,"(PH01)",0,null,"Other (O2)",null,null,0]
["Comments",null,null,null,null,null,null,null,null,null,null,null,null,null,null,null,null,null,null,null,null,null,null,null,null,null,null,null,null,null,null,null,"Excess (EX)",null,null,null,"(EX01)",0,null,"Other (O3)",null,null,0]
[null,null,null,null,null,null,null,null,null,null,null,null,null,null,null,null,null,null,null,null,null,null,null,null,null,null,null,null,null,null,null,null,null,null,null,null,null,null,null,"Absence Total",null,null,{"$f":"SUM(AQ32:AQ37)+SUM(AL32:AL37)","v":0}]
[null,null,null,null,null,null,null,null,null,null,null,null,null,null,null,null,null,null,null,null,null,null,null,null,null,null,null,null,null,null,null,null,"Holiday credit earned",null,null,null,0,null,"hrs"]
[]
[null,"Certification of Employee",null,null,null,null,null,null,null,null,null,null,null,null,null,"Certification of Supervisor"]
[null,"Employees are certifying to the accuracy of the data reported - See instructions.",null,null,null,null,null,null,null,null,null,null,null,null,null,"Supervisors are certifying to the accuracy of the data reported - See instructions."]
[null,null,null,null,null,null,null,null,null,null,{"$f":"TODAY()","v":"2022-02-10"}]
[]
[]
[null,"   .  ",null,null,null,null,null,null,null,null,"Date",null,null,null,null,"Simon",null,null,null,null,null,null,null,null,"Date"]
[]
["Additional Labor Distribution For",null,null,null,null,null,null,null,null,null,null,null,null,null,null,null,null,null,null,null,null,null,"State of California",null,null,null,null,null,null,null,null,null,null,null,null,null,null,"Page",null,2,"of",2]
["Attendance and Labor",null,null,null,null,null,null,null,null,null,null,null,null,null,null,null,null,null,null,null,null,null,"Department of Fish and Wildlife",null,null,null,null,null,null,null,null,null,null,null,null,null,null,null,null,null,"Year","Mo"]
["Distribution Report",null,null,null,null,null,null,null,null,null,null,null,null,null,null,null,null,null,null,null,null,null,null,null,null,null,null,null,null,null,null,null,null,null,null,null,null,"Pay Period",null,null,{"$f":"AJ1","v":2019},{"$f":"AN1","v":8},null," "]
["DFW 681 A (Rev. 02/02/2018)"]
[]
["I. EMPLOYEE INFORMATION",null,null,null,null,null,null,null,null,"Instructions on Reverse Side"]
["Name",null,null,null,null,null,null,null,"Div/Branch/Reg",null,null,null,null,null,null,"Social Security Number"]
[{"$f":"Master_Page!A55","v":", "},null,null,null,null,null,null,null,{"$f":"Master_Page!R6","v":0},null,null,null,null,null,null,{"$f":"$V$6","v":"0000"}]
["Work Phone Number",null,null,null,null,null,null,null,"Position Number"]
[{"$f":"$A$8","v":9165555555},null,null,null,null,null,null,null,{"$f":"$I$8","v":5653031581001}]
[]
[]
["III. LABOR DISTRIBUTION"]
["Additional Labor Distribution totals will populate line 21 on the above Attendance Report"]
[null,31,1,2,3,4,5,6,7,8,9,10,11,12,13,14,15,16,17,18,19,20,21,22,23,24,25,26,27,28,29,null,"Total","Type","D","Reporting Structure","Project ID","On Call","Category",null,null,null,"Activity"]
[null,null,null,null,null,null,null,null,null,null,null,null,null,null,null,null,null,null,null,null,null,null,null,null,null,null,null,null,null,null,null,null,{"$f":"SUM(A63:AF63)","v":0},null,"N"]
[null,null,null,null,null,null,null,null,null,null,null,null,null,null,null,null,null,null,null,null,null,null,null,null,null,null,null,null,null,null,null,null,0,null,"N"]
[null,null,null,null,null,null,null,null,null,null,null,null,null,null,null,null,null,null,null,null,null,null,null,null,null,null,null,null,null,null,null,null,0,null,"N"]
[null,null,null,null,null,null,null,null,null,null,null,null,null,null,null,null,null,null,null,null,null,null,null,null,null,null,null,null,null,null,null,null,0,null,"N"]
[null,null,null,null,null,null,null,null,null,null,null,null,null,null,null,null,null,null,null,null,null,null,null,null,null,null,null,null,null,null,null,null,0,null,"N"]
[null,null,null,null,null,null,null,null,null,null,null,null,null,null,null,null,null,null,null,null,null,null,null,null,null,null,null,null,null,null,null,null,0,null,"N"]
[null,null,null,null,null,null,null,null,null,null,null,null,null,null,null,null,null,null,null,null,null,null,null,null,null,null,null,null,null,null,null,null,0,null,"N"]
[null,null,null,null,null,null,null,null,null,null,null,null,null,null,null,null,null,null,null,null,null,null,null,null,null,null,null,null,null,null,null,null,0,null,"N"]
[null,null,null,null,null,null,null,null,null,null,null,null,null,null,null,null,null,null,null,null,null,null,null,null,null,null,null,null,null,null,null,null,0,null,"N"]
[null,null,null,null,null,null,null,null,null,null,null,null,null,null,null,null,null,null,null,null,null,null,null,null,null,null,null,null,null,null,null,null,0,null,"N"]
[null,null,null,null,null,null,null,null,null,null,null,null,null,null,null,null,null,null,null,null,null,null,null,null,null,null,null,null,null,null,null,null,0,null,"N"]
[null,null,null,null,null,null,null,null,null,null,null,null,null,null,null,null,null,null,null,null,null,null,null,null,null,null,null,null,null,null,null,null,0,null,"N"]
[null,null,null,null,null,null,null,null,null,null,null,null,null,null,null,null,null,null,null,null,null,null,null,null,null,null,null,null,null,null,null,null,0,null,"N"]
[null,null,null,null,null,null,null,null,null,null,null,null,null,null,null,null,null,null,null,null,null,null,null,null,null,null,null,null,null,null,null,null,0,null,"N"]
[null,null,null,null,null,null,null,null,null,null,null,null,null,null,null,null,null,null,null,null,null,null,null,null,null,null,null,null,null,null,null,null,0,null,"N"]
[{"$f":"SUM(A63:A77)","v":0},0,0,0,0,0,0,0,0,0,0,0,0,0,0,0,0,0,0,0,0,0,0,0,0,0,0,0,0,0,0,0,{"$f":"SUM(AG63:AG77)","v":0}]
[null,31,1,2,3,4,5,6,7,8,9,10,11,12,13,14,15,16,17,18,19,20,21,22,23,24,25,26,27,28,29,null,"Enter Total on (DFW 681)"]
[null,null,null,null,null,null,null,null,null,null,null,null,null,null,null,null,null,null,null,null,null,null,null,null,null,null,null,null,null,null,null,null,null," "]
[null,null,null,null,null,null,null,null,null,null,null,null,null,null,null,null,null,null,null,null,null,null,null,null,null,null,null,null,null,null,null,null,null," "]
["DISTRIBUTION: ",null,null,null,null,null,"Accounting (ASB) - Original",null,null,null,null,null,null,null,null,null,"Supervisor",null,null,null,null,null,null,null,"Employee"]

{"sheet":"September2022","index":14,"n_rows":82,"n_cols":44,"rows_kept":82,"cut":false,"hidden":false,"merged":[[73,38,73,41],[74,38,74,41],[75,38,75,41],[76,38,76,41],[67,38,67,41],[68,38,68,41],[69,38,69,41],[70,38,70,41],[71,38,71,41],[72,38,72,41],[61,38,61,41],[62,38,62,41],[63,38,63,41],[64,38,64,41],[65,38,65,41],[66,38,66,41],[54,0,54,7],[54,8,54,14],[54,15,54,21],[56,0,56,7],[56,8,56,21],[60,0,60,31],[45,1,45,9],[45,10,45,13],[45,15,45,23],[45,24,45,27],[46,1,46,13],[46,15,46,27],[41,1,41,13],[41,15,41,27],[42,1,44,9],[42,10,44,13],[42,15,44,23],[42,24,44,27],[37,0,38,31],[37,39,38,41],[37,42,38,42],[38,32,38,35],[38,36,38,37],[40,1,40,13],[40,15,40,27],[35,32,35,35],[35,37,35,38],[35,39,35,40],[36,0,36,31],[36,32,36,35],[36,37,36,38],[36,39,36,40],[33,32,33,35],[33,37,33,38],[33,39,33,40],[34,32,34,35],[34,37,34,38],[34,39,34,40],[31,32,31,35],[31,37,31,38],[31,39,31,40],[32,32,32,35],[32,37,32,38],[32,39,32,40],[25,32,25,39],[26,32,26,33],[26,34,26,36],[26,37,26,39],[27,32,27,36],[28,32,28,36],[28,37,28,39],[20,41,20,42],[22,0,22,7],[22,9,22,24],[22,25,22,30],[22,32,22,42],[24,32,24,39],[14,38,14,41],[15,38,15,41],[16,38,16,41],[17,38,17,41],[18,38,18,41],[19,38,19,41],[9,30,9,31],[9,32,9,33],[9,34,9,35],[9,39,9,42],[12,38,12,41],[13,38,13,41],[7,34,7,35],[8,30,8,31],[8,32,8,33],[8,34,8,35],[8,39,8,42],[9,0,9,7],[9,8,9,12],[9,13,9,17],[9,18,9,23],[9,24,9,28],[7,0,7,4],[7,5,7,7],[7,8,7,14],[7,15,7,28],[7,30,7,31],[7,32,7,33],[5,39,5,42],[6,30,6,31],[6,32,6,33],[6,34,6,35],[3,9,3,16],[4,30,4,31],[4,32,4,33],[4,34,4,35],[4,39,4,42],[5,0,5,7],[5,8,5,14],[5,15,5,16],[5,17,5,20],[5,21,5,24],[0,22,0,26],[0,27,0,29],[0,31,0,32],[0,35,0,36],[1,27,1,29],[1,31,1,32],[5,25,5,28],[5,30,5,31],[5,32,5,33],[5,34,5,35]]}
[{"$f":"Master_Page!A1","v":"State of California"},null,null,null,null,null,null,null,null,null,null,null,null,null,null,null,{"$f":"Master_Page!Q1","v":"Attendance and Labor"},null,null,null,null,null,"Pay Period - From:",null,null,null,null,"2019-08-30",null,null,"To:","2019-09-30",null,null,"Year",2019,null,null,"Mo",9,"# Days",22]
[{"$f":"Master_Page!A2","v":"Department of Fish and Wildlife"},null,null,null,null,null,null,null,null,null,null,null,null,null,null,null,{"$f":"Master_Page!Q2","v":"Distribution Report"},null,null,null,null,null,null,null,null,null,null,"MM / DD /  YY",null,null,null,"MM / DD /  YY"]
["DFW 681 (Rev. 02/02/2018)"]
["I. EMPLOYEE INFORMATION",null,null,null,null,null,null,null,null,null,null,null,null,null,null,null,null,null,null,null,null,null,null,null,null,null,null,null,null,null,"II. OTHER PAY HOURS"]
["Last Name",null,null,null,null,null,null,null,"First Name",null,null,null,null,null,null,"M.I.",null,"Div/Branch or Region",null,null,null,"Social Security Number",null,null,null,"Bargaining Unit Number",null,null,null,null,"Dive",null,"Comm. Driving",null,null,null,"Excess","CTO",null,"Audited By:"]
[null,null,null,null,null,null,null,null,null,null,null,null,null,null,null,"",null,null,null,null,null,"0000",null,null,null,"R01",null,null,null,null,null,null,null,null,"Prev-Balance",null,{"$f":"SUM(August2022!AK10)","v":0}]
["Work Phone Number",null,null,null,null,"Phone Ext.",null,null,"  Position Number",null,null,null,null,null,null,"Classification Title",null,null,null,null,null,null,null,null,null,null,null,null,null,null,"SOU",null,"Shift",null,"Earned",null,{"$f":"+AO29","v":0},{"$f":"+AO27","v":0}]
[9165555555,null,null,null,null,"",null,null,5653031581001,null,null,null,null,null,null,"Staff Programmer Analyst (Specialist) ",null,null,null,null,null,null,null,null,null,null,null,null,null,null,null,null,null,null,"Total",null,{"$f":"+AK6+AK7","v":0},{"$f":"+AL6+AL7","v":0}]
["Work Week Schedule",null,null,null,null,null,null,null,"Time Base",null,null,null,null,"Work Week Group",null,null,null,null,"Assigned Days Off",null,null,null,null,null,"AWW Regular Day Off (RDO)",null,null,null,null,null,"FTO",null,"Holiday",null,"Used -",null,{"$f":"(AL37)","v":0},{"$f":"+AQ32","v":0},null,"Actual Time Worked-Days Limit"]
["Regular Schedule",null,null,null,null,null,null,null,"Full Time",null,null,null,null,"2",null,null,null,null,"Sat, Sun",null,null,null,null,null,"N/A",null,null,null,null,null,null,null,null,null,"Balance",null,{"$f":"+AK8-AK9","v":0},{"$f":"+AL8-AL9","v":0},null,{"$f":"IF(I10=\"int\",SUM(A22:AF22),COUNTIF(A22:AF22,\">0\"))","v":0}]
[]
["III. LABOR DISTRIBUTION"]
[30,31,1,2,3,4,5,6,7,8,9,10,11,12,13,14,15,16,17,18,19,20,21,22,23,24,25,26,27,28,29,30,"Total","Type","D","Reporting Structure","Project ID","On Call","Project/WP",null,null,null,"Activity"]
[null,null,null,null,null,null,null,null,null,null,null,null,null,null,null,null,null,null,null,null,null,null,null,null,null,null,null,null,null,null,null,null,{"$f":"SUM(A14:AF14)","v":0},"REG","N"]
[null,null,null,null,null,null,null,null,null,null,null,null,null,null,null,null,null,null,null,null,null,null,null,null,null,null,null,null,null,null,null,null,0,null,"N"]
[null,null,null,null,null,null,null,null,null,null,null,null,null,null,null,null,null,null,null,null,null,null,null,null,null,null,null,null,null,null,null,null,0,null,"N"]
[null,null,null,null,null,null,null,null,null,null,null,null,null,null,null,null,null,null,null,null,null,null,null,null,null,null,null,null,null,null,null,null,0,null,"N"]
[null,null,null,null,null,null,null,null,null,null,null,null,null,null,null,null,null,null,null,null,null,null,null,null,null,null,null,null,null,null,null,null,0,null,"N"]
[null,null,null,null,null,null,null,null,null,null,null,null,null,null,null,null,null,null,null,null,null,null,null,null,null,null,null,null,null,null,null,null,0,null,"N"]
[null,null,null,null,null,null,null,null,null,null,null,null,null,null,null,null,null,null,null,null,null,null,null,null,null,null,null,null,null,null,null,null,0,null,"N"]
[{"$f":"A78","v":0},0,0,0,0,0,0,0,0,0,0,0,0,0,0,0,0,0,0,0,0,0,0,0,0,0,0,0,0,0,0,0,{"$f":"SUM(A21:AF21)","v":0},"Total from DFW 681A(s) (Attach)"]
[{"$f":"SUM(A14:A21)","v":0},0,0,0,0,0,0,0,0,0,0,0,0,0,0,0,0,0,0,0,0,0,0,0,0,0,0,0,0,0,0,0,{"$f":"SUM(AG14:AG20) + SUM(AG63:AG77)","v":0},"Total Hours",null,null,null,176,"Hours Required this Month"]
["Carry over hours from previous month",null,null,null,null,null,null,null,null,null,null,null,null,null,null,null,null,null,null,null,null,null,null,null,null,"Carry over hours for month"]
["IV. EXTRA HOURS WORKED"]
[30,31,1,2,3,4,5,6,7,8,9,10,11,12,13,14,15,16,17,18,19,20,21,22,23,24,25,26,27,28,29,30,"Summary of Extra Hours Worked:",null,null,null,null,null,null,null,"Hours","Paid This PP","Carry Over"]
[null,null,null,null,null,null,null,null,null,null,null,null,null,null,null,null,null,null,null,null,null,null,null,null,null,null,null,null,null,null,null,null,"Cash",null,null,null,null,null,null,null,{"$f":"SUM(A26:AF26)","v":0}]
[null,null,null,null,null,null,null,null,null,null,null,null,null,null,null,null,null,null,null,null,null,null,null,null,null,null,null,null,null,null,null,null,"CTO",null,"(CT06)",null,null,"(CT07)",null,null,{"$f":"SUM(A27:AF27)","v":0}]
[null,null,null,null,null,null,null,null,null,null,null,null,null,null,null,null,null,null,null,null,null,null,null,null,null,null,null,null,null,null,null,null,"Other (On-call/Standby)",null,null,null,null,{"$f":"SUM(A28:AF28)","v":0}]
["V. ABSENCE INFORMATION",null,null,null,null,null,null,null,null,"Date of Absence:  Enter code and number of hours in date blocks.",null,null,null,null,null,null,null,null,null,null,null,null,null,null,null,null,null,null,null,null,null,null,"Excess Hours",null,null,null,null,"(EX05)",null,null,0]
[30,31,1,2,3,4,5,6,7,8,9,10,11,12,13,14,15,16,17,18,19,20,21,22,23,24,25,26,27,28,29,30,null,null,null,null,null,null,null,null,{"$f":"SUM(AO26:AO27)+AO29","v":0}]
[null,null,null,null,null,null,null,null,null,null,null,null,null,null,null,null,null,null,null,null,null,null,null,null,null,null,null,null,null,null,null,null,"Summary of Absences:",null,null,null,null,"Hours",null,null,null,null,"Hours"]
[null,null,null,null,null,null,null,null,null,null,null,null,null,null,null,null,null,null,null,null,null,null,null,null,null,null,null,null,null,null,null,null,"Sick-Self (S)",null,null,null,"(SL01)",0,null,"CTO (CT)",null,"(CT01)",0]
[null,null,null,null,null,null,null,null,null,null,null,null,null,null,null,null,null,null,null,null,null,null,null,null,null,null,null,null,null,null,null,null,"Sick-Family (FS)",null,null,null,"(SL02)",0,null,"Holiday (H) ",null,null,0]
[null,null,null,null,null,null,null,null,null,null,null,null,null,null,null,null,null,null,null,null,null,null,null,null,null,null,null,null,null,null,null,null,"Annual Leave (AL)",null,null,null,"(AL01)",0,null,"Pro.Dev. (PT)",null,null,0]
[null,null,null,null,null,null,null,null,null,null,null,null,null,null,null,null,null,null,null,null,null,null,null,null,null,null,null,null,null,null,null,null,"Vacation (V)",null,null,null,"(VA01)",0,null,"Other (O1)",null,null,0]
[null,null,null,null,null,null,null,null,null,null,null,null,null,null,null,null,null,null,null,null,null,null,null,null,null,null,null,null,null,null,null,null,"Personal Holiday (PH)",null,null,null,"(PH01)",0,null,"Other (O2)",null,null,0]
["Comments",null,null,null,null,null,null,null,null,null,null,null,null,null,null,null,null,null,null,null,null,null,null,null,null,null,null,null,null,null,null,null,"Excess (EX)",null,null,null,"(EX01)",0,null,"Other (O3)",null,null,0]
[null,null,null,null,null,null,null,null,null,null,null,null,null,null,null,null,null,null,null,null,null,null,null,null,null,null,null,null,null,null,null,null,null,null,null,null,null,null,null,"Absence Total",null,null,{"$f":"SUM(AQ32:AQ37)+SUM(AL32:AL37)","v":0}]
[null,null,null,null,null,null,null,null,null,null,null,null,null,null,null,null,null,null,null,null,null,null,null,null,null,null,null,null,null,null,null,null,"Holiday credit earned",null,null,null,0,null,"hrs"]
[]
[null,"Certification of Employee",null,null,null,null,null,null,null,null,null,null,null,null,null,"Certification of Supervisor"]
[null,"Employees are certifying to the accuracy of the data reported - See instructions.",null,null,null,null,null,null,null,null,null,null,null,null,null,"Supervisors are certifying to the accuracy of the data reported - See instructions."]
[null,null,null,null,null,null,null,null,null,null,{"$f":"TODAY()","v":"2022-02-10"}]
[]
[]
[null,"Usha Menon",null,null,null,null,null,null,null,null,"Date",null,null,null,null,"Simon",null,null,null,null,null,null,null,null,"Date"]
[]
["Additional Labor Distribution For",null,null,null,null,null,null,null,null,null,null,null,null,null,null,null,null,null,null,null,null,null,"State of California",null,null,null,null,null,null,null,null,null,null,null,null,null,null,"Page",null,2,"of",2]
["Attendance and Labor",null,null,null,null,null,null,null,null,null,null,null,null,null,null,null,null,null,null,null,null,null,"Department of Fish and Wildlife",null,null,null,null,null,null,null,null,null,null,null,null,null,null,null,null,null,"Year","Mo"]
["Distribution Report",null,null,null,null,null,null,null,null,null,null,null,null,null,null,null,null,null,null,null,null,null,null,null,null,null,null,null,null,null,null,null,null,null,null,null,null,"Pay Period",null,null,{"$f":"AJ1","v":2019},{"$f":"AN1","v":9},null," "]
["DFW 681 A (Rev. 02/02/2018)"]
[]
["I. EMPLOYEE INFORMATION",null,null,null,null,null,null,null,null,"Instructions on Reverse Side"]
["Name",null,null,null,null,null,null,null,"Div/Branch/Reg",null,null,null,null,null,null,"Social Security Number"]
[{"$f":"Master_Page!A55","v":", "},null,null,null,null,null,null,null,{"$f":"Master_Page!R6","v":0},null,null,null,null,null,null,{"$f":"$V$6","v":"0000"}]
["Work Phone Number",null,null,null,null,null,null,null,"Position Number"]
[{"$f":"$A$8","v":9165555555},null,null,null,null,null,null,null,{"$f":"$I$8","v":5653031581001}]
[]
[]
["III. LABOR DISTRIBUTION"]
["Additional Labor Distribution totals will populate line 21 on the above Attendance Report"]
[30,31,1,2,3,4,5,6,7,8,9,10,11,12,13,14,15,16,17,18,19,20,21,22,23,24,25,26,27,28,29,30,"Total","Type","D","Reporting Structure","Project ID","On Call","Category",null,null,null,"Activity"]
[null,null,null,null,null,null,null,null,null,null,null,null,null,null,null,null,null,null,null,null,null,null,null,null,null,null,null,null,null,null,null,null,{"$f":"SUM(A63:AF63)","v":0},null,"N"]
[null,null,null,null,null,null,null,null,null,null,null,null,null,null,null,null,null,null,null,null,null,null,null,null,null,null,null,null,null,null,null,null,0,null,"N"]
[null,null,null,null,null,null,null,null,null,null,null,null,null,null,null,null,null,null,null,null,null,null,null,null,null,null,null,null,null,null,null,null,0,null,"N"]
[null,null,null,null,null,null,null,null,null,null,null,null,null,null,null,null,null,null,null,null,null,null,null,null,null,null,null,null,null,null,null,null,0,null,"N"]
[null,null,null,null,null,null,null,null,null,null,null,null,null,null,null,null,null,null,null,null,null,null,null,null,null,null,null,null,null,null,null,null,0,null,"N"]
[null,null,null,null,null,null,null,null,null,null,null,null,null,null,null,null,null,null,null,null,null,null,null,null,null,null,null,null,null,null,null,null,0,null,"N"]
[null,null,null,null,null,null,null,null,null,null,null,null,null,null,null,null,null,null,null,null,null,null,null,null,null,null,null,null,null,null,null,null,0,null,"N"]
[null,null,null,null,null,null,null,null,null,null,null,null,null,null,null,null,null,null,null,null,null,null,null,null,null,null,null,null,null,null,null,null,0,null,"N"]
[null,null,null,null,null,null,null,null,null,null,null,null,null,null,null,null,null,null,null,null,null,null,null,null,null,null,null,null,null,null,null,null,0,null,"N"]
[null,null,null,null,null,null,null,null,null,null,null,null,null,null,null,null,null,null,null,null,null,null,null,null,null,null,null,null,null,null,null,null,0,null,"N"]
[null,null,null,null,null,null,null,null,null,null,null,null,null,null,null,null,null,null,null,null,null,null,null,null,null,null,null,null,null,null,null,null,0,null,"N"]
[null,null,null,null,null,null,null,null,null,null,null,null,null,null,null,null,null,null,null,null,null,null,null,null,null,null,null,null,null,null,null,null,0,null,"N"]
[null,null,null,null,null,null,null,null,null,null,null,null,null,null,null,null,null,null,null,null,null,null,null,null,null,null,null,null,null,null,null,null,0,null,"N"]
[null,null,null,null,null,null,null,null,null,null,null,null,null,null,null,null,null,null,null,null,null,null,null,null,null,null,null,null,null,null,null,null,0,null,"N"]
[null,null,null,null,null,null,null,null,null,null,null,null,null,null,null,null,null,null,null,null,null,null,null,null,null,null,null,null,null,null,null,null,0,null,"N"]
[{"$f":"SUM(A63:A77)","v":0},0,0,0,0,0,0,0,0,0,0,0,0,0,0,0,0,0,0,0,0,0,0,0,0,0,0,0,0,0,0,0,{"$f":"SUM(AG63:AG77)","v":0}]
[30,31,1,2,3,4,5,6,7,8,9,10,11,12,13,14,15,16,17,18,19,20,21,22,23,24,25,26,27,28,29,30,"Enter Total on (DFW 681)"]
[null,null,null,null,null,null,null,null,null,null,null,null,null,null,null,null,null,null,null,null,null,null,null,null,null,null,null,null,null,null,null,null,null," "]
[null,null,null,null,null,null,null,null,null,null,null,null,null,null,null,null,null,null,null,null,null,null,null,null,null,null,null,null,null,null,null,null,null," "]
["DISTRIBUTION: ",null,null,null,null,null,"Accounting (ASB) - Original",null,null,null,null,null,null,null,null,null,"Supervisor",null,null,null,null,null,null,null,"Employee"]

{"sheet":"October2022","index":15,"n_rows":82,"n_cols":44,"rows_kept":82,"cut":false,"hidden":false,"merged":[[73,38,73,41],[74,38,74,41],[75,38,75,41],[76,38,76,41],[67,38,67,41],[68,38,68,41],[69,38,69,41],[70,38,70,41],[71,38,71,41],[72,38,72,41],[61,38,61,41],[62,38,62,41],[63,38,63,41],[64,38,64,41],[65,38,65,41],[66,38,66,41],[54,0,54,7],[54,8,54,14],[54,15,54,21],[56,0,56,7],[56,8,56,21],[60,0,60,31],[45,1,45,9],[45,10,45,13],[45,15,45,23],[45,24,45,27],[46,1,46,13],[46,15,46,27],[41,1,41,13],[41,15,41,27],[42,1,44,9],[42,10,44,13],[42,15,44,23],[42,24,44,27],[37,0,38,31],[37,39,38,41],[37,42,38,42],[38,32,38,35],[38,36,38,37],[40,1,40,13],[40,15,40,27],[35,32,35,35],[35,37,35,38],[35,39,35,40],[36,0,36,31],[36,32,36,35],[36,37,36,38],[36,39,36,40],[33,32,33,35],[33,37,33,38],[33,39,33,40],[34,32,34,35],[34,37,34,38],[34,39,34,40],[31,32,31,35],[31,37,31,38],[31,39,31,40],[32,32,32,35],[32,37,32,38],[32,39,32,40],[25,32,25,39],[26,32,26,33],[26,34,26,36],[26,37,26,39],[27,32,27,36],[28,32,28,36],[28,37,28,39],[20,41,20,42],[22,0,22,7],[22,9,22,24],[22,25,22,30],[22,32,22,42],[24,32,24,39],[14,38,14,41],[15,38,15,41],[16,38,16,41],[17,38,17,41],[18,38,18,41],[19,38,19,41],[9,30,9,31],[9,32,9,33],[9,34,9,35],[9,39,9,42],[12,38,12,41],[13,38,13,41],[7,34,7,35],[8,30,8,31],[8,32,8,33],[8,34,8,35],[8,39,8,42],[9,0,9,7],[9,8,9,12],[9,13,9,17],[9,18,9,23],[9,24,9,28],[7,0,7,4],[7,5,7,7],[7,8,7,14],[7,15,7,28],[7,30,7,31],[7,32,7,33],[5,39,5,42],[6,30,6,31],[6,32,6,33],[6,34,6,35],[3,9,3,16],[4,30,4,31],[4,32,4,33],[4,34,4,35],[4,39,4,42],[5,0,5,7],[5,8,5,14],[5,15,5,16],[5,17,5,20],[5,21,5,24],[0,22,0,26],[0,27,0,29],[0,31,0,32],[0,35,0,36],[1,27,1,29],[1,31,1,32],[5,25,5,28],[5,30,5,31],[5,32,5,33],[5,34,5,35]]}
[{"$f":"Master_Page!A1","v":"State of California"},null,null,null,null,null,null,null,null,null,null,null,null,null,null,null,{"$f":"Master_Page!Q1","v":"Attendance and Labor"},null,null,null,null,null,"Pay Period - From:",null,null,null,null,"2019-10-01",null,null,"To:","2019-10-30",null,null,"Year",2019,null,null,"Mo",10,"# Days",22]
[{"$f":"Master_Page!A2","v":"Department of Fish and Wildlife"},null,null,null,null,null,null,null,null,null,null,null,null,null,null,null,{"$f":"Master_Page!Q2","v":"Distribution Report"},null,null,null,null,null,null,null,null,null,null,"MM / DD /  YY",null,null,null,"MM / DD /  YY"]
["DFW 681 (Rev. 02/02/2018)"]
["I. EMPLOYEE INFORMATION",null,null,null,null,null,null,null,null,null,null,null,null,null,null,null,null,null,null,null,null,null,null,null,null,null,null,null,null,null,"II. OTHER PAY HOURS"]
["Last Name",null,null,null,null,null,null,null,"First Name",null,null,null,null,null,null,"M.I.",null,"Div/Branch or Region",null,null,null,"Social Security Number",null,null,null,"Bargaining Unit Number",null,null,null,null,"Dive",null,"Comm. Driving",null,null,null,"Excess","CTO",null,"Audited By:"]
[" ",null,null,null,null,null,null,null," ",null,null,null,null,null,null," ",null," ",null,null,null,"0000",null,null,null,"R01",null,null,null,null,null,null,null,null,"Prev-Balance",null,{"$f":"SUM(September2022!AK10)","v":0}]
["Work Phone Number",null,null,null,null,"Phone Ext.",null,null,"  Position Number",null,null,null,null,null,null,"Classification Title",null,null,null,null,null,null,null,null,null,null,null,null,null,null,"SOU",null,"Shift",null,"Earned",null,{"$f":"+AO29","v":0},{"$f":"+AO27","v":0}]
[9165555555,null,null,null,null,"",null,null,5653031581001,null,null,null,null,null,null,"Staff Programmer Analyst (Specialist) ",null,null,null,null,null,null,null,null,null,null,null,null,null,null,null,null,null,null,"Total",null,{"$f":"+AK6+AK7","v":0},{"$f":"+AL6+AL7","v":0}]
["Work Week Schedule",null,null,null,null,null,null,null,"Time Base",null,null,null,null,"Work Week Group",null,null,null,null,"Assigned Days Off",null,null,null,null,null,"AWW Regular Day Off (RDO)",null,null,null,null,null,"FTO",null,"Holiday",null,"Used -",null,{"$f":"(AL37)","v":0},{"$f":"+AQ32","v":0},null,"Actual Time Worked-Days Limit"]
["Regular Schedule",null,null,null,null,null,null,null,"Full Time",null,null,null,null,"2",null,null,null,null,"Sat, Sun",null,null,null,null,null,"N/A",null,null,null,null,null,null,null,null,null,"Balance",null,{"$f":"+AK8-AK9","v":0},{"$f":"+AL8-AL9","v":0},null,{"$f":"IF(I10=\"int\",SUM(A22:AF22),COUNTIF(A22:AF22,\">0\"))","v":0}]
[]
["III. LABOR DISTRIBUTION"]
[null,1,2,3,4,5,6,7,8,9,10,11,12,13,14,15,16,17,18,19,20,21,22,23,24,25,26,27,28,29,30,null,"Total","Type","D","Reporting Structure","Project ID","On Call","Project/WP",null,null,null,"Activity"]
[null,null,null,null,null,null,null,null,null,null,null,null,null,null,null,null,null,null,null,null,null,null,null,null,null,null,null,null,null,null,null,null,{"$f":"SUM(A14:AF14)","v":0},"REG","N"]
[null,null,null,null,null,null,null,null,null,null,null,null,null,null,null,null,null,null,null,null,null,null,null,null,null,null,null,null,null,null,null,null,0,null,"N"]
[null,null,null,null,null,null,null,null,null,null,null,null,null,null,null,null,null,null,null,null,null,null,null,null,null,null,null,null,null,null,null,null,0,null,"N"]
[null,null,null,null,null,null,null,null,null,null,null,null,null,null,null,null,null,null,null,null,null,null,null,null,null,null,null,null,null,null,null,null,0,null,"N"]
[null,null,null,null,null,null,null,null,null,null,null,null,null,null,null,null,null,null,null,null,null,null,null,null,null,null,null,null,null,null,null,null,0,null,"N"]
[null,null,null,null,null,null,null,null,null,null,null,null,null,null,null,null,null,null,null,null,null,null,null,null,null,null,null,null,null,null,null,null,0,null,"N"]
[null,null,null,null,null,null,null,null,null,null,null,null,null,null,null,null,null,null,null,null,null,null,null,null,null,null,null,null,null,null,null,null,0,null,"N"]
[{"$f":"A78","v":0},0,0,0,0,0,0,0,0,0,0,0,0,0,0,0,0,0,0,0,0,0,0,0,0,0,0,0,0,0,0,0,{"$f":"SUM(A21:AF21)","v":0},"Total from DFW 681A(s) (Attach)"]
[{"$f":"SUM(A14:A21)","v":0},0,0,0,0,0,0,0,0,0,0,0,0,0,0,0,0,0,0,0,0,0,0,0,0,0,0,0,0,0,0,0,{"$f":"SUM(AG14:AG20) + SUM(AG63:AG77)","v":0},"Total Hours",null,null,null,176,"Hours Required this Month"]
["Carry over hours from previous month",null,null,null,null,null,null,null,null,null,null,null,null,null,null,null,null,null,null,null,null,null,null,null,null,"Carry over hours for month"]
["IV. EXTRA HOURS WORKED"]
[null,1,2,3,4,5,6,7,8,9,10,11,12,13,14,15,16,17,18,19,20,21,22,23,24,25,26,27,28,29,30,null,"Summary of Extra Hours Worked:",null,null,null,null,null,null,null,"Hours","Paid This PP","Carry Over"]
[null,null,null,null,null,null,null,null,null,null,null,null,null,null,null,null,null,null,null,null,null,null,null,null,null,null,null,null,null,null,null,null,"Cash",null,null,null,null,null,null,null,{"$f":"SUM(A26:AF26)","v":0}]
[null,null,null,null,null,null,null,null,null,null,null,null,null,null,null,null,null,null,null,null,null,null,null,null,null,null,null,null,null,null,null,null,"CTO",null,"(CT06)",null,null,"(CT07)",null,null,{"$f":"SUM(A27:AF27)","v":0}]
[null,null,null,null,null,null,null,null,null,null,null,null,null,null,null,null,null,null,null,null,null,null,null,null,null,null,null,null,null,null,null,null,"Other (On-call/Standby)",null,null,null,null,{"$f":"SUM(A28:AF28)","v":0}]
["V. ABSENCE INFORMATION",null,null,null,null,null,null,null,null,"Date of Absence:  Enter code and number of hours in date blocks.",null,null,null,null,null,null,null,null,null,null,null,null,null,null,null,null,null,null,null,null,null,null,"Excess Hours",null,null,null,null,"(EX05)",null,null,0]
[null,1,2,3,4,5,6,7,8,9,10,11,12,13,14,15,16,17,18,19,20,21,22,23,24,25,26,27,28,29,30,null,null,null,null,null,null,null,null,null,{"$f":"SUM(AO26:AO27)+AO29","v":0}]
[null,null,null,null,null,null,null,null,null,null,null,null,null,null,null,null,null,null,null,null,null,null,null,null,null,null,null,null,null,null,null,null,"Summary of Absences:",null,null,null,null,"Hours",null,null,null,null,"Hours"]
[null,null,null,null,null,null,null,null,null,null,null,null,null,null,null,null,null,null,null,null,null,null,null,null,null,null,null,null,null,null,null,null,"Sick-Self (S)",null,null,null,"(SL01)",0,null,"CTO (CT)",null,"(CT01)",0]
[null,null,null,null,null,null,null,null,null,null,null,null,null,null,null,null,null,null,null,null,null,null,null,null,null,null,null,null,null,null,null,null,"Sick-Family (FS)",null,null,null,"(SL02)",0,null,"Holiday (H) ",null,null,0]
[null,null,null,null,null,null,null,null,null,null,null,null,null,null,null,null,null,null,null,null,null,null,null,null,null,null,null,null,null,null,null,null,"Annual Leave (AL)",null,null,null,"(AL01)",0,null,"Pro.Dev. (PT)",null,null,0]
[null,null,null,null,null,null,null,null,null,null,null,null,null,null,null,null,null,null,null,null,null,null,null,null,null,null,null,null,null,null,null,null,"Vacation (V)",null,null,null,"(VA01)",0,null,"Other (O1)",null,null,0]
[null,null,null,null,null,null,null,null,null,null,null,null,null,null,null,null,null,null,null,null,null,null,null,null,null,null,null,null,null,null,null,null,"Personal Holiday (PH)",null,null,null,"(PH01)",0,null,"Other (O2)",null,null,0]
["Comments",null,null,null,null,null,null,null,null,null,null,null,null,null,null,null,null,null,null,null,null,null,null,null,null,null,null,null,null,null,null,null,"Excess (EX)",null,null,null,"(EX01)",0,null,"Other (O3)",null,null,0]
[null,null,null,null,null,null,null,null,null,null,null,null,null,null,null,null,null,null,null,null,null,null,null,null,null,null,null,null,null,null,null,null,null,null,null,null,null,null,null,"Absence Total",null,null,{"$f":"SUM(AQ32:AQ37)+SUM(AL32:AL37)","v":0}]
[null,null,null,null,null,null,null,null,null,null,null,null,null,null,null,null,null,null,null,null,null,null,null,null,null,null,null,null,null,null,null,null,"Holiday credit earned",null,null,null,0,null,"hrs"]
[]
[null,"Certification of Employee",null,null,null,null,null,null,null,null,null,null,null,null,null,"Certification of Supervisor"]
[null,"Employees are certifying to the accuracy of the data reported - See instructions.",null,null,null,null,null,null,null,null,null,null,null,null,null,"Supervisors are certifying to the accuracy of the data reported - See instructions."]
[null,null,null,null,null,null,null,null,null,null,{"$f":"TODAY()","v":"2022-02-10"}]
[]
[]
[null,"   .  ",null,null,null,null,null,null,null,null,"Date",null,null,null,null,"Simon",null,null,null,null,null,null,null,null,"Date"]
[]
["Additional Labor Distribution For",null,null,null,null,null,null,null,null,null,null,null,null,null,null,null,null,null,null,null,null,null,"State of California",null,null,null,null,null,null,null,null,null,null,null,null,null,null,"Page",null,2,"of",2]
["Attendance and Labor",null,null,null,null,null,null,null,null,null,null,null,null,null,null,null,null,null,null,null,null,null,"Department of Fish and Wildlife",null,null,null,null,null,null,null,null,null,null,null,null,null,null,null,null,null,"Year","Mo"]
["Distribution Report",null,null,null,null,null,null,null,null,null,null,null,null,null,null,null,null,null,null,null,null,null,null,null,null,null,null,null,null,null,null,null,null,null,null,null,null,"Pay Period",null,null,{"$f":"AJ1","v":2019},{"$f":"AN1","v":10},null," "]
["DFW 681 A (Rev. 02/02/2018)"]
[]
["I. EMPLOYEE INFORMATION",null,null,null,null,null,null,null,null,"Instructions on Reverse Side"]
["Name",null,null,null,null,null,null,null,"Div/Branch/Reg",null,null,null,null,null,null,"Social Security Number"]
[{"$f":"Master_Page!A55","v":", "},null,null,null,null,null,null,null,{"$f":"Master_Page!R6","v":0},null,null,null,null,null,null,{"$f":"$V$6","v":"0000"}]
["Work Phone Number",null,null,null,null,null,null,null,"Position Number"]
[{"$f":"$A$8","v":9165555555},null,null,null,null,null,null,null,{"$f":"$I$8","v":5653031581001}]
[]
[]
["III. LABOR DISTRIBUTION"]
["Additional Labor Distribution totals will populate line 21 on the above Attendance Report"]
[null,1,2,3,4,5,6,7,8,9,10,11,12,13,14,15,16,17,18,19,20,21,22,23,24,25,26,27,28,29,30,null,"Total","Type","D","Reporting Structure","Project ID","On Call","Category",null,null,null,"Activity"]
[null,null,null,null,null,null,null,null,null,null,null,null,null,null,null,null,null,null,null,null,null,null,null,null,null,null,null,null,null,null,null,null,{"$f":"SUM(A63:AF63)","v":0},null,"N"]
[null,null,null,null,null,null,null,null,null,null,null,null,null,null,null,null,null,null,null,null,null,null,null,null,null,null,null,null,null,null,null,null,0,null,"N"]
[null,null,null,null,null,null,null,null,null,null,null,null,null,null,null,null,null,null,null,null,null,null,null,null,null,null,null,null,null,null,null,null,0,null,"N"]
[null,null,null,null,null,null,null,null,null,null,null,null,null,null,null,null,null,null,null,null,null,null,null,null,null,null,null,null,null,null,null,null,0,null,"N"]
[null,null,null,null,null,null,null,null,null,null,null,null,null,null,null,null,null,null,null,null,null,null,null,null,null,null,null,null,null,null,null,null,0,null,"N"]
[null,null,null,null,null,null,null,null,null,null,null,null,null,null,null,null,null,null,null,null,null,null,null,null,null,null,null,null,null,null,null,null,0,null,"N"]
[null,null,null,null,null,null,null,null,null,null,null,null,null,null,null,null,null,null,null,null,null,null,null,null,null,null,null,null,null,null,null,null,0,null,"N"]
[null,null,null,null,null,null,null,null,null,null,null,null,null,null,null,null,null,null,null,null,null,null,null,null,null,null,null,null,null,null,null,null,0,null,"N"]
[null,null,null,null,null,null,null,null,null,null,null,null,null,null,null,null,null,null,null,null,null,null,null,null,null,null,null,null,null,null,null,null,0,null,"N"]
[null,null,null,null,null,null,null,null,null,null,null,null,null,null,null,null,null,null,null,null,null,null,null,null,null,null,null,null,null,null,null,null,0,null,"N"]
[null,null,null,null,null,null,null,null,null,null,null,null,null,null,null,null,null,null,null,null,null,null,null,null,null,null,null,null,null,null,null,null,0,null,"N"]
[null,null,null,null,null,null,null,null,null,null,null,null,null,null,null,null,null,null,null,null,null,null,null,null,null,null,null,null,null,null,null,null,0,null,"N"]
[null,null,null,null,null,null,null,null,null,null,null,null,null,null,null,null,null,null,null,null,null,null,null,null,null,null,null,null,null,null,null,null,0,null,"N"]
[null,null,null,null,null,null,null,null,null,null,null,null,null,null,null,null,null,null,null,null,null,null,null,null,null,null,null,null,null,null,null,null,0,null,"N"]
[null,null,null,null,null,null,null,null,null,null,null,null,null,null,null,null,null,null,null,null,null,null,null,null,null,null,null,null,null,null,null,null,0,null,"N"]
[{"$f":"SUM(A63:A77)","v":0},0,0,0,0,0,0,0,0,0,0,0,0,0,0,0,0,0,0,0,0,0,0,0,0,0,0,0,0,0,0,0,{"$f":"SUM(AG63:AG77)","v":0}]
[null,1,2,3,4,5,6,7,8,9,10,11,12,13,14,15,16,17,18,19,20,21,22,23,24,25,26,27,28,29,30,null,"Enter Total on (DFW 681)"]
[null,null,null,null,null,null,null,null,null,null,null,null,null,null,null,null,null,null,null,null,null,null,null,null,null,null,null,null,null,null,null,null,null," "]
[null,null,null,null,null,null,null,null,null,null,null,null,null,null,null,null,null,null,null,null,null,null,null,null,null,null,null,null,null,null,null,null,null," "]
["DISTRIBUTION: ",null,null,null,null,null,"Accounting (ASB) - Original",null,null,null,null,null,null,null,null,null,"Supervisor",null,null,null,null,null,null,null,"Employee"]

{"sheet":"November2022","index":16,"n_rows":82,"n_cols":44,"rows_kept":82,"cut":false,"hidden":false,"merged":[[73,38,73,41],[74,38,74,41],[75,38,75,41],[76,38,76,41],[67,38,67,41],[68,38,68,41],[69,38,69,41],[70,38,70,41],[71,38,71,41],[72,38,72,41],[61,38,61,41],[62,38,62,41],[63,38,63,41],[64,38,64,41],[65,38,65,41],[66,38,66,41],[54,0,54,7],[54,8,54,14],[54,15,54,21],[56,0,56,7],[56,8,56,21],[60,0,60,31],[45,1,45,9],[45,10,45,13],[45,15,45,23],[45,24,45,27],[46,1,46,13],[46,15,46,27],[41,1,41,13],[41,15,41,27],[42,1,44,9],[42,10,44,13],[42,15,44,23],[42,24,44,27],[37,0,38,31],[37,39,38,41],[37,42,38,42],[38,32,38,35],[38,36,38,37],[40,1,40,13],[40,15,40,27],[35,32,35,35],[35,37,35,38],[35,39,35,40],[36,0,36,31],[36,32,36,35],[36,37,36,38],[36,39,36,40],[33,32,33,35],[33,37,33,38],[33,39,33,40],[34,32,34,35],[34,37,34,38],[34,39,34,40],[31,32,31,35],[31,37,31,38],[31,39,31,40],[32,32,32,35],[32,37,32,38],[32,39,32,40],[25,32,25,39],[26,32,26,33],[26,34,26,36],[26,37,26,39],[27,32,27,36],[28,32,28,36],[28,37,28,39],[20,41,20,42],[22,0,22,7],[22,9,22,24],[22,25,22,30],[22,32,22,42],[24,32,24,39],[14,38,14,41],[15,38,15,41],[16,38,16,41],[17,38,17,41],[18,38,18,41],[19,38,19,41],[9,30,9,31],[9,32,9,33],[9,34,9,35],[9,39,9,42],[12,38,12,41],[13,38,13,41],[7,34,7,35],[8,30,8,31],[8,32,8,33],[8,34,8,35],[8,39,8,42],[9,0,9,7],[9,8,9,12],[9,13,9,17],[9,18,9,23],[9,24,9,28],[7,0,7,4],[7,5,7,7],[7,8,7,14],[7,15,7,28],[7,30,7,31],[7,32,7,33],[5,39,5,42],[6,30,6,31],[6,32,6,33],[6,34,6,35],[3,9,3,16],[4,30,4,31],[4,32,4,33],[4,34,4,35],[4,39,4,42],[5,0,5,7],[5,8,5,14],[5,15,5,16],[5,17,5,20],[5,21,5,24],[0,22,0,26],[0,27,0,29],[0,31,0,32],[0,35,0,36],[1,27,1,29],[1,31,1,32],[5,25,5,28],[5,30,5,31],[5,32,5,33],[5,34,5,35]]}
[{"$f":"Master_Page!A1","v":"State of California"},null,null,null,null,null,null,null,null,null,null,null,null,null,null,null,{"$f":"Master_Page!Q1","v":"Attendance and Labor"},null,null,null,null,null,"Pay Period - From:",null,null,null,null,"2019-10-31",null,null,"To:","2019-11-30",null,null,"Year",2019,null,null,"Mo",11,"# Days",22]
[{"$f":"Master_Page!A2","v":"Department of Fish and Wildlife"},null,null,null,null,null,null,null,null,null,null,null,null,null,null,null,{"$f":"Master_Page!Q2","v":"Distribution Report"},null,null,null,null,null,null,null,null,null,null,"MM / DD /  YY",null,null,null,"MM / DD /  YY"]
["DFW 681 (Rev. 02/02/2018)"]
["I. EMPLOYEE INFORMATION",null,null,null,null,null,null,null,null,null,null,null,null,null,null,null,null,null,null,null,null,null,null,null,null,null,null,null,null,null,"II. OTHER PAY HOURS"]
["Last Name",null,null,null,null,null,null,null,"First Name",null,null,null,null,null,null,"M.I.",null,"Div/Branch or Region",null,null,null,"Social Security Number",null,null,null,"Bargaining Unit Number",null,null,null,null,"Dive",null,"Comm. Driving",null,null,null,"Excess","CTO",null,"Audited By:"]
["Menon",null,null,null,null,null,null,null,"Usha",null,null,null,null,null,null,"",null,"DTD",null,null,null,"4146",null,null,null,"R01",null,null,null,null,null,null,null,null,"Prev-Balance",null,{"$f":"SUM(October2022!AK10)","v":0}]
["Work Phone Number",null,null,null,null,"Phone Ext.",null,null,"  Position Number",null,null,null,null,null,null,"Classification Title",null,null,null,null,null,null,null,null,null,null,null,null,null,null,"SOU",null,"Shift",null,"Earned",null,{"$f":"+AO29","v":0},{"$f":"+AO27","v":0}]
[7706344157,null,null,null,null,"",null,null,5650281402007,null,null,null,null,null,null,"INFORMATION TECHNOLOGY SPECIALIST I",null,null,null,null,null,null,null,null,null,null,null,null,null,null,null,null,null,null,"Total",null,{"$f":"+AK6+AK7","v":0},{"$f":"+AL6+AL7","v":0}]
["Work Week Schedule",null,null,null,null,null,null,null,"Time Base",null,null,null,null,"Work Week Group",null,null,null,null,"Assigned Days Off",null,null,null,null,null,"AWW Regular Day Off (RDO)",null,null,null,null,null,"FTO",null,"Holiday",null,"Used -",null,{"$f":"(AL37)","v":0},{"$f":"+AQ32","v":0},null,"Actual Time Worked-Days Limit"]
["Regular Schedule",null,null,null,null,null,null,null,"Full Time",null,null,null,null,"2",null,null,null,null,"Sat, Sun",null,null,null,null,null,"N/A",null,null,null,null,null,null,null,null,null,"Balance",null,{"$f":"+AK8-AK9","v":0},{"$f":"+AL8-AL9","v":0},null,{"$f":"IF(I10=\"int\",SUM(A22:AF22),COUNTIF(A22:AF22,\">0\"))","v":0}]
[]
["III. LABOR DISTRIBUTION"]
[null,31,1,2,3,4,5,6,7,8,9,10,11,12,13,14,15,16,17,18,19,20,21,22,23,24,25,26,27,28,29,30,"Total","Type","D","Reporting Structure","Project ID","On Call","Project/WP",null,null,null,"Activity"]
[null,null,null,null,null,null,null,null,null,null,null,null,null,null,null,null,null,null,null,null,null,null,null,null,null,null,null,null,null,null,null,null,{"$f":"SUM(A14:AF14)","v":0},"REG","N"]
[null,null,null,null,null,null,null,null,null,null,null,null,null,null,null,null,null,null,null,null,null,null,null,null,null,null,null,null,null,null,null,null,0,null,"N"]
[null,null,null,null,null,null,null,null,null,null,null,null,null,null,null,null,null,null,null,null,null,null,null,null,null,null,null,null,null,null,null,null,0,null,"N"]
[null,null,null,null,null,null,null,null,null,null,null,null,null,null,null,null,null,null,null,null,null,null,null,null,null,null,null,null,null,null,null,null,0,null,"N"]
[null,null,null,null,null,null,null,null,null,null,null,null,null,null,null,null,null,null,null,null,null,null,null,null,null,null,null,null,null,null,null,null,0,null,"N"]
[null,null,null,null,null,null,null,null,null,null,null,null,null,null,null,null,null,null,null,null,null,null,null,null,null,null,null,null,null,null,null,null,0,null,"N"]
[null,null,null,null,null,null,null,null,null,null,null,null,null,null,null,null,null,null,null,null,null,null,null,null,null,null,null,null,null,null,null,null,0,null,"N"]
[{"$f":"A78","v":0},0,0,0,0,0,0,0,0,0,0,0,0,0,0,0,0,0,0,0,0,0,0,0,0,0,0,0,0,0,0,0,{"$f":"SUM(A21:AF21)","v":0},"Total from DFW 681A(s) (Attach)"]
[{"$f":"SUM(A14:A21)","v":0},0,0,0,0,0,0,0,0,0,0,0,0,0,0,0,0,0,0,0,0,0,0,0,0,0,0,0,0,0,0,0,{"$f":"SUM(AG14:AG20) + SUM(AG63:AG77)","v":0},"Total Hours",null,null,null,176,"Hours Required this Month"]
["Carry over hours from previous month",null,null,null,null,null,null,null,null,null,null,null,null,null,null,null,null,null,null,null,null,null,null,null,null,"Carry over hours for month"]
["IV. EXTRA HOURS WORKED"]
[null,31,1,2,3,4,5,6,7,8,9,10,11,12,13,14,15,16,17,18,19,20,21,22,23,24,25,26,27,28,29,30,"Summary of Extra Hours Worked:",null,null,null,null,null,null,null,"Hours","Paid This PP","Carry Over"]
[null,null,null,null,null,null,null,null,null,null,null,null,null,null,null,null,null,null,null,null,null,null,null,null,null,null,null,null,null,null,null,null,"Cash",null,null,null,null,null,null,null,{"$f":"SUM(A26:AF26)","v":0}]
[null,null,null,null,null,null,null,null,null,null,null,null,null,null,null,null,null,null,null,null,null,null,null,null,null,null,null,null,null,null,null,null,"CTO",null,"(CT06)",null,null,"(CT07)",null,null,{"$f":"SUM(A27:AF27)","v":0}]
[null,null,null,null,null,null,null,null,null,null,null,null,null,null,null,null,null,null,null,null,null,null,null,null,null,null,null,null,null,null,null,null,"Other (On-call/Standby)",null,null,null,null,{"$f":"SUM(A28:AF28)","v":0}]
["V. ABSENCE INFORMATION",null,null,null,null,null,null,null,null,"Date of Absence:  Enter code and number of hours in date blocks.",null,null,null,null,null,null,null,null,null,null,null,null,null,null,null,null,null,null,null,null,null,null,"Excess Hours",null,null,null,null,"(EX05)",null,null,0]
[null,31,1,2,3,4,5,6,7,8,9,10,11,12,13,14,15,16,17,18,19,20,21,22,23,24,25,26,27,28,29,30,null,null,null,null,null,null,null,null,{"$f":"SUM(AO26:AO27)+AO29","v":0}]
[null,null,null,null,null,null,null,null,null,null,null,null,null,null,null,null,null,null,null,null,null,null,null,null,null,null,null,null,null,null,null,null,"Summary of Absences:",null,null,null,null,"Hours",null,null,null,null,"Hours"]
[null,null,null,null,null,null,null,null,null,null,null,null,null,null,null,null,null,null,null,null,null,null,null,null,null,null,null,null,null,null,null,null,"Sick-Self (S)",null,null,null,"(SL01)",0,null,"CTO (CT)",null,"(CT01)",0]
[null,null,null,null,null,null,null,null,null,null,null,null,null,null,null,null,null,null,null,null,null,null,null,null,null,null,null,null,null,null,null,null,"Sick-Family (FS)",null,null,null,"(SL02)",0,null,"Holiday (H) ",null,null,0]
[null,null,null,null,null,null,null,null,null,null,null,null,null,null,null,null,null,null,null,null,null,null,null,null,null,null,null,null,null,null,null,null,"Annual Leave (AL)",null,null,null,"(AL01)",0,null,"Pro.Dev. (PT)",null,null,0]
[null,null,null,null,null,null,null,null,null,null,null,null,null,null,null,null,null,null,null,null,null,null,null,null,null,null,null,null,null,null,null,null,"Vacation (V)",null,null,null,"(VA01)",0,null,"Other (O1)",null,null,0]
[null,null,null,null,null,null,null,null,null,null,null,null,null,null,null,null,null,null,null,null,null,null,null,null,null,null,null,null,null,null,null,null,"Personal Holiday (PH)",null,null,null,"(PH01)",0,null,"Other (O2)",null,null,0]
["Comments",null,null,null,null,null,null,null,null,null,null,null,null,null,null,null,null,null,null,null,null,null,null,null,null,null,null,null,null,null,null,null,"Excess (EX)",null,null,null,"(EX01)",0,null,"Other (O3)",null,null,0]
[null,null,null,null,null,null,null,null,null,null,null,null,null,null,null,null,null,null,null,null,null,null,null,null,null,null,null,null,null,null,null,null,null,null,null,null,null,null,null,"Absence Total",null,null,{"$f":"SUM(AQ32:AQ37)+SUM(AL32:AL37)","v":0}]
[null,null,null,null,null,null,null,null,null,null,null,null,null,null,null,null,null,null,null,null,null,null,null,null,null,null,null,null,null,null,null,null,"Holiday credit earned",null,null,null,0,null,"hrs"]
[]
[null,"Certification of Employee",null,null,null,null,null,null,null,null,null,null,null,null,null,"Certification of Supervisor"]
[null,"Employees are certifying to the accuracy of the data reported - See instructions.",null,null,null,null,null,null,null,null,null,null,null,null,null,"Supervisors are certifying to the accuracy of the data reported - See instructions."]
[null,null,null,null,null,null,null,null,null,null,{"$f":"TODAY()","v":"2022-02-10"}]
[]
[]
[null,"Usha Menon",null,null,null,null,null,null,null,null,"Date",null,null,null,null,"Simon",null,null,null,null,null,null,null,null,"Date"]
[]
["Additional Labor Distribution For",null,null,null,null,null,null,null,null,null,null,null,null,null,null,null,null,null,null,null,null,null,"State of California",null,null,null,null,null,null,null,null,null,null,null,null,null,null,"Page",null,2,"of",2]
["Attendance and Labor",null,null,null,null,null,null,null,null,null,null,null,null,null,null,null,null,null,null,null,null,null,"Department of Fish and Wildlife",null,null,null,null,null,null,null,null,null,null,null,null,null,null,null,null,null,"Year","Mo"]
["Distribution Report",null,null,null,null,null,null,null,null,null,null,null,null,null,null,null,null,null,null,null,null,null,null,null,null,null,null,null,null,null,null,null,null,null,null,null,null,"Pay Period",null,null,{"$f":"AJ1","v":2019},{"$f":"AN1","v":11},null," "]
["DFW 681 A (Rev. 02/02/2018)"]
[]
["I. EMPLOYEE INFORMATION",null,null,null,null,null,null,null,null,"Instructions on Reverse Side"]
["Name",null,null,null,null,null,null,null,"Div/Branch/Reg",null,null,null,null,null,null,"Social Security Number"]
[{"$f":"Master_Page!A55","v":", "},null,null,null,null,null,null,null,{"$f":"Master_Page!R6","v":0},null,null,null,null,null,null,{"$f":"$V$6","v":"4146"}]
["Work Phone Number",null,null,null,null,null,null,null,"Position Number"]
[{"$f":"$A$8","v":7706344157},null,null,null,null,null,null,null,{"$f":"$I$8","v":5650281402007}]
[]
[]
["III. LABOR DISTRIBUTION"]
["Additional Labor Distribution totals will populate line 21 on the above Attendance Report"]
[null,31,1,2,3,4,5,6,7,8,9,10,11,12,13,14,15,16,17,18,19,20,21,22,23,24,25,26,27,28,29,30,"Total","Type","D","Reporting Structure","Project ID","On Call","Category",null,null,null,"Activity"]
[null,null,null,null,null,null,null,null,null,null,null,null,null,null,null,null,null,null,null,null,null,null,null,null,null,null,null,null,null,null,null,null,{"$f":"SUM(A63:AF63)","v":0},null,"N"]
[null,null,null,null,null,null,null,null,null,null,null,null,null,null,null,null,null,null,null,null,null,null,null,null,null,null,null,null,null,null,null,null,0,null,"N"]
[null,null,null,null,null,null,null,null,null,null,null,null,null,null,null,null,null,null,null,null,null,null,null,null,null,null,null,null,null,null,null,null,0,null,"N"]
[null,null,null,null,null,null,null,null,null,null,null,null,null,null,null,null,null,null,null,null,null,null,null,null,null,null,null,null,null,null,null,null,0,null,"N"]
[null,null,null,null,null,null,null,null,null,null,null,null,null,null,null,null,null,null,null,null,null,null,null,null,null,null,null,null,null,null,null,null,0,null,"N"]
[null,null,null,null,null,null,null,null,null,null,null,null,null,null,null,null,null,null,null,null,null,null,null,null,null,null,null,null,null,null,null,null,0,null,"N"]
[null,null,null,null,null,null,null,null,null,null,null,null,null,null,null,null,null,null,null,null,null,null,null,null,null,null,null,null,null,null,null,null,0,null,"N"]
[null,null,null,null,null,null,null,null,null,null,null,null,null,null,null,null,null,null,null,null,null,null,null,null,null,null,null,null,null,null,null,null,0,null,"N"]
[null,null,null,null,null,null,null,null,null,null,null,null,null,null,null,null,null,null,null,null,null,null,null,null,null,null,null,null,null,null,null,null,0,null,"N"]
[null,null,null,null,null,null,null,null,null,null,null,null,null,null,null,null,null,null,null,null,null,null,null,null,null,null,null,null,null,null,null,null,0,null,"N"]
[null,null,null,null,null,null,null,null,null,null,null,null,null,null,null,null,null,null,null,null,null,null,null,null,null,null,null,null,null,null,null,null,0,null,"N"]
[null,null,null,null,null,null,null,null,null,null,null,null,null,null,null,null,null,null,null,null,null,null,null,null,null,null,null,null,null,null,null,null,0,null,"N"]
[null,null,null,null,null,null,null,null,null,null,null,null,null,null,null,null,null,null,null,null,null,null,null,null,null,null,null,null,null,null,null,null,0,null,"N"]
[null,null,null,null,null,null,null,null,null,null,null,null,null,null,null,null,null,null,null,null,null,null,null,null,null,null,null,null,null,null,null,null,0,null,"N"]
[null,null,null,null,null,null,null,null,null,null,null,null,null,null,null,null,null,null,null,null,null,null,null,null,null,null,null,null,null,null,null,null,0,null,"N"]
[{"$f":"SUM(A63:A77)","v":0},0,0,0,0,0,0,0,0,0,0,0,0,0,0,0,0,0,0,0,0,0,0,0,0,0,0,0,0,0,0,0,{"$f":"SUM(AG63:AG77)","v":0}]
[null,31,1,2,3,4,5,6,7,8,9,10,11,12,13,14,15,16,17,18,19,20,21,22,23,24,25,26,27,28,29,30,"Enter Total on (DFW 681)"]
[null,null,null,null,null,null,null,null,null,null,null,null,null,null,null,null,null,null,null,null,null,null,null,null,null,null,null,null,null,null,null,null,null," "]
[null,null,null,null,null,null,null,null,null,null,null,null,null,null,null,null,null,null,null,null,null,null,null,null,null,null,null,null,null,null,null,null,null," "]
["DISTRIBUTION: ",null,null,null,null,null,"Accounting (ASB) - Original",null,null,null,null,null,null,null,null,null,"Supervisor",null,null,null,null,null,null,null,"Employee"]

{"sheet":"December2022","index":17,"n_rows":82,"n_cols":44,"rows_kept":82,"cut":false,"hidden":false,"merged":[[73,38,73,41],[74,38,74,41],[75,38,75,41],[76,38,76,41],[67,38,67,41],[68,38,68,41],[69,38,69,41],[70,38,70,41],[71,38,71,41],[72,38,72,41],[61,38,61,41],[62,38,62,41],[63,38,63,41],[64,38,64,41],[65,38,65,41],[66,38,66,41],[54,0,54,7],[54,8,54,14],[54,15,54,21],[56,0,56,7],[56,8,56,21],[60,0,60,31],[45,1,45,9],[45,10,45,13],[45,15,45,23],[45,24,45,27],[46,1,46,13],[46,15,46,27],[41,1,41,13],[41,15,41,27],[42,1,44,9],[42,10,44,13],[42,15,44,23],[42,24,44,27],[37,0,38,31],[37,39,38,41],[37,42,38,42],[38,32,38,35],[38,36,38,37],[40,1,40,13],[40,15,40,27],[35,32,35,35],[35,37,35,38],[35,39,35,40],[36,0,36,31],[36,32,36,35],[36,37,36,38],[36,39,36,40],[33,32,33,35],[33,37,33,38],[33,39,33,40],[34,32,34,35],[34,37,34,38],[34,39,34,40],[31,32,31,35],[31,37,31,38],[31,39,31,40],[32,32,32,35],[32,37,32,38],[32,39,32,40],[25,32,25,39],[26,32,26,33],[26,34,26,36],[26,37,26,39],[27,32,27,36],[28,32,28,36],[28,37,28,39],[20,41,20,42],[22,0,22,7],[22,9,22,24],[22,25,22,30],[22,32,22,42],[24,32,24,39],[14,38,14,41],[15,38,15,41],[16,38,16,41],[17,38,17,41],[18,38,18,41],[19,38,19,41],[9,30,9,31],[9,32,9,33],[9,34,9,35],[9,39,9,42],[12,38,12,41],[13,38,13,41],[7,34,7,35],[8,30,8,31],[8,32,8,33],[8,34,8,35],[8,39,8,42],[9,0,9,7],[9,8,9,12],[9,13,9,17],[9,18,9,23],[9,24,9,28],[7,0,7,4],[7,5,7,7],[7,8,7,14],[7,15,7,28],[7,30,7,31],[7,32,7,33],[5,39,5,42],[6,30,6,31],[6,32,6,33],[6,34,6,35],[3,9,3,16],[4,30,4,31],[4,32,4,33],[4,34,4,35],[4,39,4,42],[5,0,5,7],[5,8,5,14],[5,15,5,16],[5,17,5,20],[5,21,5,24],[0,22,0,26],[0,27,0,29],[0,31,0,32],[0,35,0,36],[1,27,1,29],[1,31,1,32],[5,25,5,28],[5,30,5,31],[5,32,5,33],[5,34,5,35]]}
[{"$f":"Master_Page!A1","v":"State of California"},null,null,null,null,null,null,null,null,null,null,null,null,null,null,null,{"$f":"Master_Page!Q1","v":"Attendance and Labor"},null,null,null,null,null,"Pay Period - From:",null,null,null,null,"2018-12-01",null,null,"To:","2018-12-31",null,null,"Year",2018,null,null,"Mo",12,"# Days",21]
[{"$f":"Master_Page!A2","v":"Department of Fish and Wildlife"},null,null,null,null,null,null,null,null,null,null,null,null,null,null,null,{"$f":"Master_Page!Q2","v":"Distribution Report"},null,null,null,null,null,null,null,null,null,null,"MM / DD /  YY",null,null,null,"MM / DD /  YY"]
["DFW 681 (Rev. 02/02/2018)"]
["I. EMPLOYEE INFORMATION",null,null,null,null,null,null,null,null,null,null,null,null,null,null,null,null,null,null,null,null,null,null,null,null,null,null,null,null,null,"II. OTHER PAY HOURS"]
["Last Name",null,null,null,null,null,null,null,"First Name",null,null,null,null,null,null,"M.I.",null,"Div/Branch or Region",null,null,null,"Social Security Number",null,null,null,"Bargaining Unit Number",null,null,null,null,"Dive",null,"Comm. Driving",null,null,null,"Excess","CTO",null,"Audited By:"]
["Menon",null,null,null,null,null,null,null,"Usha",null,null,null,null,null,null,"",null,"DTD",null,null,null,"4146",null,null,null,"R01",null,null,null,null,null,null,null,null,"Prev-Balance",null,{"$f":"SUM(November2022!AK10)","v":0}]
["Work Phone Number",null,null,null,null,"Phone Ext.",null,null,"  Position Number",null,null,null,null,null,null,"Classification Title",null,null,null,null,null,null,null,null,null,null,null,null,null,null,"SOU",null,"Shift",null,"Earned",null,{"$f":"+AO29","v":0},{"$f":"+AO27","v":0}]
[7706344157,null,null,null,null,"",null,null,5650281402007,null,null,null,null,null,null,"INFORMATION TECHNOLOGY SPECIALIST I",null,null,null,null,null,null,null,null,null,null,null,null,null,null,null,null,null,null,"Total",null,{"$f":"+AK6+AK7","v":0},{"$f":"+AL6+AL7","v":0}]
["Work Week Schedule",null,null,null,null,null,null,null,"Time Base",null,null,null,null,"Work Week Group",null,null,null,null,"Assigned Days Off",null,null,null,null,null,"AWW Regular Day Off (RDO)",null,null,null,null,null,"FTO",null,"Holiday",null,"Used -",null,{"$f":"(AL37)","v":0},{"$f":"+AQ32","v":0},null,"Actual Time Worked-Days Limit"]
["Regular Schedule",null,null,null,null,null,null,null,"Full Time",null,null,null,null,"2",null,null,null,null,"Sat, Sun",null,null,null,null,null,"N/A",null,null,null,null,null,null,null,null,null,"Balance",null,{"$f":"+AK8-AK9","v":0},{"$f":"+AL8-AL9","v":0},null,{"$f":"IF(I10=\"int\",SUM(A22:AF22),COUNTIF(A22:AF22,\">0\"))","v":0}]
[]
["III. LABOR DISTRIBUTION"]
[null,1,2,3,4,5,6,7,8,9,10,11,12,13,14,15,16,17,18,19,20,21,22,23,24,25,26,27,28,29,30,31,"Total","Type","D","Reporting Structure","Project ID","On Call","Project/WP",null,null,null,"Activity"]
[null,null,null,null,null,null,null,null,null,null,null,null,null,null,null,null,null,null,null,null,null,null,null,null,null,null,null,null,null,null,null,null,{"$f":"SUM(A14:AF14)","v":0},"REG","N"]
[null,null,null,null,null,null,null,null,null,null,null,null,null,null,null,null,null,null,null,null,null,null,null,null,null,null,null,null,null,null,null,null,0,null,"N"]
[null,null,null,null,null,null,null,null,null,null,null,null,null,null,null,null,null,null,null,null,null,null,null,null,null,null,null,null,null,null,null,null,0,null,"N"]
[null,null,null,null,null,null,null,null,null,null,null,null,null,null,null,null,null,null,null,null,null,null,null,null,null,null,null,null,null,null,null,null,0,null,"N"]
[null,null,null,null,null,null,null,null,null,null,null,null,null,null,null,null,null,null,null,null,null,null,null,null,null,null,null,null,null,null,null,null,0,null,"N"]
[null,null,null,null,null,null,null,null,null,null,null,null,null,null,null,null,null,null,null,null,null,null,null,null,null,null,null,null,null,null,null,null,0,null,"N"]
[null,null,null,null,null,null,null,null,null,null,null,null,null,null,null,null,null,null,null,null,null,null,null,null,null,null,null,null,null,null,null,null,0,null,"N"]
[{"$f":"A78","v":0},0,0,0,0,0,0,0,0,0,0,0,0,0,0,0,0,0,0,0,0,0,0,0,0,0,0,0,0,0,0,0,{"$f":"SUM(A21:AF21)","v":0},"Total from DFW 681A(s) (Attach)"]
[{"$f":"SUM(A14:A21)","v":0},0,0,0,0,0,0,0,0,0,0,0,0,0,0,0,0,0,0,0,0,0,0,0,0,0,0,0,0,0,0,0,{"$f":"SUM(AG14:AG20) + SUM(AG63:AG77)","v":0},"Total Hours",null,null,null,168,"Hours Required this Month"]
["Carry over hours from previous month",null,null,null,null,null,null,null,null,null,null,null,null,null,null,null,null,null,null,null,null,null,null,null,null,"Carry over hours for month"]
["IV. EXTRA HOURS WORKED"]
[null,1,2,3,4,5,6,7,8,9,10,11,12,13,14,15,16,17,18,19,20,21,22,23,24,25,26,27,28,29,30,31,"Summary of Extra Hours Worked:",null,null,null,null,null,null,null,"Hours","Paid This PP","Carry Over"]
[null,null,null,null,null,null,null,null,null,null,null,null,null,null,null,null,null,null,null,null,null,null,null,null,null,null,null,null,null,null,null,null,"Cash",null,null,null,null,null,null,null,{"$f":"SUM(A26:AF26)","v":0}]
[null,null,null,null,null,null,null,null,null,null,null,null,null,null,null,null,null,null,null,null,null,null,null,null,null,null,null,null,null,null,null,null,"CTO",null,"(CT06)",null,null,"(CT07)",null,null,{"$f":"SUM(A27:AF27)","v":0}]
[null,null,null,null,null,null,null,null,null,null,null,null,null,null,null,null,null,null,null,null,null,null,null,null,null,null,null,null,null,null,null,null,"Other (On-call/Standby)",null,null,null,null,{"$f":"SUM(A28:AF28)","v":0}]
["V. ABSENCE INFORMATION",null,null,null,null,null,null,null,null,"Date of Absence:  Enter code and number of hours in date blocks.",null,null,null,null,null,null,null,null,null,null,null,null,null,null,null,null,null,null,null,null,null,null,"Excess Hours",null,null,null,null,"(EX05)",null,null,0]
[null,1,2,3,4,5,6,7,8,9,10,11,12,13,14,15,16,17,18,19,20,21,22,23,24,25,26,27,28,29,30,31,null,null,null,null,null,null,null,null,{"$f":"SUM(AO26:AO27)+AO29","v":0}]
[null,null,null,null,null,null,null,null,null,null,null,null,null,null,null,null,null,null,null,null,null,null,null,null,null,null,null,null,null,null,null,null,"Summary of Absences:",null,null,null,null,"Hours",null,null,null,null,"Hours"]
[null,null,null,null,null,null,null,null,null,null,null,null,null,null,null,null,null,null,null,null,null,null,null,null,null,null,null,null,null,null,null,null,"Sick-Self (S)",null,null,null,"(SL01)",0,null,"CTO (CT)",null,"(CT01)",0]
[null,null,null,null,null,null,null,null,null,null,null,null,null,null,null,null,null,null,null,null,null,null,null,null,null,null,null,null,null,null,null,null,"Sick-Family (FS)",null,null,null,"(SL02)",0,null,"Holiday (H) ",null,null,0]
[null,null,null,null,null,null,null,null,null,null,null,null,null,null,null,null,null,null,null,null,null,null,null,null,null,null,null,null,null,null,null,null,"Annual Leave (AL)",null,null,null,"(AL01)",0,null,"Pro.Dev. (PT)",null,null,0]
[null,null,null,null,null,null,null,null,null,null,null,null,null,null,null,null,null,null,null,null,null,null,null,null,null,null,null,null,null,null,null,null,"Vacation (V)",null,null,null,"(VA01)",0,null,"Other (O1)",null,null,0]
[null,null,null,null,null,null,null,null,null,null,null,null,null,null,null,null,null,null,null,null,null,null,null,null,null,null,null,null,null,null,null,null,"Personal Holiday (PH)",null,null,null,"(PH01)",0,null,"Other (O2)",null,null,0]
["Comments",null,null,null,null,null,null,null,null,null,null,null,null,null,null,null,null,null,null,null,null,null,null,null,null,null,null,null,null,null,null,null,"Excess (EX)",null,null,null,"(EX01)",0,null,"Other (O3)",null,null,0]
[null,null,null,null,null,null,null,null,null,null,null,null,null,null,null,null,null,null,null,null,null,null,null,null,null,null,null,null,null,null,null,null,null,null,null,null,null,null,null,"Absence Total",null,null,{"$f":"SUM(AQ32:AQ37)+SUM(AL32:AL37)","v":0}]
[null,null,null,null,null,null,null,null,null,null,null,null,null,null,null,null,null,null,null,null,null,null,null,null,null,null,null,null,null,null,null,null,"Holiday credit earned",null,null,null,0,null,"hrs"]
[]
[null,"Certification of Employee",null,null,null,null,null,null,null,null,null,null,null,null,null,"Certification of Supervisor"]
[null,"Employees are certifying to the accuracy of the data reported - See instructions.",null,null,null,null,null,null,null,null,null,null,null,null,null,"Supervisors are certifying to the accuracy of the data reported - See instructions."]
[null,null,null,null,null,null,null,null,null,null,{"$f":"TODAY()","v":"2022-02-10"}]
[]
[]
[null,"Usha Menon",null,null,null,null,null,null,null,null,"Date",null,null,null,null,"Simon",null,null,null,null,null,null,null,null,"Date"]
[]
["Additional Labor Distribution For",null,null,null,null,null,null,null,null,null,null,null,null,null,null,null,null,null,null,null,null,null,"State of California",null,null,null,null,null,null,null,null,null,null,null,null,null,null,"Page",null,2,"of",2]
["Attendance and Labor",null,null,null,null,null,null,null,null,null,null,null,null,null,null,null,null,null,null,null,null,null,"Department of Fish and Wildlife",null,null,null,null,null,null,null,null,null,null,null,null,null,null,null,null,null,"Year","Mo"]
["Distribution Report",null,null,null,null,null,null,null,null,null,null,null,null,null,null,null,null,null,null,null,null,null,null,null,null,null,null,null,null,null,null,null,null,null,null,null,null,"Pay Period",null,null,{"$f":"AJ1","v":2018},{"$f":"AN1","v":12},null," "]
["DFW 681 A (Rev. 02/02/2018)"]
[]
["I. EMPLOYEE INFORMATION",null,null,null,null,null,null,null,null,"Instructions on Reverse Side"]
["Name",null,null,null,null,null,null,null,"Div/Branch/Reg",null,null,null,null,null,null,"Social Security Number"]
[{"$f":"Master_Page!A55","v":", "},null,null,null,null,null,null,null,{"$f":"Master_Page!R6","v":0},null,null,null,null,null,null,{"$f":"$V$6","v":"4146"}]
["Work Phone Number",null,null,null,null,null,null,null,"Position Number"]
[{"$f":"$A$8","v":7706344157},null,null,null,null,null,null,null,{"$f":"$I$8","v":5650281402007}]
[]
[]
["III. LABOR DISTRIBUTION"]
["Additional Labor Distribution totals will populate line 21 on the above Attendance Report"]
[null,1,2,3,4,5,6,7,8,9,10,11,12,13,14,15,16,17,18,19,20,21,22,23,24,25,26,27,28,29,30,31,"Total","Type","D","Reporting Structure","Project ID","On Call","Category",null,null,null,"Activity"]
[null,null,null,null,null,null,null,null,null,null,null,null,null,null,null,null,null,null,null,null,null,null,null,null,null,null,null,null,null,null,null,null,{"$f":"SUM(A63:AF63)","v":0},null,"N"]
[null,null,null,null,null,null,null,null,null,null,null,null,null,null,null,null,null,null,null,null,null,null,null,null,null,null,null,null,null,null,null,null,0,null,"N"]
[null,null,null,null,null,null,null,null,null,null,null,null,null,null,null,null,null,null,null,null,null,null,null,null,null,null,null,null,null,null,null,null,0,null,"N"]
[null,null,null,null,null,null,null,null,null,null,null,null,null,null,null,null,null,null,null,null,null,null,null,null,null,null,null,null,null,null,null,null,0,null,"N"]
[null,null,null,null,null,null,null,null,null,null,null,null,null,null,null,null,null,null,null,null,null,null,null,null,null,null,null,null,null,null,null,null,0,null,"N"]
[null,null,null,null,null,null,null,null,null,null,null,null,null,null,null,null,null,null,null,null,null,null,null,null,null,null,null,null,null,null,null,null,0,null,"N"]
[null,null,null,null,null,null,null,null,null,null,null,null,null,null,null,null,null,null,null,null,null,null,null,null,null,null,null,null,null,null,null,null,0,null,"N"]
[null,null,null,null,null,null,null,null,null,null,null,null,null,null,null,null,null,null,null,null,null,null,null,null,null,null,null,null,null,null,null,null,0,null,"N"]
[null,null,null,null,null,null,null,null,null,null,null,null,null,null,null,null,null,null,null,null,null,null,null,null,null,null,null,null,null,null,null,null,0,null,"N"]
[null,null,null,null,null,null,null,null,null,null,null,null,null,null,null,null,null,null,null,null,null,null,null,null,null,null,null,null,null,null,null,null,0,null,"N"]
[null,null,null,null,null,null,null,null,null,null,null,null,null,null,null,null,null,null,null,null,null,null,null,null,null,null,null,null,null,null,null,null,0,null,"N"]
[null,null,null,null,null,null,null,null,null,null,null,null,null,null,null,null,null,null,null,null,null,null,null,null,null,null,null,null,null,null,null,null,0,null,"N"]
[null,null,null,null,null,null,null,null,null,null,null,null,null,null,null,null,null,null,null,null,null,null,null,null,null,null,null,null,null,null,null,null,0,null,"N"]
[null,null,null,null,null,null,null,null,null,null,null,null,null,null,null,null,null,null,null,null,null,null,null,null,null,null,null,null,null,null,null,null,0,null,"N"]
[null,null,null,null,null,null,null,null,null,null,null,null,null,null,null,null,null,null,null,null,null,null,null,null,null,null,null,null,null,null,null,null,0,null,"N"]
[{"$f":"SUM(A63:A77)","v":0},0,0,0,0,0,0,0,0,0,0,0,0,0,0,0,0,0,0,0,0,0,0,0,0,0,0,0,0,0,0,0,{"$f":"SUM(AG63:AG77)","v":0}]
[null,1,2,3,4,5,6,7,8,9,10,11,12,13,14,15,16,17,18,19,20,21,22,23,24,25,26,27,28,29,30,31,"Enter Total on (DFW 681)"]
[null,null,null,null,null,null,null,null,null,null,null,null,null,null,null,null,null,null,null,null,null,null,null,null,null,null,null,null,null,null,null,null,null," "]
[null,null,null,null,null,null,null,null,null,null,null,null,null,null,null,null,null,null,null,null,null,null,null,null,null,null,null,null,null,null,null,null,null," "]
["DISTRIBUTION: ",null,null,null,null,null,"Accounting (ASB) - Original",null,null,null,null,null,null,null,null,null,"Supervisor",null,null,null,null,null,null,null,"Employee"]